Service Area,Service Division,Expense Type,Expense Code,Detailed Expense Type,Payment Date,Transaction Number,Amount Exc VAT,Supplier Name
Regeneration and Local Services,Direct Services,Premises,108099,Service Repairs and Maintenance,01/10/2018,3494269-IN4741,"38,882.27",ACROL AIR CONDITIONING CO LTD.
Regeneration and Local Services,Direct Services,Premises,106082,Centrally Controlled Rep and Maint,01/10/2018,3494269-IN4698,"13,503.55",ACROL AIR CONDITIONING CO LTD.
Regeneration and Local Services,Technical Services,Supplies and Services,304221,Equipment and Materials,01/10/2018,3494271-27115411,591.60,AGGREGATE INDUSTRIES UK LTD.
Regeneration and Local Services,Technical Services,Supplies and Services,304221,Equipment and Materials,01/10/2018,3494271-27115412,"1,140.28",AGGREGATE INDUSTRIES UK LTD.
Regeneration and Local Services,Technical Services,Supplies and Services,304221,Equipment and Materials,01/10/2018,3494271-27115413,606.68,AGGREGATE INDUSTRIES UK LTD.
Regeneration and Local Services,Technical Services,Supplies and Services,304221,Equipment and Materials,01/10/2018,3494271-27115414,922.14,AGGREGATE INDUSTRIES UK LTD.
Regeneration and Local Services,Technical Services,Supplies and Services,304221,Equipment and Materials,01/10/2018,3494271-27122273,593.92,AGGREGATE INDUSTRIES UK LTD.
Regeneration and Local Services,Technical Services,Supplies and Services,304221,Equipment and Materials,01/10/2018,3494271-27122275,800.28,AGGREGATE INDUSTRIES UK LTD.
Regeneration and Local Services,Technical Services,Supplies and Services,304221,Equipment and Materials,01/10/2018,3494271-27122276,631.64,AGGREGATE INDUSTRIES UK LTD.
Children and Young Peoples Services,Head of Education and Skills,Transport,230007,Contract Hire,01/10/2018,3494272-173,"1,140.00",ALANS TAXIS BARNARD CASTLE.
Children and Young Peoples Services,Head of Education and Skills,Transport,230007,Contract Hire,01/10/2018,3494272-174,"1,275.00",ALANS TAXIS BARNARD CASTLE.
Children and Young Peoples Services,Head of Education and Skills,Transport,230007,Contract Hire,01/10/2018,3494272-175,"1,320.00",ALANS TAXIS BARNARD CASTLE.
Children and Young Peoples Services,Head of Education and Skills,Transport,230007,Contract Hire,01/10/2018,3494272-179,624.00,ALANS TAXIS BARNARD CASTLE.
Resources,Legal & Democratic Services,Supplies and Services,338057,Services,01/10/2018,3494273-0000031330,"1,030.00",ALERE FORENSICS.
Children and Young Peoples Services,"Head of Early Help, Inclusion and Vulnerable Children",Supplies and Services,338078,Services,01/10/2018,3494276-07668,"1,503.60",ALL EVENTS SECURITY LTD (AES).
Children and Young Peoples Services,"Head of Early Help, Inclusion and Vulnerable Children",Supplies and Services,338078,Services,01/10/2018,3494276-07686,"1,503.60",ALL EVENTS SECURITY LTD (AES).
Children and Young Peoples Services,"Head of Early Help, Inclusion and Vulnerable Children",Supplies and Services,338078,Services,01/10/2018,3494276-07693,"1,503.60",ALL EVENTS SECURITY LTD (AES).
Regeneration and Local Services,Culture & Sport,Supplies and Services,304259,Equipment and Materials,01/10/2018,3494278-INV-SRP20160008708,"1,926.07",ALLPLAS.CO.UK LTD.
Dedicated Schools Grant,DSG Early Years Block,Transfer Payments,510030,School Children,01/10/2018,3494286-9540,840.00,ANGELA PROCTOR..
Dedicated Schools Grant,DSG Early Years Block,Transfer Payments,510030,School Children,01/10/2018,3494289-9544,606.38,ANN GRAY (CHILDMINDER).
Dedicated Schools Grant,DSG Early Years Block,Transfer Payments,510030,School Children,01/10/2018,3494290-9263,606.38,ANN ROBSON.
Dedicated Schools Grant,DSG Early Years Block,Transfer Payments,510030,School Children,01/10/2018,3494291-9543,606.38,ANN SMITH T/A ANN`S ANGELS.
Dedicated Schools Grant,DSG Early Years Block,Transfer Payments,510032,School Children,01/10/2018,3494292-9269,535.50,ANNEMARIE WARNER (CHILDMINDER).
Dedicated Schools Grant,DSG Early Years Block,Transfer Payments,510032,School Children,01/10/2018,3494293-9270,803.25,ANNMARIE HURTON.
Regeneration and Local Services,Technical Services,Supplies and Services,352001,Conference Expenses,01/10/2018,3494296-1819/957,"1,690.00",APSE.
Dedicated Schools Grant,DSG Early Years Block,Transfer Payments,510032,School Children,01/10/2018,3494303-9271,"1,606.50",AYCLIFFE DAY NURSERY.
Dedicated Schools Grant,DSG Early Years Block,Transfer Payments,510030,School Children,01/10/2018,3494303-9547,"1,291.50",AYCLIFFE DAY NURSERY.
Adult and Health Services,Public Health,Third Party Payments 4THIRD,460803,Contract Payments,01/10/2018,3494306-141007652,"17,500.00",BARNARDO SERVICES LTD.
Regeneration and Local Services,Direct Services,Third Party Payments 4THIRD,430100,Rendered by Private Contractors,01/10/2018,3494308-1811002,"14,270.50",BCE NORTHERN LTD.
Adult and Health Services,Public Health,Premises,145009,Cleaning and Domestic Supplies,01/10/2018,3494311-0000029588,"1,257.21",BETTAKLEEN LTD.
Dedicated Schools Grant,DSG Early Years Block,Transfer Payments,510032,School Children,01/10/2018,3494315-9274,"2,945.25",BISHOP AUCKLAND COLLEGE NURSERY.
Dedicated Schools Grant,DSG Early Years Block,Transfer Payments,510030,School Children,01/10/2018,3494315-9550,"9,142.88",BISHOP AUCKLAND COLLEGE NURSERY.
Dedicated Schools Grant,DSG Early Years Block,Transfer Payments,510030,School Children,01/10/2018,3494316-9551,"2,073.75",BISHOP IAN RAMSEY PRE SCHOOL.
Regeneration and Local Services,Culture & Sport,Supplies and Services,304259,Equipment and Materials,01/10/2018,3494320-0000126131,"1,907.50",BLEEP (UK) PLC.
Regeneration and Local Services,Direct Services,Third Party Payments 4THIRD,430100,Rendered by Private Contractors,01/10/2018,3494323-NEINV11388,"2,365.00",BOLTON GATE CO.
Dedicated Schools Grant,DSG Early Years Block,Transfer Payments,510032,School Children,01/10/2018,3494328-9276,"6,693.75",BRIGHT STAR NURSERY.
Dedicated Schools Grant,DSG Early Years Block,Transfer Payments,510030,School Children,01/10/2018,3494328-9554,"11,130.00",BRIGHT STAR NURSERY.
Regeneration and Local Services,Technical Services,Supplies and Services,304221,Equipment and Materials,01/10/2018,3494331-INV231104,"2,582.00",BROXAP LTD.
Dedicated Schools Grant,DSG Early Years Block,Transfer Payments,510032,School Children,01/10/2018,3494332-9277,642.60,BUTTERFLIES DAY CARE.
Dedicated Schools Grant,DSG Early Years Block,Transfer Payments,510030,School Children,01/10/2018,3494332-9555,"1,291.50",BUTTERFLIES DAY CARE.
Dedicated Schools Grant,DSG Early Years Block,Transfer Payments,510032,School Children,01/10/2018,3494333-9278,"5,622.75",BYERLEY ROAD PRE SCHOOL.
Dedicated Schools Grant,DSG Early Years Block,Transfer Payments,510030,School Children,01/10/2018,3494333-9556,"6,027.00",BYERLEY ROAD PRE SCHOOL.
Adult and Health Services,Head of Adults,Supplies and Services,338366,Services,01/10/2018,3494336-52672,"1,346.00",CARE ABILITY.
Adult and Health Services,Head of Adults,Supplies and Services,338366,Services,01/10/2018,3494336-52673,"1,201.05",CARE ABILITY.
Adult and Health Services,Head of Adults,Supplies and Services,338366,Services,01/10/2018,3494336-52674,"1,754.10",CARE ABILITY.
Regeneration and Local Services,Direct Services,Third Party Payments 4THIRD,430100,Rendered by Private Contractors,01/10/2018,3494338-1254,"1,514.00",CASTLE EDEN FABRICATIONS LTD.
Dedicated Schools Grant,DSG Early Years Block,Transfer Payments,510032,School Children,01/10/2018,3494339-9280,"3,480.75",CASTLE KINDERGARTEN LTD.
Dedicated Schools Grant,DSG Early Years Block,Transfer Payments,510030,School Children,01/10/2018,3494339-9557,"6,027.00",CASTLE KINDERGARTEN LTD.
Dedicated Schools Grant,DSG Early Years Block,Transfer Payments,510032,School Children,01/10/2018,3494340-9281,"1,874.25",CASTLE VIEW PRIVATE DAY NURSERY LTD.
Dedicated Schools Grant,DSG Early Years Block,Transfer Payments,510030,School Children,01/10/2018,3494340-9558,"19,460.00",CASTLE VIEW PRIVATE DAY NURSERY LTD.
Regeneration and Local Services,Direct Services,Third Party Payments 4THIRD,430100,Rendered by Private Contractors,01/10/2018,3494341-4740,"1,964.33",CATHEDRAL LOCK & SAFE SERVICES LTD.
Regeneration and Local Services,Direct Services,Third Party Payments 4THIRD,430100,Rendered by Private Contractors,01/10/2018,3494341-4747,"2,431.00",CATHEDRAL LOCK & SAFE SERVICES LTD.
Regeneration and Local Services,Economic Development and Housing,Premises,106082,Centrally Controlled Rep and Maint,01/10/2018,3494341-4884,580.13,CATHEDRAL LOCK & SAFE SERVICES LTD.
Dedicated Schools Grant,DSG Early Years Block,Transfer Payments,510030,School Children,01/10/2018,3494346-9559,"10,188.50",CHILTON ACADEMY.
Regeneration and Local Services,Economic Development and Housing,Supplies and Services,338035,Services,01/10/2018,3494349-804972356,639.80,CITY & GUILDS OF LONDON INSTITUTE.
Regeneration and Local Services,Technical Services,Stock A926,926004,Stock,01/10/2018,3494355-400011945,"12,996.60",CLEVELAND POTASH LTD T/A ICL FERTILIZERS.
Regeneration and Local Services,Technical Services,Stock A926,926004,Stock,01/10/2018,3494355-400011946,"10,286.40",CLEVELAND POTASH LTD T/A ICL FERTILIZERS.
Regeneration and Local Services,Culture & Sport,Supplies and Services,312010,Newspapers books and periodicals E312,01/10/2018,3494359-10554,550.40,COMMUNITY NEWSPAPER SUPPORT CIC.
Regeneration and Local Services,Culture & Sport,Third Party Payments 4THIRD,430100,Rendered by Private Contractors,01/10/2018,3494360-PS1NV03493,"24,410.89",COMPETITION LINE UK LTD T/A LIFESTYLE FITNESS.
Regeneration and Local Services,Culture & Sport,Third Party Payments 4THIRD,430100,Rendered by Private Contractors,01/10/2018,3494360-PSINV03488,"32,767.62",COMPETITION LINE UK LTD T/A LIFESTYLE FITNESS.
Regeneration and Local Services,Culture & Sport,Third Party Payments 4THIRD,430100,Rendered by Private Contractors,01/10/2018,3494360-PSINV03492,"10,388.38",COMPETITION LINE UK LTD T/A LIFESTYLE FITNESS.
Regeneration and Local Services,Culture & Sport,Third Party Payments 4THIRD,430100,Rendered by Private Contractors,01/10/2018,3494360-PSINV03494,"26,629.24",COMPETITION LINE UK LTD T/A LIFESTYLE FITNESS.
Dedicated Schools Grant,DSG Early Years Block,Transfer Payments,510032,School Children,01/10/2018,3494364-9285,"1,071.00",CONNIE TAYLOR.
Resources,Legal & Democratic Services,Supplies and Services,338025,Services,01/10/2018,3494357-S44995-01590,870.00,CO-OPERATIVE FUNERAL CARE.
Dedicated Schools Grant,DSG Early Years Block,Transfer Payments,510032,School Children,01/10/2018,3494366-9286,535.50,CORINNA KENT.
Adult and Health Services,Commissioning inc Supporting People,Third Party Payments 4THIRD,442002,Supporting People E442,01/10/2018,3494367-18/19116,"12,450.00",CORNFORTH PARTNERSHIP.
Dedicated Schools Grant,DSG Early Years Block,Transfer Payments,510032,School Children,01/10/2018,3494369-9287,"4,819.50",COUNDON & LEEHOLME EARLY YEARS CENTRE LTD.
Dedicated Schools Grant,DSG Early Years Block,Transfer Payments,510030,School Children,01/10/2018,3494369-9563,"6,318.38",COUNDON & LEEHOLME EARLY YEARS CENTRE LTD.
Dedicated Schools Grant,DSG Early Years Block,Transfer Payments,510032,School Children,01/10/2018,3494372-9288,"1,606.50",CRAGHEAD CHILDCARE CENTRE.
Dedicated Schools Grant,DSG Early Years Block,Transfer Payments,510032,School Children,01/10/2018,3494372-9289,"3,373.65",CRAGHEAD CHILDCARE CENTRE.
Dedicated Schools Grant,DSG Early Years Block,Transfer Payments,510030,School Children,01/10/2018,3494372-9564,"1,659.00",CRAGHEAD CHILDCARE CENTRE.
Dedicated Schools Grant,DSG Early Years Block,Transfer Payments,510030,School Children,01/10/2018,3494372-9565,"6,930.00",CRAGHEAD CHILDCARE CENTRE.
Dedicated Schools Grant,DSG Early Years Block,Transfer Payments,510032,School Children,01/10/2018,3494378-9290,"1,071.00",DAWN TILL DUSK CHILDCARE.
Resources,Digital and Customer Services,Vehicles Equipment Furniture and Fittings,912701,Computer equipment,01/10/2018,3494381-7402468472,"2,536.29",DELL COMPUTER CORPORATION LTD.
Resources,Digital and Customer Services,Vehicles Equipment Furniture and Fittings,912701,Computer equipment,01/10/2018,3494381-7402468526,845.43,DELL COMPUTER CORPORATION LTD.
Dedicated Schools Grant,DSG Early Years Block,Transfer Payments,510032,School Children,01/10/2018,3494399-9297,"2,945.25",EARLY LEARNERS PRIVATE DAY NURSERY.
Dedicated Schools Grant,DSG Early Years Block,Transfer Payments,510030,School Children,01/10/2018,3494399-9577,758.37,EARLY LEARNERS PRIVATE DAY NURSERY.
Dedicated Schools Grant,DSG Early Years Block,Transfer Payments,510032,School Children,01/10/2018,3494400-9351,"2,142.00",EAST DURHAM COLLEGE.
Dedicated Schools Grant,DSG Early Years Block,Transfer Payments,510030,School Children,01/10/2018,3494400-9643,"4,571.70",EAST DURHAM COLLEGE.
Dedicated Schools Grant,DSG Early Years Block,Transfer Payments,510032,School Children,01/10/2018,3494401-9298,"3,123.75",EDEN GARDEN NURSERY.
Dedicated Schools Grant,DSG Early Years Block,Transfer Payments,510030,School Children,01/10/2018,3494401-9578,"4,244.63",EDEN GARDEN NURSERY.
Regeneration and Local Services,Technical Services,Stock A926,926900,Stock in hand-Inventory system,01/10/2018,3494403-059-230721,555.00,EDMUNDSON ELECTRICAL LTD.
Regeneration and Local Services,Direct Services,Premises,108099,Service Repairs and Maintenance,01/10/2018,3494406-75859,"6,536.50",EIAT UK LTD.
Regeneration and Local Services,Direct Services,Premises,108099,Service Repairs and Maintenance,01/10/2018,3494406-75933,"7,820.00",EIAT UK LTD.
Dedicated Schools Grant,DSG Early Years Block,Transfer Payments,510032,School Children,01/10/2018,3494407-9300,535.50,ELAINE PEARSON.
Regeneration and Local Services,Economic Development and Housing,Premises,106082,Centrally Controlled Rep and Maint,01/10/2018,3494414-SI-31,"2,500.00",ENVIROROD LTD.
Regeneration and Local Services,Economic Development and Housing,Supplies and Services,344033,Telephones,01/10/2018,3494422-DERW01-0003,919.22,FREEDOM COMMUNICATIONS (UK) LTD.
Regeneration and Local Services,Culture & Sport,Supplies and Services,338047,Services,01/10/2018,3494428-CP10,599.00,GARDNER HERRITY LTD.
Dedicated Schools Grant,DSG Early Years Block,Transfer Payments,510032,School Children,01/10/2018,3494432-9303,"4,016.25",GIANT STEPS LTD.
Dedicated Schools Grant,DSG Early Years Block,Transfer Payments,510032,School Children,01/10/2018,3494433-9305,"1,338.75",GIANT STEPS LTD.
Dedicated Schools Grant,DSG Early Years Block,Transfer Payments,510032,School Children,01/10/2018,3494435-9304,"4,551.75",GIANT STEPS LTD.
Dedicated Schools Grant,DSG Early Years Block,Transfer Payments,510030,School Children,01/10/2018,3494432-9584,"5,828.55",GIANT STEPS LTD.
Dedicated Schools Grant,DSG Early Years Block,Transfer Payments,510030,School Children,01/10/2018,3494433-9586,"7,276.50",GIANT STEPS LTD.
Dedicated Schools Grant,DSG Early Years Block,Transfer Payments,510030,School Children,01/10/2018,3494434-9587,"2,338.88",GIANT STEPS LTD.
Dedicated Schools Grant,DSG Early Years Block,Transfer Payments,510030,School Children,01/10/2018,3494435-9585,"5,953.50",GIANT STEPS LTD.
Dedicated Schools Grant,DSG Early Years Block,Transfer Payments,510032,School Children,01/10/2018,3494441-9308,"2,677.50",GREEN LANE NURSERY & CHILDCARE CENTRE.
Dedicated Schools Grant,DSG Early Years Block,Transfer Payments,510030,School Children,01/10/2018,3494441-9590,"9,660.00",GREEN LANE NURSERY & CHILDCARE CENTRE.
Children and Young Peoples Services,"Head of Early Help, Inclusion and Vulnerable Children",Supplies and Services,304259,Equipment and Materials,01/10/2018,3494444-INV0172144,640.00,GV MULTIMEDIA LTD.
Resources,Digital and Customer Services,Supplies and Services,304303,Equipment and Materials,01/10/2018,3494444-INV0170008,"4,122.00",GV MULTIMEDIA LTD.
Resources,Digital and Customer Services,Supplies and Services,304303,Equipment and Materials,01/10/2018,3494444-INV0172139,"4,240.80",GV MULTIMEDIA LTD.
Resources,Digital and Customer Services,Supplies and Services,304303,Equipment and Materials,01/10/2018,3494444-INV0172146,"4,267.80",GV MULTIMEDIA LTD.
Resources,Digital and Customer Services,Stock A926,926900,Stock in hand-Inventory system,01/10/2018,3494444-INV0172140,"2,157.00",GV MULTIMEDIA LTD.
Regeneration and Local Services,Technical Services,Third Party Payments 4THIRD,430100,Rendered by Private Contractors,01/10/2018,3494445-1809\005,"13,291.45",HALL CONSTRUCTION SERVICES LTD.
Dedicated Schools Grant,DSG Early Years Block,Transfer Payments,510032,School Children,01/10/2018,3494448-9309,"2,142.00",HAPPY TIMES DAYCARE LTD.
Dedicated Schools Grant,DSG Early Years Block,Transfer Payments,510032,School Children,01/10/2018,3494325-9275,"6,158.25",HAPPYTIMES DAYCARE.
Dedicated Schools Grant,DSG Early Years Block,Transfer Payments,510030,School Children,01/10/2018,3494325-9552,"1,451.63",HAPPYTIMES DAYCARE.
Dedicated Schools Grant,DSG Early Years Block,Transfer Payments,510032,School Children,01/10/2018,3494449-9310,"1,071.00",HARTSIDE PRIMARY ACADEMY.
Dedicated Schools Grant,DSG Early Years Block,Transfer Payments,510030,School Children,01/10/2018,3494449-9592,"7,318.50",HARTSIDE PRIMARY ACADEMY.
Dedicated Schools Grant,DSG Early Years Block,Transfer Payments,510030,School Children,01/10/2018,3494451-9593,795.03,HAYLEY PENEYCAD.
Dedicated Schools Grant,DSG Early Years Block,Transfer Payments,510032,School Children,01/10/2018,3494453-9312,"1,606.50",HEATHER GWYNNETTE (CHILDMINDER).
Dedicated Schools Grant,DSG Early Years Block,Transfer Payments,510030,School Children,01/10/2018,3494455-9594,997.50,HOLLY LOUISE DARKE (CHILDMINDER).
Children and Young Peoples Services,Head of Childrens Social Care,Third Party Payments 4THIRD,425021,Rendered by Voluntary Organisations,01/10/2018,3494461-4704,"3,520.00",HOWARD HOUSE CARE LTD.
Dedicated Schools Grant,DSG Early Years Block,Transfer Payments,510032,School Children,01/10/2018,3494462-9315,"1,071.00",HOWDEN LE WEAR PRE SCHOOL LTD.
Dedicated Schools Grant,DSG Early Years Block,Transfer Payments,510030,School Children,01/10/2018,3494462-9595,"4,032.00",HOWDEN LE WEAR PRE SCHOOL LTD.
Adult and Health Services,Head of Adults,Supplies and Services,304259,Equipment and Materials,01/10/2018,3494468-SIN433916,603.99,INFORMATION & DATA NETWORK SUPPLIES LTD (IDN).
Regeneration and Local Services,Technical Services,Stock A926,926900,Stock in hand-Inventory system,01/10/2018,3494470-649064,"2,780.40",INSTARMAC GROUP PLC.
Regeneration and Local Services,Culture & Sport,Supplies and Services,304259,Equipment and Materials,01/10/2018,3494471-38731,"2,188.00",INSTYLE LED LTD.
Adult and Health Services,Head of Adults,Supplies and Services,338365,Services,01/10/2018,3494472-1821119318,520.20,INVACARE (UK) LTD.
Regeneration and Local Services,Technical Services,Construction work A908,908105,Construction work,01/10/2018,3494476-22110,"2,263.15",JACK COUPE & SONS LTD T/A COUPE LINE.
Regeneration and Local Services,Technical Services,Third Party Payments 4THIRD,430100,Rendered by Private Contractors,01/10/2018,3494476-22103,"2,510.25",JACK COUPE & SONS LTD T/A COUPE LINE.
Regeneration and Local Services,Technical Services,Third Party Payments 4THIRD,430100,Rendered by Private Contractors,01/10/2018,3494476-22105,"1,362.03",JACK COUPE & SONS LTD T/A COUPE LINE.
Dedicated Schools Grant,DSG Early Years Block,Transfer Payments,510032,School Children,01/10/2018,3494477-9317,535.50,JACQUELINE ELLIOTT (CHILDMINDER).
Dedicated Schools Grant,DSG Early Years Block,Transfer Payments,510032,School Children,01/10/2018,3494480-9318,745.78,JAN AITCHISON.
Regeneration and Local Services,Culture & Sport,Supplies and Services,338047,Services,01/10/2018,3494482-JJ/7246,"1,035.00",JANET PLATER MANAGEMENT LTD.
Dedicated Schools Grant,DSG Early Years Block,Transfer Payments,510032,School Children,01/10/2018,3494485-9321,669.38,JAYNE EALES.
Regeneration and Local Services,Direct Services,Premises,108099,Service Repairs and Maintenance,01/10/2018,3494488-17937,"3,480.00",JC MAINTENANCE SERVICES LTD.
Regeneration and Local Services,Technical Services,Premises,108099,Service Repairs and Maintenance,01/10/2018,3494488-17939,"11,223.18",JC MAINTENANCE SERVICES LTD.
Regeneration and Local Services,Culture & Sport,Premises,106082,Centrally Controlled Rep and Maint,01/10/2018,3494488-17924,"1,459.95",JC MAINTENANCE SERVICES LTD.
Regeneration and Local Services,Direct Services,Supplies and Services,304221,Equipment and Materials,01/10/2018,3494489-3307/0119545,704.02,JEWSON LTD.
Dedicated Schools Grant,DSG Early Years Block,Transfer Payments,510032,School Children,01/10/2018,3494493-9291,"1,071.00",JOANNE HARDY T/A DAYBREAK NURSERY.
Dedicated Schools Grant,DSG Early Years Block,Transfer Payments,510030,School Children,01/10/2018,3494493-9566,"4,410.00",JOANNE HARDY T/A DAYBREAK NURSERY.
Dedicated Schools Grant,DSG Early Years Block,Transfer Payments,510030,School Children,01/10/2018,3494503-9611,606.38,KAREN DEAVILLE (CHILDMINDER).
Dedicated Schools Grant,DSG Early Years Block,Transfer Payments,510032,School Children,01/10/2018,3494506-9324,"2,142.00",KELLOE PHOENIX CENTRE (CHILDCARE).
Dedicated Schools Grant,DSG Early Years Block,Transfer Payments,510030,School Children,01/10/2018,3494506-9612,"2,903.25",KELLOE PHOENIX CENTRE (CHILDCARE).
Regeneration and Local Services,Culture & Sport,Supplies and Services,384199,Miscellaneous Expenses,01/10/2018,3494508-1-6/9/18,500.00,KELLY-ABBOTT DANCE THEATRE.
Regeneration and Local Services,Direct Services,Supplies and Services,304259,Equipment and Materials,01/10/2018,3494509-106516,"1,034.00",KERNOCK PARK PLANTS LTD.
Dedicated Schools Grant,DSG Early Years Block,Transfer Payments,510032,School Children,01/10/2018,3494510-9325,535.50,KERRY DODGSON.
Dedicated Schools Grant,DSG Early Years Block,Transfer Payments,510030,School Children,01/10/2018,3494510-9614,622.13,KERRY DODGSON.
Dedicated Schools Grant,DSG Early Years Block,Transfer Payments,510032,School Children,01/10/2018,3494512-9326,"2,409.75",KIDZONE.
Dedicated Schools Grant,DSG Early Years Block,Transfer Payments,510030,School Children,01/10/2018,3494512-9615,"10,977.75",KIDZONE.
Dedicated Schools Grant,DSG Early Years Block,Transfer Payments,510030,School Children,01/10/2018,3494513-9616,"3,221.40",KIRK MERRINGTON PRE SCHOOL.
Dedicated Schools Grant,DSG Early Years Block,Transfer Payments,510032,School Children,01/10/2018,3494514-9328,803.25,KIRKLANDS DAY NURSERY.
Dedicated Schools Grant,DSG Early Years Block,Transfer Payments,510030,School Children,01/10/2018,3494514-9617,"5,651.10",KIRKLANDS DAY NURSERY.
Dedicated Schools Grant,DSG Early Years Block,Transfer Payments,510032,School Children,01/10/2018,3494519-9331,"4,284.00",LEADGATE CHILD CENTRE LTD.
Dedicated Schools Grant,DSG Early Years Block,Transfer Payments,510030,School Children,01/10/2018,3494519-9619,"4,252.50",LEADGATE CHILD CENTRE LTD.
Dedicated Schools Grant,DSG Early Years Block,Transfer Payments,510030,School Children,01/10/2018,3494528-9621,508.50,LINDSAY PETERS.
Dedicated Schools Grant,DSG Early Years Block,Transfer Payments,510030,School Children,01/10/2018,3494529-9622,790.54,LISA KIME T/A TWINKLETIME DAYCARE.
Dedicated Schools Grant,DSG Early Years Block,Transfer Payments,510032,School Children,01/10/2018,3494531-9335,"4,284.00",LITTLE ACORNS NORTH EAST LTD.
Dedicated Schools Grant,DSG Early Years Block,Transfer Payments,510030,School Children,01/10/2018,3494531-9624,"3,189.38",LITTLE ACORNS NORTH EAST LTD.
Dedicated Schools Grant,DSG Early Years Block,Transfer Payments,510032,School Children,01/10/2018,3494532-9336,"2,677.50",LITTLE CUBS DAY NURSERY.
Dedicated Schools Grant,DSG Early Years Block,Transfer Payments,510030,School Children,01/10/2018,3494532-9625,"5,865.75",LITTLE CUBS DAY NURSERY.
Dedicated Schools Grant,DSG Early Years Block,Transfer Payments,510032,School Children,01/10/2018,3494533-9337,"3,748.50",LITTLE STARS EARLY YEARS.
Dedicated Schools Grant,DSG Early Years Block,Transfer Payments,510030,School Children,01/10/2018,3494533-9626,"3,917.55",LITTLE STARS EARLY YEARS.
Dedicated Schools Grant,DSG Early Years Block,Transfer Payments,510032,School Children,01/10/2018,3494534-9339,"5,355.00",LITTLE WAVES DAY NURSERY LTD.
Dedicated Schools Grant,DSG Early Years Block,Transfer Payments,510030,School Children,01/10/2018,3494534-9628,"8,335.30",LITTLE WAVES DAY NURSERY LTD.
Dedicated Schools Grant,DSG Early Years Block,Transfer Payments,510032,School Children,01/10/2018,3494536-9340,803.25,LORNA MARIE MOORE.
Dedicated Schools Grant,DSG Early Years Block,Transfer Payments,510030,School Children,01/10/2018,3494537-9630,688.50,LORRAINE FORSTER.
Regeneration and Local Services,Culture & Sport,Premises,108099,Service Repairs and Maintenance,01/10/2018,3494540-5647,848.60,MAKEPEACE MOTORS.
Resources,Legal & Democratic Services,Supplies and Services,372009,Subscriptions E372,01/10/2018,3494547-50133387,510.00,MARSTON BOOK SERVICES LTD.
Regeneration and Local Services,Culture & Sport,Supplies and Services,338047,Services,01/10/2018,3494553-FBC732,600.00,MEDIA EXCENTRIQUE.
Adult and Health Services,Head of Adults,Third Party Payments 4THIRD,478151,Purchase of Care,01/10/2018,3494556-03327713,"7,715.45",MENCAP.
Regeneration and Local Services,Culture & Sport,Employees,080030,Agency Staff,01/10/2018,3494557-SHAC201801-3/7/18,937.50,MICHAEL JOHNSON..
Regeneration and Local Services,Culture & Sport,Employees,080030,Agency Staff,01/10/2018,3494557-SHAC201801SEPT18,"1,025.00",MICHAEL JOHNSON..
Children and Young Peoples Services,Head of Education and Skills,Supplies and Services,384199,Miscellaneous Expenses,01/10/2018,3494561-2599,"1,375.00",MID NITE EXPRESS.
Regeneration and Local Services,Culture & Sport,Supplies and Services,324001,Provisions E324,01/10/2018,3494568-904778468,"1,183.52",MOLSON COORS BREWING COMPANY (UK) LTD.
Regeneration and Local Services,Transport and Contracted Services,Construction work A908,908105,Construction work,01/10/2018,3494569-IN00397594,"9,971.00",MOTT MACDONALD LTD.
Dedicated Schools Grant,DSG Early Years Block,Transfer Payments,510032,School Children,01/10/2018,3494581-9294,"1,606.50",MRS DENISE MCKENNA.
Dedicated Schools Grant,DSG Early Years Block,Transfer Payments,510032,School Children,01/10/2018,3494582-9295,535.50,MRS DIANE CAMPBELL.
Regeneration and Local Services,Spatial Policy Planning Assets & Environment,Supplies and Services,338027,Services,01/10/2018,3494599-710,"1,200.00",NAREC DISTRIBUTED ENERGY LTD.
Dedicated Schools Grant,DSG Early Years Block,Transfer Payments,510032,School Children,01/10/2018,3494600-9343,"2,142.00",NATALIE WILE.
Dedicated Schools Grant,DSG Early Years Block,Transfer Payments,510030,School Children,01/10/2018,3494600-9636,"1,036.88",NATALIE WILE.
Dedicated Schools Grant,DSG Early Years Block,Transfer Payments,510032,School Children,01/10/2018,3494604-9344,"3,213.00",NEW BEGINNINGS (MOORSIDE) CO LTD.
Dedicated Schools Grant,DSG Early Years Block,Transfer Payments,510030,School Children,01/10/2018,3494604-9637,"4,176.90",NEW BEGINNINGS (MOORSIDE) CO LTD.
Regeneration and Local Services,Culture & Sport,Supplies and Services,342023,Computers and Communications,01/10/2018,3494605-4628,"4,762.00",NEWLANDMEDIA LTD.
Regeneration and Local Services,Technical Services,Supplies and Services,336005,Advertising E336,01/10/2018,3494607-26336996,507.78,NEWSQUEST (YORKSHIRE & NORTH EAST) LTD.
Dedicated Schools Grant,DSG Early Years Block,Transfer Payments,510032,School Children,01/10/2018,3494609-9345,535.50,NICOLA JANE ATKINSON (CHILD MINDER).
Dedicated Schools Grant,DSG High Needs Block,Supplies and Services,304259,Equipment and Materials,01/10/2018,3494610-103260,"5,250.00",NISAI VIRTUAL ACADEMY LTD.
Regeneration and Local Services,Technical Services,Supplies and Services,304221,Equipment and Materials,01/10/2018,3494613-176776,584.00,NORTH EAST CONCRETE LTD.
Regeneration and Local Services,Culture & Sport,Supplies and Services,384302,Miscellaneous Expenses,01/10/2018,3494618-4100629691,500.00,NORTHPENS WRITING GROUP.
Regeneration and Local Services,Direct Services,Supplies and Services,304221,Equipment and Materials,01/10/2018,3494619-OP/I110404,"1,082.50",NORTHSTONE (NI) LTD T/A CUBIS SYSTEMS.
Dedicated Schools Grant,DSG Early Years Block,Transfer Payments,510032,School Children,01/10/2018,3494620-9349,535.50,NORTHUMBRIAN TRUST DAY NURSERIES LTD.
Dedicated Schools Grant,DSG Early Years Block,Transfer Payments,510030,School Children,01/10/2018,3494620-9641,"3,421.69",NORTHUMBRIAN TRUST DAY NURSERIES LTD.
Dedicated Schools Grant,DSG Early Years Block,Transfer Payments,510032,School Children,01/10/2018,3494621-9346,"3,480.75",NURSERY TIME.
Dedicated Schools Grant,DSG Early Years Block,Transfer Payments,510030,School Children,01/10/2018,3494621-9638,"12,699.75",NURSERY TIME.
Regeneration and Local Services,Direct Services,Transport,215005,Running Costs of Vehicles,01/10/2018,3494622-356035,"5,477.51",OIL NRG LTD.
Dedicated Schools Grant,DSG Early Years Block,Transfer Payments,510030,School Children,01/10/2018,3494623-9639,"2,252.25",OLD BRIDGE NURSERY.
Regeneration and Local Services,Direct Services,Third Party Payments 4THIRD,430100,Rendered by Private Contractors,01/10/2018,3494627-1717,"6,531.43",PARAMOUNT CEILINGS & PARTITIONS.
Regeneration and Local Services,Technical Services,Stock A926,926900,Stock in hand-Inventory system,01/10/2018,3494628-XL227979,"1,385.28",PARK ELECTRICAL DISTRIBUTORS LTD.
Regeneration and Local Services,Technical Services,Stock A926,926900,Stock in hand-Inventory system,01/10/2018,3494628-XL227981,"4,702.30",PARK ELECTRICAL DISTRIBUTORS LTD.
Regeneration and Local Services,Technical Services,Stock A926,926900,Stock in hand-Inventory system,01/10/2018,3494628-XL228161,"1,469.00",PARK ELECTRICAL DISTRIBUTORS LTD.
Regeneration and Local Services,Technical Services,Stock A926,926900,Stock in hand-Inventory system,01/10/2018,3494628-XL228202,"1,954.71",PARK ELECTRICAL DISTRIBUTORS LTD.
Regeneration and Local Services,Technical Services,Stock A926,926900,Stock in hand-Inventory system,01/10/2018,3494628-XL228209,"1,110.00",PARK ELECTRICAL DISTRIBUTORS LTD.
Dedicated Schools Grant,DSG Early Years Block,Transfer Payments,510030,School Children,01/10/2018,3494631-9640,580.65,PAULA PARK.
Regeneration and Local Services,Technical Services,Third Party Payments 4THIRD,430100,Rendered by Private Contractors,01/10/2018,3494640-5218,"5,673.01",PINKNEY BUILDING CONTRACTORS LTD.
Regeneration and Local Services,Technical Services,Third Party Payments 4THIRD,430100,Rendered by Private Contractors,01/10/2018,3494640-5219,"5,673.01",PINKNEY BUILDING CONTRACTORS LTD.
Regeneration and Local Services,Technical Services,Third Party Payments 4THIRD,430100,Rendered by Private Contractors,01/10/2018,3494640-5222,"4,524.05",PINKNEY BUILDING CONTRACTORS LTD.
Regeneration and Local Services,Technical Services,Third Party Payments 4THIRD,430100,Rendered by Private Contractors,01/10/2018,3494640-5223,"4,398.38",PINKNEY BUILDING CONTRACTORS LTD.
Regeneration and Local Services,Technical Services,Third Party Payments 4THIRD,430100,Rendered by Private Contractors,01/10/2018,3494640-5230,"5,673.01",PINKNEY BUILDING CONTRACTORS LTD.
Regeneration and Local Services,Technical Services,Third Party Payments 4THIRD,430100,Rendered by Private Contractors,01/10/2018,3494640-5231,"5,107.51",PINKNEY BUILDING CONTRACTORS LTD.
Regeneration and Local Services,Technical Services,Third Party Payments 4THIRD,430100,Rendered by Private Contractors,01/10/2018,3494640-5234,"5,673.01",PINKNEY BUILDING CONTRACTORS LTD.
Dedicated Schools Grant,DSG Early Years Block,Transfer Payments,510032,School Children,01/10/2018,3494642-9350,"2,945.25",PLAYDAY NURSERY.
Dedicated Schools Grant,DSG Early Years Block,Transfer Payments,510030,School Children,01/10/2018,3494642-9642,"9,993.38",PLAYDAY NURSERY.
Regeneration and Local Services,Direct Services,Premises,108099,Service Repairs and Maintenance,01/10/2018,3494645-10593,600.00,PREMIER CELL FIT T/A LIVEWIRE GATES & DOORS.
Dedicated Schools Grant,DSG Early Years Block,Transfer Payments,510030,School Children,01/10/2018,3494653-9644,"2,310.00",RAINBOW NURSERY DURHAM HIGH SCHOOL.
Dedicated Schools Grant,DSG Early Years Block,Transfer Payments,510032,School Children,01/10/2018,3494654-9352,"5,890.50",RAINBOW NURSERY LTD (MIDDLESTONE MOOR).
Dedicated Schools Grant,DSG Early Years Block,Transfer Payments,510030,School Children,01/10/2018,3494654-9645,"17,220.00",RAINBOW NURSERY LTD (MIDDLESTONE MOOR).
Adult and Health Services,Head of Adults,Supplies and Services,308011,Furniture,01/10/2018,3494660-CLG2088/A,939.00,RENDLES HOUSE FURNISHER.
Dedicated Schools Grant,DSG Early Years Block,Transfer Payments,510030,School Children,01/10/2018,3494661-9646,"16,789.50",RIBBON ACADEMY TRUST.
Dedicated Schools Grant,DSG Early Years Block,Transfer Payments,510032,School Children,01/10/2018,3494662-9355,"7,229.25",RIBBON DAYCARE.
Dedicated Schools Grant,DSG Early Years Block,Transfer Payments,510030,School Children,01/10/2018,3494662-9647,"10,217.20",RIBBON DAYCARE.
Regeneration and Local Services,Technical Services,Stock A926,926900,Stock in hand-Inventory system,01/10/2018,3494664-RSIN0273496,"1,035.00",RIGBY TAYLOR LTD.
Dedicated Schools Grant,DSG Early Years Block,Transfer Payments,510032,School Children,01/10/2018,3494678-9356,535.50,SARAH CAMPBELL (CHILDMINDER).
Dedicated Schools Grant,DSG Early Years Block,Transfer Payments,510032,School Children,01/10/2018,3494681-9359,535.50,SARAH KHARKO (SPEECH & DRAMA).
Dedicated Schools Grant,DSG Early Years Block,Transfer Payments,510032,School Children,01/10/2018,3494687-9361,"5,087.25",SEAHAM HOUSE DAY NURSERY.
Dedicated Schools Grant,DSG Early Years Block,Transfer Payments,510030,School Children,01/10/2018,3494687-9652,"6,552.00",SEAHAM HOUSE DAY NURSERY.
Dedicated Schools Grant,DSG Early Years Block,Transfer Payments,510032,School Children,01/10/2018,3494689-9362,"1,606.50",SEASIDE LANE NURSERY.
Dedicated Schools Grant,DSG Early Years Block,Transfer Payments,510030,School Children,01/10/2018,3494689-9653,"1,701.00",SEASIDE LANE NURSERY.
Dedicated Schools Grant,DSG Early Years Block,Transfer Payments,510032,School Children,01/10/2018,3494692-9363,535.50,SHARON CLARKE.
Adult and Health Services,Commissioning inc Supporting People,Supplies and Services,338089,Services,01/10/2018,3494697-6327,"3,402.00",SIGNIS LTD.
Dedicated Schools Grant,DSG Early Years Block,Transfer Payments,510032,School Children,01/10/2018,3494699-9365,"1,071.00",SMALL WORLD DAY NURSERY.
Dedicated Schools Grant,DSG Early Years Block,Transfer Payments,510030,School Children,01/10/2018,3494699-9657,"3,726.45",SMALL WORLD DAY NURSERY.
Regeneration and Local Services,Economic Development and Housing,Supplies and Services,338066,Services,01/10/2018,3494701-13734,"18,935.00",SOUTH DURHAM ENTERPRISE AGENCY LTD.
Regeneration and Local Services,Spatial Policy Planning Assets & Environment,Premises,106082,Centrally Controlled Rep and Maint,01/10/2018,3494702-IN004000,"1,340.00",SPAANS BABCOCK LTD.
Dedicated Schools Grant,DSG Early Years Block,Transfer Payments,510032,School Children,01/10/2018,3494705-9338,"1,874.25",ST BEDES PLAYGROUP.
Dedicated Schools Grant,DSG Early Years Block,Transfer Payments,510030,School Children,01/10/2018,3494705-9627,"2,047.50",ST BEDES PLAYGROUP.
Dedicated Schools Grant,DSG Early Years Block,Transfer Payments,510032,School Children,01/10/2018,3494706-9366,"2,677.50",STANLEY LEARNING PARTNERSHIP.
Dedicated Schools Grant,DSG Early Years Block,Transfer Payments,510032,School Children,01/10/2018,3494709-9368,963.90,STEPHENSON WAY COMMUNITY PRIMARY SCHOOL.
Dedicated Schools Grant,DSG Early Years Block,Transfer Payments,510030,School Children,01/10/2018,3494709-9660,"6,835.50",STEPHENSON WAY COMMUNITY PRIMARY SCHOOL.
Dedicated Schools Grant,DSG Early Years Block,Transfer Payments,510030,School Children,01/10/2018,3494710-9661,"7,478.63",STEPPING STONES COOP NURSERY LTD.
Dedicated Schools Grant,DSG Early Years Block,Transfer Payments,510032,School Children,01/10/2018,3494711-9370,535.50,STEPPING STONES DAY NURSERY (DURHAM).
Dedicated Schools Grant,DSG Early Years Block,Transfer Payments,510030,School Children,01/10/2018,3494711-9662,"1,433.25",STEPPING STONES DAY NURSERY (DURHAM).
Regeneration and Local Services,Technical Services,Supplies and Services,304221,Equipment and Materials,01/10/2018,3494713-109781,532.56,STONEGRAVE AGGREGATES LTD.
Dedicated Schools Grant,DSG Early Years Block,Transfer Payments,510032,School Children,01/10/2018,3494716-9371,"3,473.10",SUNSHINE DAY NURSERY.
Dedicated Schools Grant,DSG Early Years Block,Transfer Payments,510032,School Children,01/10/2018,3494717-9372,"4,819.50",SUNSHINE DAY NURSERY.
Dedicated Schools Grant,DSG Early Years Block,Transfer Payments,510032,School Children,01/10/2018,3494718-9373,"3,748.50",SUNSHINE DAY NURSERY.
Dedicated Schools Grant,DSG Early Years Block,Transfer Payments,510030,School Children,01/10/2018,3494716-9664,"10,363.50",SUNSHINE DAY NURSERY.
Dedicated Schools Grant,DSG Early Years Block,Transfer Payments,510030,School Children,01/10/2018,3494717-9665,"6,174.00",SUNSHINE DAY NURSERY.
Dedicated Schools Grant,DSG Early Years Block,Transfer Payments,510030,School Children,01/10/2018,3494718-9666,"7,533.75",SUNSHINE DAY NURSERY.
Regeneration and Local Services,Direct Services,Third Party Payments 4THIRD,430100,Rendered by Private Contractors,01/10/2018,3494723-2832300,504.00,T CROSSLING & CO LTD.
Regeneration and Local Services,Technical Services,Supplies and Services,304221,Equipment and Materials,01/10/2018,3494725-9038778189,574.50,TARMAC TRADING LTD.
Regeneration and Local Services,Technical Services,Supplies and Services,304221,Equipment and Materials,01/10/2018,3494725-9038785893,686.00,TARMAC TRADING LTD.
Regeneration and Local Services,Technical Services,Supplies and Services,304221,Equipment and Materials,01/10/2018,3494725-9038800248,611.20,TARMAC TRADING LTD.
Regeneration and Local Services,Technical Services,Stock A926,926900,Stock in hand-Inventory system,01/10/2018,3494725-9038786498,700.49,TARMAC TRADING LTD.
Dedicated Schools Grant,DSG High Needs Block,Third Party Payments 4THIRD,410037,Rendered by Other Local Authorities,01/10/2018,3494730-200036,"57,649.61",THE CEDARS ACADEMY TRUST.
Dedicated Schools Grant,DSG High Needs Block,Third Party Payments 4THIRD,410037,Rendered by Other Local Authorities,01/10/2018,3494730-200037,"34,855.38",THE CEDARS ACADEMY TRUST.
Dedicated Schools Grant,DSG High Needs Block,Third Party Payments 4THIRD,410037,Rendered by Other Local Authorities,01/10/2018,3494730-200038,"41,955.55",THE CEDARS ACADEMY TRUST.
Dedicated Schools Grant,DSG Early Years Block,Transfer Payments,510032,School Children,01/10/2018,3494732-9375,"6,540.75",THE LAURELS CHILD CARE COMPANY LTD.
Dedicated Schools Grant,DSG Early Years Block,Transfer Payments,510030,School Children,01/10/2018,3494732-9668,"2,798.25",THE LAURELS CHILD CARE COMPANY LTD.
Dedicated Schools Grant,DSG Early Years Block,Transfer Payments,510032,School Children,01/10/2018,3494733-9376,"5,890.50",THE NURSERY.
Dedicated Schools Grant,DSG Early Years Block,Transfer Payments,510030,School Children,01/10/2018,3494733-9669,"4,147.50",THE NURSERY.
Regeneration and Local Services,Economic Development and Housing,Supplies and Services,344033,Telephones,01/10/2018,3494734-004140512,952.42,THE PHONE CO-OP.
Dedicated Schools Grant,DSG Early Years Block,Transfer Payments,510032,School Children,01/10/2018,3494739-9377,"5,221.13",TILLY MINTS CHERUBS DAY NURSERY LTD.
Dedicated Schools Grant,DSG Early Years Block,Transfer Payments,510030,School Children,01/10/2018,3494739-9670,"12,027.75",TILLY MINTS CHERUBS DAY NURSERY LTD.
Dedicated Schools Grant,DSG Early Years Block,Transfer Payments,510032,School Children,01/10/2018,3494741-9316,"5,890.50",TM NURSERY ENTERPRISES LTD T/A JACK IN THE BOX DAYCARE.
Dedicated Schools Grant,DSG Early Years Block,Transfer Payments,510030,School Children,01/10/2018,3494741-9596,"7,140.00",TM NURSERY ENTERPRISES LTD T/A JACK IN THE BOX DAYCARE.
Dedicated Schools Grant,DSG Early Years Block,Transfer Payments,510032,School Children,01/10/2018,3494743-9378,"5,355.00",TOTS `R` US.
Dedicated Schools Grant,DSG Early Years Block,Transfer Payments,510030,School Children,01/10/2018,3494743-9672,"3,050.25",TOTS `R` US.
Dedicated Schools Grant,DSG Early Years Block,Transfer Payments,510032,School Children,01/10/2018,3494748-9380,535.50,TRIMDON`S LITTLE TYKES LTD.
Dedicated Schools Grant,DSG Early Years Block,Transfer Payments,510030,School Children,01/10/2018,3494748-9676,614.25,TRIMDON`S LITTLE TYKES LTD.
Regeneration and Local Services,Direct Services,Supplies and Services,338045,Services,01/10/2018,3494749-246734,"3,842.64",TRINITY CHAMBERS.
Regeneration and Local Services,Transport and Contracted Services,Supplies and Services,304245,Equipment and Materials,01/10/2018,3494751-3IN/10323934,"2,630.00",TUNSTALL HEALTHCARE (UK) LTD.
Regeneration and Local Services,Technical Services,Supplies and Services,304221,Equipment and Materials,01/10/2018,3494755-191355,"1,089.00",TYNEDALE ROADSTONE LTD.
Regeneration and Local Services,Technical Services,Supplies and Services,304221,Equipment and Materials,01/10/2018,3494755-191356,"1,164.64",TYNEDALE ROADSTONE LTD.
Regeneration and Local Services,Technical Services,Supplies and Services,304221,Equipment and Materials,01/10/2018,3494755-191357,754.88,TYNEDALE ROADSTONE LTD.
Dedicated Schools Grant,DSG Early Years Block,Transfer Payments,510032,School Children,01/10/2018,3494759-9296,535.50,UNIVERSITY OF DURHAM DAY NURSERY.
Dedicated Schools Grant,DSG Early Years Block,Transfer Payments,510030,School Children,01/10/2018,3494759-9576,"5,253.50",UNIVERSITY OF DURHAM DAY NURSERY.
Dedicated Schools Grant,DSG Early Years Block,Transfer Payments,510032,School Children,01/10/2018,3494762-9381,"3,480.75",USHAW MOOR DAYCARE.
Dedicated Schools Grant,DSG Early Years Block,Transfer Payments,510030,School Children,01/10/2018,3494763-9678,"4,252.50",USHAW MOOR PRE SCHOOL.
Dedicated Schools Grant,DSG Early Years Block,Transfer Payments,510030,School Children,01/10/2018,3494766-9679,"3,307.50",VICTORIA LANE ACADEMY.
Dedicated Schools Grant,DSG Early Years Block,Transfer Payments,510032,School Children,01/10/2018,3494776-9383,"1,338.75",WHEATLEY HILL COMMUNITY NURSERY LTD.
Dedicated Schools Grant,DSG Early Years Block,Transfer Payments,510030,School Children,01/10/2018,3494776-9680,"4,735.50",WHEATLEY HILL COMMUNITY NURSERY LTD.
Dedicated Schools Grant,DSG Early Years Block,Transfer Payments,510030,School Children,01/10/2018,3494778-9681,"5,740.00",WITTON GILBERT PRE SCHOOL.
Dedicated Schools Grant,DSG Early Years Block,Transfer Payments,510032,School Children,01/10/2018,3494783-9384,"2,677.50",YORK HOUSE NURSERY.
Dedicated Schools Grant,DSG Early Years Block,Transfer Payments,510030,School Children,01/10/2018,3494783-9682,"9,261.00",YORK HOUSE NURSERY.
Children and Young Peoples Services,Head of Education and Skills,Transport,230007,Contract Hire,02/10/2018,3494787-1,882.00,A & C TAXIS.
Regeneration and Local Services,Direct Services,Third Party Payments 4THIRD,430100,Rendered by Private Contractors,02/10/2018,3494788-39255699-61,"4,277.20",ADT FIRE & SECURITY PLC.
Regeneration and Local Services,Direct Services,Transport,210057,Repair and Maintenance of Vehicles,02/10/2018,3494789-IV1035795,695.00,ADVANCED RADIATORS LTD.
Regeneration and Local Services,Technical Services,Supplies and Services,304221,Equipment and Materials,02/10/2018,3494790-27127584,732.96,AGGREGATE INDUSTRIES UK LTD.
Children and Young Peoples Services,Head of Education and Skills,Transport,230008,Contract Hire,02/10/2018,3494791-38895864,"1,587.50",ALAN SOUTHERN T/A ALANS TAXIS PELTON FELL.
Regeneration and Local Services,Culture & Sport,Supplies and Services,384199,Miscellaneous Expenses,02/10/2018,3494795-2,"1,120.00",ANDREW FRENCH (THEATRE CONTRACTOR).
Children and Young Peoples Services,Head of Education and Skills,Transport,230007,Contract Hire,02/10/2018,3494802-DCC11SEPT18,"1,520.00",ATLAS TAXIS BISHOP AUCKLAND.
Adult and Health Services,Head of Adults,Transport,230005,Contract Hire,02/10/2018,3494802-DCC2SEPT18,"1,600.00",ATLAS TAXIS BISHOP AUCKLAND.
Children and Young Peoples Services,Head of Education and Skills,Transport,230008,Contract Hire,02/10/2018,3494804-28918,"1,520.00",AVALON TAXIS.
Children and Young Peoples Services,Head of Education and Skills,Transport,230016,Contract Hire,02/10/2018,3494806-SMITH2/SEPTEMBER18,507.00,BEELINE PRIVATE HIRE.
Children and Young Peoples Services,Head of Education and Skills,Transport,230008,Contract Hire,02/10/2018,3494806-SMITH1/SEPTEMBER18,"1,365.00",BEELINE PRIVATE HIRE.
Regeneration and Local Services,Direct Services,Transport,210057,Repair and Maintenance of Vehicles,02/10/2018,3494807-35154327,520.88,BELL TRUCK SALES LTD T/A BELL TRUCK & VAN.
Regeneration and Local Services,Culture & Sport,Supplies and Services,324117,Provisions E324,02/10/2018,3494810-82480963,616.70,BIDFOOD.
Regeneration and Local Services,Direct Services,Transport,210057,Repair and Maintenance of Vehicles,02/10/2018,3494811-52306,507.85,BJ LUKE NIELSEN DIRECT.
Children and Young Peoples Services,Head of Education and Skills,Transport,230008,Contract Hire,02/10/2018,3494813-7023SEPT2018,"2,820.00",BOBBY DOVE.
Adult and Health Services,Head of Adults,Transport,230005,Contract Hire,02/10/2018,3494813-7071,"1,025.00",BOBBY DOVE.
Children and Young Peoples Services,Head of Education and Skills,Transport,230008,Contract Hire,02/10/2018,3494820-BIL0138,900.00,CA MUSGROVE.
Regeneration and Local Services,Direct Services,Transport,210057,Repair and Maintenance of Vehicles,02/10/2018,3494826-228418,507.51,CARRS BILLINGTON AGRICULTURE.
Children and Young Peoples Services,Head of Education and Skills,Transport,230007,Contract Hire,02/10/2018,3494834-20-5222,"1,140.00",CHAPMAN TRAVEL.
Regeneration and Local Services,Culture & Sport,Supplies and Services,304259,Equipment and Materials,02/10/2018,3494836-987,"1,244.80",CHRISTOPHER HENRY T/A WILDWOOD CUMBRIA.
Children and Young Peoples Services,Head of Education and Skills,Transport,230008,Contract Hire,02/10/2018,3494838-012,"3,021.00",CJ COACHES.
Children and Young Peoples Services,Head of Education and Skills,Transport,230008,Contract Hire,02/10/2018,3494838-013,"2,584.00",CJ COACHES.
Regeneration and Local Services,Technical Services,Stock A926,926004,Stock,02/10/2018,3494841-400012052,878.40,CLEVELAND POTASH LTD T/A ICL FERTILIZERS.
Regeneration and Local Services,Direct Services,Third Party Payments 4THIRD,430100,Rendered by Private Contractors,02/10/2018,3494844-8017,"11,500.00",COMMERCIAL COVERINGS LTD.
Children and Young Peoples Services,Head of Education and Skills,Transport,230008,Contract Hire,02/10/2018,3494847-1494,"1,656.00",CONNORS MINI BUSES.*
Children and Young Peoples Services,Head of Education and Skills,Transport,230008,Contract Hire,02/10/2018,3494847-1495,"1,764.00",CONNORS MINI BUSES.*
Children and Young Peoples Services,Head of Education and Skills,Transport,230008,Contract Hire,02/10/2018,3494847-1496,"1,692.00",CONNORS MINI BUSES.*
Children and Young Peoples Services,Head of Education and Skills,Transport,230008,Contract Hire,02/10/2018,3494847-1497,"2,160.00",CONNORS MINI BUSES.*
Children and Young Peoples Services,Head of Education and Skills,Transport,230007,Contract Hire,02/10/2018,3494851-DCC/4003/SEPT18,"1,638.00",COUNTY COACHES.
Children and Young Peoples Services,Head of Education and Skills,Transport,230007,Contract Hire,02/10/2018,3494851-DCC/4118/SEPT18,"4,248.00",COUNTY COACHES.
Children and Young Peoples Services,Head of Education and Skills,Transport,230007,Contract Hire,02/10/2018,3494853-108276,"1,885.32",CROFT BUSINESS SERVICES (UK) LTD T/A CROFT TAXIS.
Children and Young Peoples Services,Head of Education and Skills,Transport,230008,Contract Hire,02/10/2018,3494853-108282,"4,289.76",CROFT BUSINESS SERVICES (UK) LTD T/A CROFT TAXIS.
Children and Young Peoples Services,Head of Education and Skills,Transport,230008,Contract Hire,02/10/2018,3494853-108283,"1,797.66",CROFT BUSINESS SERVICES (UK) LTD T/A CROFT TAXIS.
Children and Young Peoples Services,Head of Education and Skills,Transport,230008,Contract Hire,02/10/2018,3494853-108293,641.75,CROFT BUSINESS SERVICES (UK) LTD T/A CROFT TAXIS.
Adult and Health Services,Head of Adults,Transport,230005,Contract Hire,02/10/2018,3494853-108285,"1,825.40",CROFT BUSINESS SERVICES (UK) LTD T/A CROFT TAXIS.
Children and Young Peoples Services,Head of Education and Skills,Transport,230008,Contract Hire,02/10/2018,3494854-38,"1,332.00",CUTHBERT CABS.
Children and Young Peoples Services,Head of Education and Skills,Transport,230007,Contract Hire,02/10/2018,3494858-12,760.00,D CROOK T/A CK TAXIS.
Children and Young Peoples Services,Head of Education and Skills,Transport,230008,Contract Hire,02/10/2018,3494859-291,"1,044.00",DA TRAVEL.
Regeneration and Local Services,Direct Services,Third Party Payments 4THIRD,430101,Rendered by Private Contractors,02/10/2018,3494864-IV1036054,"1,356.43",DIRECT TYRE MANAGEMENT LTD (DTM).
Children and Young Peoples Services,Head of Education and Skills,Transport,230006,Contract Hire,02/10/2018,3494877-N220/SEPT/18,764.64,EMMA RAMSHAW T/A EMMA`S CABS.
Regeneration and Local Services,Direct Services,Third Party Payments 4THIRD,430100,Rendered by Private Contractors,02/10/2018,3494894-10733,"13,207.50",FROSTREE LTD.
Children and Young Peoples Services,Head of Education and Skills,Transport,230007,Contract Hire,02/10/2018,3494895-8,"1,311.00",G ANGHEL T/A A TAXI.
Children and Young Peoples Services,Head of Education and Skills,Supplies and Services,338027,Services,02/10/2018,3494896-110007779,"5,140.00",GATESHEAD COUNCIL.
Adult and Health Services,Head of Adults,Employees,080025,Agency Staff,02/10/2018,3494898-1068161,"180,280.37",GEOMETRIC RESULTS INTERNATIONAL.
Children and Young Peoples Services,Head of Education and Skills,Transport,230008,Contract Hire,02/10/2018,3494901-000047,"1,620.00",GP TAXIS.
Children and Young Peoples Services,Head of Education and Skills,Transport,230008,Contract Hire,02/10/2018,3494902-01,"1,805.00",GRAHAM WILLIAMS T/A BUS 2 MINIBUS HIRE.
Children and Young Peoples Services,Head of Education and Skills,Transport,230008,Contract Hire,02/10/2018,3494902-12,"1,425.00",GRAHAM WILLIAMS T/A BUS 2 MINIBUS HIRE.
Children and Young Peoples Services,Head of Childrens Social Care,Supplies and Services,384199,Miscellaneous Expenses,02/10/2018,3494904-10922,665.70,GS SOCIAL CARE SOLUTIONS LTD.
Children and Young Peoples Services,Head of Childrens Social Care,Supplies and Services,384199,Miscellaneous Expenses,02/10/2018,3494904-11085,887.60,GS SOCIAL CARE SOLUTIONS LTD.
Children and Young Peoples Services,Head of Education and Skills,Transport,230006,Contract Hire,02/10/2018,3494906-22,784.00,HARDIP SINGH MAHIL T/A AMBER CARS.
Regeneration and Local Services,Direct Services,Supplies and Services,304221,Equipment and Materials,02/10/2018,3494919-6801,"12,020.40",JAMES INGLEFORD SCAFFOLDING LTD.
Children and Young Peoples Services,Head of Education and Skills,Transport,230007,Contract Hire,02/10/2018,3494921-1364,"1,080.00",JDS PRIVATE HIRE DURHAM.
Children and Young Peoples Services,Head of Education and Skills,Transport,230007,Contract Hire,02/10/2018,3494921-1379,"1,064.00",JDS PRIVATE HIRE DURHAM.
Children and Young Peoples Services,Head of Education and Skills,Transport,230012,Contract Hire,02/10/2018,3494921-1366,"1,273.00",JDS PRIVATE HIRE DURHAM.
Children and Young Peoples Services,Head of Education and Skills,Transport,230008,Contract Hire,02/10/2018,3494921-1365,"1,836.00",JDS PRIVATE HIRE DURHAM.
Children and Young Peoples Services,Head of Education and Skills,Transport,230008,Contract Hire,02/10/2018,3494921-1367,"1,368.00",JDS PRIVATE HIRE DURHAM.
Children and Young Peoples Services,Head of Education and Skills,Transport,230008,Contract Hire,02/10/2018,3494921-1368,"1,044.00",JDS PRIVATE HIRE DURHAM.
Children and Young Peoples Services,Head of Education and Skills,Transport,230008,Contract Hire,02/10/2018,3494921-1372,"1,656.00",JDS PRIVATE HIRE DURHAM.
Children and Young Peoples Services,Head of Education and Skills,Transport,230008,Contract Hire,02/10/2018,3494921-1373,"1,548.00",JDS PRIVATE HIRE DURHAM.
Children and Young Peoples Services,Head of Education and Skills,Transport,230008,Contract Hire,02/10/2018,3494921-1374,"1,404.00",JDS PRIVATE HIRE DURHAM.
Children and Young Peoples Services,Head of Education and Skills,Transport,230008,Contract Hire,02/10/2018,3494921-1375,"1,080.00",JDS PRIVATE HIRE DURHAM.
Children and Young Peoples Services,Head of Education and Skills,Transport,230008,Contract Hire,02/10/2018,3494921-1376,"1,404.00",JDS PRIVATE HIRE DURHAM.
Children and Young Peoples Services,Head of Education and Skills,Transport,230008,Contract Hire,02/10/2018,3494921-1378,"2,280.00",JDS PRIVATE HIRE DURHAM.
Adult and Health Services,Head of Adults,Transport,230005,Contract Hire,02/10/2018,3494921-1377,"1,640.00",JDS PRIVATE HIRE DURHAM.
Children and Young Peoples Services,Head of Education and Skills,Transport,230007,Contract Hire,02/10/2018,3494922-2798,"1,891.82",JEFF ANDERSON COACHES LTD.
Children and Young Peoples Services,Head of Education and Skills,Transport,230007,Contract Hire,02/10/2018,3494922-2800,"1,491.31",JEFF ANDERSON COACHES LTD.
Children and Young Peoples Services,Head of Education and Skills,Transport,230007,Contract Hire,02/10/2018,3494927-54,"1,710.00",JOHN CRAKE & SONS MINI BUSES LTD.
Adult and Health Services,Head of Adults,Premises,108099,Service Repairs and Maintenance,02/10/2018,3494930-RMIN/00000794.,618.00,KARBON HOMES LTD FORMERLY DERWENTSIDE HOMES LTD.
Adult and Health Services,Head of Adults,Premises,108099,Service Repairs and Maintenance,02/10/2018,3494930-RMIN/00000795,577.00,KARBON HOMES LTD FORMERLY DERWENTSIDE HOMES LTD.
Adult and Health Services,Head of Adults,Premises,108099,Service Repairs and Maintenance,02/10/2018,3494930-RMIN/00000796,623.00,KARBON HOMES LTD FORMERLY DERWENTSIDE HOMES LTD.
Adult and Health Services,Head of Adults,Premises,108099,Service Repairs and Maintenance,02/10/2018,3494930-RMIN/00000797,695.00,KARBON HOMES LTD FORMERLY DERWENTSIDE HOMES LTD.
Children and Young Peoples Services,Head of Education and Skills,Transport,230006,Contract Hire,02/10/2018,3494937-1691,540.00,LD TAXIS.
Children and Young Peoples Services,Head of Education and Skills,Transport,230008,Contract Hire,02/10/2018,3494937-1690,"1,330.00",LD TAXIS.
Children and Young Peoples Services,Head of Education and Skills,Transport,230008,Contract Hire,02/10/2018,3494941-44,"1,440.00",MALCOLM CARR T/A CARLY CABS.
Regeneration and Local Services,Technical Services,Supplies and Services,304221,Equipment and Materials,02/10/2018,3494943-Z000150174,"8,263.87",MARSHALLS MONO LTD.
Regeneration and Local Services,Spatial Policy Planning Assets & Environment,Supplies and Services,384999,Miscellaneous Expenses,02/10/2018,3494944-DCC-0004,"6,243.75",MASON & MASON CONSULTING LTD.
Regeneration and Local Services,Culture & Sport,Supplies and Services,328041,Clothing uniforms and laundry E328,02/10/2018,3494948-175729-4100610721,"2,068.55",MDH TEAMWEAR & TROPHIES.
Children and Young Peoples Services,Head of Education and Skills,Transport,230013,Contract Hire,02/10/2018,3494949-153,810.00,MICHAEL COBB T/A HAIL TAXIS.
Children and Young Peoples Services,Head of Education and Skills,Transport,230008,Contract Hire,02/10/2018,3494951-12-W028,"1,080.00",MR BW YOUNG T/A ESH TAXIS.
Children and Young Peoples Services,Head of Education and Skills,Transport,230008,Contract Hire,02/10/2018,3494952-EL109-18,"1,305.30",MR CT WALKER T/A CW TAXIS.
Children and Young Peoples Services,Head of Education and Skills,Transport,230008,Contract Hire,02/10/2018,3494952-EL209-18,"1,653.90",MR CT WALKER T/A CW TAXIS.
Children and Young Peoples Services,Head of Education and Skills,Transport,230008,Contract Hire,02/10/2018,3494952-EL309-18,"1,798.00",MR CT WALKER T/A CW TAXIS.
Adult and Health Services,Head of Adults,Transport,230005,Contract Hire,02/10/2018,3494952-EDB109-18,886.44,MR CT WALKER T/A CW TAXIS.
Children and Young Peoples Services,Head of Education and Skills,Transport,230007,Contract Hire,02/10/2018,3494953-92,918.00,MR JOHN ALLINSON T/A AALPHA TAXIS.
Children and Young Peoples Services,Head of Education and Skills,Transport,230006,Contract Hire,02/10/2018,3494953-91,"1,504.00",MR JOHN ALLINSON T/A AALPHA TAXIS.
Regeneration and Local Services,Direct Services,Transport,210057,Repair and Maintenance of Vehicles,02/10/2018,3494974-INVHE38235,565.25,NE TRUCK SPARES LTD (NETS).
Children and Young Peoples Services,Head of Education and Skills,Transport,230008,Contract Hire,02/10/2018,3494976-235-A099,"1,629.00",NEVILLE FORBES T/A FORBES TAXIS.
Regeneration and Local Services,Direct Services,Transport,210057,Repair and Maintenance of Vehicles,02/10/2018,3494979-72976,943.70,NORPLAST LTD.
Children and Young Peoples Services,Head of Childrens Social Care,Third Party Payments 4THIRD,425041,Rendered by Voluntary Organisations,02/10/2018,3494984-20910699,"43,000.00",NORTH TYNESIDE COUNCIL.
Regeneration and Local Services,Direct Services,Premises,120009,Energy Costs,02/10/2018,3494987-NNO75WK8,"2,510.13",NPOWER.
Regeneration and Local Services,Technical Services,Premises,120009,Energy Costs,02/10/2018,3494987-NNO75WL6,"183,296.83",NPOWER.
Regeneration and Local Services,Direct Services,Transport,215005,Running Costs of Vehicles,02/10/2018,3494989-354301,"38,093.72",OIL NRG LTD.
Regeneration and Local Services,Direct Services,Third Party Payments 4THIRD,430100,Rendered by Private Contractors,02/10/2018,3494993-1734,670.00,PARAMOUNT CEILINGS & PARTITIONS.
Children and Young Peoples Services,Head of Education and Skills,Transport,230008,Contract Hire,02/10/2018,3494999-005SEPT2018,"1,603.00",PHILS TAXIS.
Regeneration and Local Services,Technical Services,Third Party Payments 4THIRD,430100,Rendered by Private Contractors,02/10/2018,3495002-5235,"6,214.81",PINKNEY BUILDING CONTRACTORS LTD.
Transformation and Partnerships,Partnerships & Community Engagement Div.,Supplies and Services,384086,Miscellaneous Expenses,02/10/2018,3495003-VOUCHERADEA05-18,600.00,PIONEERING CARE PARTNERSHIP.
Regeneration and Local Services,Culture & Sport,Supplies and Services,338047,Services,02/10/2018,3495006-SIN009570,"11,500.00",QDOS ENTERTAINMENT (PANTOMINES) LTD
Regeneration and Local Services,Technical Services,Third Party Payments 4THIRD,430100,Rendered by Private Contractors,02/10/2018,3495008-2800/180847,"148,562.92",RAINTON CONSTRUCTION LTD.
Regeneration and Local Services,Technical Services,Third Party Payments 4THIRD,430100,Rendered by Private Contractors,02/10/2018,3495008-2800/180850,"86,156.69",RAINTON CONSTRUCTION LTD.
Regeneration and Local Services,Direct Services,Supplies and Services,304221,Equipment and Materials,02/10/2018,3495026-2450273809,"1,772.47",SIKA LTD.
Regeneration and Local Services,Direct Services,Third Party Payments 4THIRD,430100,Rendered by Private Contractors,02/10/2018,3495030-6362,"1,200.00",ST ASTIER LTD.
Adult and Health Services,Head of Adults,Transport,230005,Contract Hire,02/10/2018,3495053-0001996,"1,900.00",TONY RIDLEY T/A COLORS TAXIS LTD.
Children and Young Peoples Services,Head of Education and Skills,Transport,230007,Contract Hire,02/10/2018,3495055-030918,570.00,TRANSPORT.ADVENTURE.XI.
Regeneration and Local Services,Direct Services,Transport,230005,Contract Hire,02/10/2018,3495056-18788,975.00,TRASH UK LTD.
Regeneration and Local Services,Direct Services,Transport,230005,Contract Hire,02/10/2018,3495056-18789,800.00,TRASH UK LTD.
Regeneration and Local Services,Direct Services,Transport,230005,Contract Hire,02/10/2018,3495056-18790,750.00,TRASH UK LTD.
Regeneration and Local Services,Direct Services,Third Party Payments 4THIRD,430100,Rendered by Private Contractors,02/10/2018,3495063-INV-0767,960.00,UK VENTILATION LTD.
Regeneration and Local Services,Culture & Sport,Supplies and Services,338047,Services,02/10/2018,3495065-799,"8,000.00",UNITED STAGE INTERNATIONAL LTD.
Children and Young Peoples Services,Head of Education and Skills,Transport,230007,Contract Hire,02/10/2018,3495070-7046,927.00,WEARDALE PRIVATE HIRE.
Children and Young Peoples Services,Head of Education and Skills,Transport,230007,Contract Hire,02/10/2018,3495070-7048-4042,"1,708.10",WEARDALE PRIVATE HIRE.
Children and Young Peoples Services,Head of Education and Skills,Transport,230007,Contract Hire,02/10/2018,3495070-7048-4071,950.00,WEARDALE PRIVATE HIRE.
Children and Young Peoples Services,Head of Education and Skills,Transport,230007,Contract Hire,02/10/2018,3495070-7048-4127,855.00,WEARDALE PRIVATE HIRE.
Children and Young Peoples Services,Head of Education and Skills,Transport,230004,Contract Hire,02/10/2018,3495070-7047,550.00,WEARDALE PRIVATE HIRE.
Children and Young Peoples Services,Head of Education and Skills,Transport,230008,Contract Hire,02/10/2018,3495070-7053,"2,277.00",WEARDALE PRIVATE HIRE.
Regeneration and Local Services,Spatial Policy Planning Assets & Environment,Supplies and Services,384302,Miscellaneous Expenses,02/10/2018,3495073-RED-10-2018-001,"2,356.00",WOODLAND TRUST FARMING LTD.
Regeneration and Local Services,Culture & Sport,Construction work A908,908105,Construction work,03/10/2018,3497221-1LIFE19763,"1,492.50",1LIFE MANAGEMENT SOLUTIONS LTD.
Regeneration and Local Services,Direct Services,Third Party Payments 4THIRD,430100,Rendered by Private Contractors,03/10/2018,3497223-2716,960.00,A & J GUTHRIE.
Adult and Health Services,Head of Adults,Third Party Payments 4THIRD,470101,Purchase of Care,03/10/2018,3496905-2506671,"2,279.00",A CHARLES THOMAS (CARE) LTD.
Adult and Health Services,Head of Adults,Third Party Payments 4THIRD,470101,Purchase of Care,03/10/2018,3496905-2506672,"2,279.00",A CHARLES THOMAS (CARE) LTD.
Adult and Health Services,Head of Adults,Third Party Payments 4THIRD,470101,Purchase of Care,03/10/2018,3496905-2506673,"2,279.00",A CHARLES THOMAS (CARE) LTD.
Adult and Health Services,Head of Adults,Third Party Payments 4THIRD,470101,Purchase of Care,03/10/2018,3496905-2506676,"2,279.00",A CHARLES THOMAS (CARE) LTD.
Adult and Health Services,Head of Adults,Third Party Payments 4THIRD,470101,Purchase of Care,03/10/2018,3496905-2506677,"2,279.00",A CHARLES THOMAS (CARE) LTD.
Adult and Health Services,Head of Adults,Third Party Payments 4THIRD,470101,Purchase of Care,03/10/2018,3496905-2506679,"2,279.00",A CHARLES THOMAS (CARE) LTD.
Adult and Health Services,Head of Adults,Third Party Payments 4THIRD,470101,Purchase of Care,03/10/2018,3496905-2506680,"2,279.00",A CHARLES THOMAS (CARE) LTD.
Adult and Health Services,Head of Adults,Third Party Payments 4THIRD,470101,Purchase of Care,03/10/2018,3496905-2506681,"2,279.00",A CHARLES THOMAS (CARE) LTD.
Adult and Health Services,Head of Adults,Third Party Payments 4THIRD,470101,Purchase of Care,03/10/2018,3496905-2506682,"2,279.00",A CHARLES THOMAS (CARE) LTD.
Adult and Health Services,Head of Adults,Third Party Payments 4THIRD,470101,Purchase of Care,03/10/2018,3496905-2506683,"2,555.68",A CHARLES THOMAS (CARE) LTD.
Adult and Health Services,Head of Adults,Third Party Payments 4THIRD,470101,Purchase of Care,03/10/2018,3496905-2506684,"2,279.00",A CHARLES THOMAS (CARE) LTD.
Adult and Health Services,Head of Adults,Third Party Payments 4THIRD,470101,Purchase of Care,03/10/2018,3496905-2506685,"2,279.00",A CHARLES THOMAS (CARE) LTD.
Adult and Health Services,Head of Adults,Third Party Payments 4THIRD,470101,Purchase of Care,03/10/2018,3496905-2506686,"2,279.00",A CHARLES THOMAS (CARE) LTD.
Adult and Health Services,Head of Adults,Third Party Payments 4THIRD,470101,Purchase of Care,03/10/2018,3496905-2506687,"2,279.00",A CHARLES THOMAS (CARE) LTD.
Adult and Health Services,Head of Adults,Third Party Payments 4THIRD,470101,Purchase of Care,03/10/2018,3496905-2506688,"2,279.00",A CHARLES THOMAS (CARE) LTD.
Adult and Health Services,Head of Adults,Third Party Payments 4THIRD,470101,Purchase of Care,03/10/2018,3496905-2506689,"2,279.00",A CHARLES THOMAS (CARE) LTD.
Adult and Health Services,Head of Adults,Third Party Payments 4THIRD,470101,Purchase of Care,03/10/2018,3496905-2506690,"2,279.00",A CHARLES THOMAS (CARE) LTD.
Adult and Health Services,Head of Adults,Third Party Payments 4THIRD,470101,Purchase of Care,03/10/2018,3496905-2506691,"2,279.00",A CHARLES THOMAS (CARE) LTD.
Adult and Health Services,Head of Adults,Third Party Payments 4THIRD,470101,Purchase of Care,03/10/2018,3496905-2506692,"2,279.00",A CHARLES THOMAS (CARE) LTD.
Adult and Health Services,Head of Adults,Third Party Payments 4THIRD,470101,Purchase of Care,03/10/2018,3496905-2506693,"2,279.00",A CHARLES THOMAS (CARE) LTD.
Adult and Health Services,Head of Adults,Third Party Payments 4THIRD,470101,Purchase of Care,03/10/2018,3496905-2506694,"2,279.00",A CHARLES THOMAS (CARE) LTD.
Adult and Health Services,Head of Adults,Third Party Payments 4THIRD,470101,Purchase of Care,03/10/2018,3496905-2506695,"2,279.00",A CHARLES THOMAS (CARE) LTD.
Adult and Health Services,Head of Adults,Third Party Payments 4THIRD,470101,Purchase of Care,03/10/2018,3496905-2506696,"2,279.00",A CHARLES THOMAS (CARE) LTD.
Adult and Health Services,Head of Adults,Third Party Payments 4THIRD,470101,Purchase of Care,03/10/2018,3496905-2506697,"2,279.00",A CHARLES THOMAS (CARE) LTD.
Adult and Health Services,Head of Adults,Third Party Payments 4THIRD,470101,Purchase of Care,03/10/2018,3496905-2506698,"2,279.00",A CHARLES THOMAS (CARE) LTD.
Adult and Health Services,Head of Adults,Third Party Payments 4THIRD,470101,Purchase of Care,03/10/2018,3496905-2510338,569.75,A CHARLES THOMAS (CARE) LTD.
Adult and Health Services,Head of Adults,Third Party Payments 4THIRD,470101,Purchase of Care,03/10/2018,3496905-2510412,"2,116.21",A CHARLES THOMAS (CARE) LTD.
Children and Young Peoples Services,Head of Childrens Social Care,Third Party Payments 4THIRD,425040,Rendered by Voluntary Organisations,03/10/2018,3495822-1838566H,"2,920.12",A1 FOSTER CARE
Children and Young Peoples Services,Head of Childrens Social Care,Third Party Payments 4THIRD,425040,Rendered by Voluntary Organisations,03/10/2018,3495822-1839071H,"2,920.12",A1 FOSTER CARE
Children and Young Peoples Services,Head of Childrens Social Care,Third Party Payments 4THIRD,425040,Rendered by Voluntary Organisations,03/10/2018,3495822-1839533H,"2,920.12",A1 FOSTER CARE
Children and Young Peoples Services,Head of Childrens Social Care,Third Party Payments 4THIRD,425040,Rendered by Voluntary Organisations,03/10/2018,3495822-1839847H,"2,700.00",A1 FOSTER CARE
Children and Young Peoples Services,Head of Childrens Social Care,Third Party Payments 4THIRD,425040,Rendered by Voluntary Organisations,03/10/2018,3495822-1839989H,"2,800.00",A1 FOSTER CARE
Children and Young Peoples Services,Head of Childrens Social Care,Third Party Payments 4THIRD,425040,Rendered by Voluntary Organisations,03/10/2018,3495822-1841315H,"2,800.00",A1 FOSTER CARE
Adult and Health Services,Head of Adults,Third Party Payments 4THIRD,478101,Purchase of Care,03/10/2018,3495825-1834577H,"3,164.72",ACCEPT CARE LTD.
Adult and Health Services,Head of Adults,Third Party Payments 4THIRD,478101,Purchase of Care,03/10/2018,3495825-1834682H,"3,370.20",ACCEPT CARE LTD.
Adult and Health Services,Head of Adults,Third Party Payments 4THIRD,478101,Purchase of Care,03/10/2018,3495825-1834741H,"4,521.00",ACCEPT CARE LTD.
Adult and Health Services,Head of Adults,Third Party Payments 4THIRD,478101,Purchase of Care,03/10/2018,3495825-1834847H,"3,164.72",ACCEPT CARE LTD.
Adult and Health Services,Head of Adults,Third Party Payments 4THIRD,478101,Purchase of Care,03/10/2018,3495825-1835074H,914.24,ACCEPT CARE LTD.
Adult and Health Services,Head of Adults,Third Party Payments 4THIRD,478101,Purchase of Care,03/10/2018,3495825-1835138H,"5,087.28",ACCEPT CARE LTD.
Adult and Health Services,Head of Adults,Third Party Payments 4THIRD,478101,Purchase of Care,03/10/2018,3495825-1835171H,914.24,ACCEPT CARE LTD.
Adult and Health Services,Head of Adults,Third Party Payments 4THIRD,478101,Purchase of Care,03/10/2018,3495825-1835181H,914.24,ACCEPT CARE LTD.
Adult and Health Services,Head of Adults,Third Party Payments 4THIRD,478101,Purchase of Care,03/10/2018,3495825-1835274H,914.24,ACCEPT CARE LTD.
Adult and Health Services,Head of Adults,Third Party Payments 4THIRD,478101,Purchase of Care,03/10/2018,3495825-1835311H,"4,484.48",ACCEPT CARE LTD.
Adult and Health Services,Head of Adults,Third Party Payments 4THIRD,478101,Purchase of Care,03/10/2018,3495825-1835313H,"1,023.84",ACCEPT CARE LTD.
Adult and Health Services,Head of Adults,Third Party Payments 4THIRD,478101,Purchase of Care,03/10/2018,3495825-1835318H,"3,425.00",ACCEPT CARE LTD.
Adult and Health Services,Head of Adults,Third Party Payments 4THIRD,478101,Purchase of Care,03/10/2018,3495825-1835393H,914.24,ACCEPT CARE LTD.
Adult and Health Services,Head of Adults,Third Party Payments 4THIRD,478101,Purchase of Care,03/10/2018,3495825-1835400H,"3,715.44",ACCEPT CARE LTD.
Adult and Health Services,Head of Adults,Third Party Payments 4THIRD,478101,Purchase of Care,03/10/2018,3495825-1835404H,914.24,ACCEPT CARE LTD.
Adult and Health Services,Head of Adults,Third Party Payments 4THIRD,478101,Purchase of Care,03/10/2018,3495825-1835624H,"6,329.40",ACCEPT CARE LTD.
Adult and Health Services,Head of Adults,Third Party Payments 4THIRD,478101,Purchase of Care,03/10/2018,3495825-1835839H,"6,012.48",ACCEPT CARE LTD.
Adult and Health Services,Head of Adults,Third Party Payments 4THIRD,478101,Purchase of Care,03/10/2018,3495825-1835861H,"2,493.40",ACCEPT CARE LTD.
Adult and Health Services,Head of Adults,Third Party Payments 4THIRD,478101,Purchase of Care,03/10/2018,3495825-1835940H,"4,137.40",ACCEPT CARE LTD.
Adult and Health Services,Head of Adults,Third Party Payments 4THIRD,478101,Purchase of Care,03/10/2018,3495825-1836053H,"2,732.80",ACCEPT CARE LTD.
Adult and Health Services,Head of Adults,Third Party Payments 4THIRD,478101,Purchase of Care,03/10/2018,3495825-1836075H,"5,069.00",ACCEPT CARE LTD.
Adult and Health Services,Head of Adults,Third Party Payments 4THIRD,478101,Purchase of Care,03/10/2018,3495825-1836106H,914.24,ACCEPT CARE LTD.
Adult and Health Services,Head of Adults,Third Party Payments 4THIRD,478101,Purchase of Care,03/10/2018,3495825-1836124H,"4,018.68",ACCEPT CARE LTD.
Adult and Health Services,Head of Adults,Third Party Payments 4THIRD,478101,Purchase of Care,03/10/2018,3495825-1836188H,"2,313.48",ACCEPT CARE LTD.
Adult and Health Services,Head of Adults,Third Party Payments 4THIRD,478101,Purchase of Care,03/10/2018,3495825-1836190H,"3,301.72",ACCEPT CARE LTD.
Adult and Health Services,Head of Adults,Third Party Payments 4THIRD,478101,Purchase of Care,03/10/2018,3495825-1836292H,"6,603.40",ACCEPT CARE LTD.
Adult and Health Services,Head of Adults,Third Party Payments 4THIRD,478101,Purchase of Care,03/10/2018,3495825-1836300H,"8,183.48",ACCEPT CARE LTD.
Adult and Health Services,Head of Adults,Third Party Payments 4THIRD,478101,Purchase of Care,03/10/2018,3495825-1836312H,"3,461.52",ACCEPT CARE LTD.
Adult and Health Services,Head of Adults,Third Party Payments 4THIRD,478101,Purchase of Care,03/10/2018,3495825-1836389H,"3,829.15",ACCEPT CARE LTD.
Adult and Health Services,Head of Adults,Third Party Payments 4THIRD,478101,Purchase of Care,03/10/2018,3495825-1836398H,"6,603.40",ACCEPT CARE LTD.
Adult and Health Services,Head of Adults,Third Party Payments 4THIRD,478101,Purchase of Care,03/10/2018,3495825-1836566H,"1,749.96",ACCEPT CARE LTD.
Adult and Health Services,Head of Adults,Third Party Payments 4THIRD,478101,Purchase of Care,03/10/2018,3495825-1836973H,"5,178.60",ACCEPT CARE LTD.
Adult and Health Services,Head of Adults,Third Party Payments 4THIRD,478101,Purchase of Care,03/10/2018,3495825-1837058H,"1,765.48",ACCEPT CARE LTD.
Adult and Health Services,Head of Adults,Third Party Payments 4THIRD,478101,Purchase of Care,03/10/2018,3495825-1837204H,914.24,ACCEPT CARE LTD.
Adult and Health Services,Head of Adults,Third Party Payments 4THIRD,478101,Purchase of Care,03/10/2018,3495825-1837532H,914.24,ACCEPT CARE LTD.
Adult and Health Services,Head of Adults,Third Party Payments 4THIRD,478101,Purchase of Care,03/10/2018,3495825-1837596H,"5,272.23",ACCEPT CARE LTD.
Adult and Health Services,Head of Adults,Third Party Payments 4THIRD,478101,Purchase of Care,03/10/2018,3495825-1837668H,"1,434.84",ACCEPT CARE LTD.
Adult and Health Services,Head of Adults,Third Party Payments 4THIRD,478101,Purchase of Care,03/10/2018,3495825-1837705H,"6,521.20",ACCEPT CARE LTD.
Adult and Health Services,Head of Adults,Third Party Payments 4THIRD,478101,Purchase of Care,03/10/2018,3495825-1837914H,"9,206.40",ACCEPT CARE LTD.
Adult and Health Services,Head of Adults,Third Party Payments 4THIRD,478101,Purchase of Care,03/10/2018,3495825-1838012H,"1,180.96",ACCEPT CARE LTD.
Adult and Health Services,Head of Adults,Third Party Payments 4THIRD,478101,Purchase of Care,03/10/2018,3495825-1838073H,"3,329.10",ACCEPT CARE LTD.
Adult and Health Services,Head of Adults,Third Party Payments 4THIRD,478101,Purchase of Care,03/10/2018,3495825-1838542H,914.24,ACCEPT CARE LTD.
Adult and Health Services,Head of Adults,Third Party Payments 4THIRD,478101,Purchase of Care,03/10/2018,3495825-1839081H,914.24,ACCEPT CARE LTD.
Adult and Health Services,Head of Adults,Third Party Payments 4THIRD,478101,Purchase of Care,03/10/2018,3495825-1839316H,"1,546.28",ACCEPT CARE LTD.
Adult and Health Services,Head of Adults,Third Party Payments 4THIRD,478101,Purchase of Care,03/10/2018,3495825-1839444H,914.24,ACCEPT CARE LTD.
Adult and Health Services,Head of Adults,Third Party Payments 4THIRD,478101,Purchase of Care,03/10/2018,3495825-1839675H,"1,068.60",ACCEPT CARE LTD.
Adult and Health Services,Head of Adults,Third Party Payments 4THIRD,478101,Purchase of Care,03/10/2018,3495825-1839784H,"3,096.24",ACCEPT CARE LTD.
Adult and Health Services,Head of Adults,Third Party Payments 4THIRD,478101,Purchase of Care,03/10/2018,3495825-1839845H,"1,208.36",ACCEPT CARE LTD.
Adult and Health Services,Head of Adults,Third Party Payments 4THIRD,478101,Purchase of Care,03/10/2018,3495825-1839864H,914.24,ACCEPT CARE LTD.
Adult and Health Services,Head of Adults,Third Party Payments 4THIRD,478101,Purchase of Care,03/10/2018,3495825-1840335H,914.24,ACCEPT CARE LTD.
Adult and Health Services,Head of Adults,Third Party Payments 4THIRD,478101,Purchase of Care,03/10/2018,3495825-1840478H,"1,483.71",ACCEPT CARE LTD.
Adult and Health Services,Head of Adults,Third Party Payments 4THIRD,478101,Purchase of Care,03/10/2018,3495825-1840620H,"1,765.48",ACCEPT CARE LTD.
Adult and Health Services,Head of Adults,Third Party Payments 4THIRD,478101,Purchase of Care,03/10/2018,3495825-1840635H,914.24,ACCEPT CARE LTD.
Adult and Health Services,Head of Adults,Third Party Payments 4THIRD,478101,Purchase of Care,03/10/2018,3495825-1840949H,914.24,ACCEPT CARE LTD.
Adult and Health Services,Head of Adults,Third Party Payments 4THIRD,478101,Purchase of Care,03/10/2018,3495825-1841455H,"7,447.60",ACCEPT CARE LTD.
Children and Young Peoples Services,Head of Childrens Social Care,Third Party Payments 4THIRD,425040,Rendered by Voluntary Organisations,03/10/2018,3496131-1839401H,"3,300.08",ACORN CARE (NE) LTD T/A ACORN FOSTERING SERVICES.
Children and Young Peoples Services,Head of Childrens Social Care,Third Party Payments 4THIRD,425040,Rendered by Voluntary Organisations,03/10/2018,3496131-1839626H,930.72,ACORN CARE (NE) LTD T/A ACORN FOSTERING SERVICES.
Children and Young Peoples Services,Head of Childrens Social Care,Third Party Payments 4THIRD,425040,Rendered by Voluntary Organisations,03/10/2018,3496131-1840362H,"3,500.00",ACORN CARE (NE) LTD T/A ACORN FOSTERING SERVICES.
Children and Young Peoples Services,Head of Childrens Social Care,Third Party Payments 4THIRD,425040,Rendered by Voluntary Organisations,03/10/2018,3496131-1840633H,"2,919.84",ACORN CARE (NE) LTD T/A ACORN FOSTERING SERVICES.
Children and Young Peoples Services,Head of Childrens Social Care,Third Party Payments 4THIRD,425040,Rendered by Voluntary Organisations,03/10/2018,3496131-1840677H,"3,125.00",ACORN CARE (NE) LTD T/A ACORN FOSTERING SERVICES.
Children and Young Peoples Services,Head of Childrens Social Care,Third Party Payments 4THIRD,425040,Rendered by Voluntary Organisations,03/10/2018,3496132-1838956H,"2,920.12",ACORN HOUSE (FOSTERING SERVICES) LTD.
Children and Young Peoples Services,Head of Childrens Social Care,Third Party Payments 4THIRD,425040,Rendered by Voluntary Organisations,03/10/2018,3496132-1839084H,"2,920.12",ACORN HOUSE (FOSTERING SERVICES) LTD.
Children and Young Peoples Services,Head of Childrens Social Care,Third Party Payments 4THIRD,425040,Rendered by Voluntary Organisations,03/10/2018,3496132-1840030H,"2,920.12",ACORN HOUSE (FOSTERING SERVICES) LTD.
Children and Young Peoples Services,Head of Childrens Social Care,Third Party Payments 4THIRD,425044,Rendered by Voluntary Organisations,03/10/2018,3496133-1839778H,"1,360.24",ACTION FOR CHILDREN.
Adult and Health Services,Head of Adults,Third Party Payments 4THIRD,472101,Purchase of Care,03/10/2018,3496134-1835086H,600.95,ACTION ON HEARING LOSS.
Children and Young Peoples Services,Head of Education and Skills,Transport,230008,Contract Hire,03/10/2018,3497226-21/18A,"1,520.00",ADVANCE TRAVEL.
Regeneration and Local Services,Technical Services,Supplies and Services,304221,Equipment and Materials,03/10/2018,3497227-27130810,"1,411.84",AGGREGATE INDUSTRIES UK LTD.
Regeneration and Local Services,Technical Services,Supplies and Services,304221,Equipment and Materials,03/10/2018,3497227-27130811,796.44,AGGREGATE INDUSTRIES UK LTD.
Adult and Health Services,Head of Adults,Third Party Payments 4THIRD,474101,Purchase of Care,03/10/2018,3496906-2509378,"2,371.44",AKARI CARE LTD.
Adult and Health Services,Head of Adults,Third Party Payments 4THIRD,474101,Purchase of Care,03/10/2018,3496906-2509382,"1,185.72",AKARI CARE LTD.
Adult and Health Services,Head of Adults,Third Party Payments 4THIRD,474101,Purchase of Care,03/10/2018,3496906-2509392,"2,371.44",AKARI CARE LTD.
Adult and Health Services,Head of Adults,Third Party Payments 4THIRD,474101,Purchase of Care,03/10/2018,3496906-2509394,"2,371.44",AKARI CARE LTD.
Adult and Health Services,Head of Adults,Third Party Payments 4THIRD,474101,Purchase of Care,03/10/2018,3496906-2509405,"1,185.72",AKARI CARE LTD.
Adult and Health Services,Head of Adults,Third Party Payments 4THIRD,474101,Purchase of Care,03/10/2018,3496906-2509411,"2,371.44",AKARI CARE LTD.
Adult and Health Services,Head of Adults,Third Party Payments 4THIRD,474101,Purchase of Care,03/10/2018,3496906-2509413,"1,185.72",AKARI CARE LTD.
Adult and Health Services,Head of Adults,Third Party Payments 4THIRD,474101,Purchase of Care,03/10/2018,3496906-2509421,"2,371.44",AKARI CARE LTD.
Adult and Health Services,Head of Adults,Third Party Payments 4THIRD,474101,Purchase of Care,03/10/2018,3496906-2510619,"1,185.72",AKARI CARE LTD.
Adult and Health Services,Head of Adults,Third Party Payments 4THIRD,474101,Purchase of Care,03/10/2018,3496906-2510629,"1,185.72",AKARI CARE LTD.
Adult and Health Services,Head of Adults,Third Party Payments 4THIRD,474101,Purchase of Care,03/10/2018,3496907-2508254,"1,500.00",AKARI CARE LTD.
Adult and Health Services,Head of Adults,Third Party Payments 4THIRD,474101,Purchase of Care,03/10/2018,3496907-2508255,"1,596.00",AKARI CARE LTD.
Adult and Health Services,Head of Adults,Third Party Payments 4THIRD,474101,Purchase of Care,03/10/2018,3496907-2508257,"2,000.00",AKARI CARE LTD.
Adult and Health Services,Head of Adults,Third Party Payments 4THIRD,474101,Purchase of Care,03/10/2018,3496907-2508258,"2,520.00",AKARI CARE LTD.
Adult and Health Services,Head of Adults,Third Party Payments 4THIRD,474101,Purchase of Care,03/10/2018,3496909-2508285,"2,271.32",AKARI CARE LTD.
Adult and Health Services,Head of Adults,Third Party Payments 4THIRD,474101,Purchase of Care,03/10/2018,3496910-2509983,"2,393.16",AKARI CARE LTD.
Adult and Health Services,Head of Adults,Third Party Payments 4THIRD,470101,Purchase of Care,03/10/2018,3496906-2509384,"2,279.00",AKARI CARE LTD.
Adult and Health Services,Head of Adults,Third Party Payments 4THIRD,470101,Purchase of Care,03/10/2018,3496906-2509385,"2,279.00",AKARI CARE LTD.
Adult and Health Services,Head of Adults,Third Party Payments 4THIRD,470101,Purchase of Care,03/10/2018,3496906-2509388,"2,279.00",AKARI CARE LTD.
Adult and Health Services,Head of Adults,Third Party Payments 4THIRD,470101,Purchase of Care,03/10/2018,3496906-2509389,"2,279.00",AKARI CARE LTD.
Adult and Health Services,Head of Adults,Third Party Payments 4THIRD,470101,Purchase of Care,03/10/2018,3496906-2509391,"2,279.00",AKARI CARE LTD.
Adult and Health Services,Head of Adults,Third Party Payments 4THIRD,470101,Purchase of Care,03/10/2018,3496906-2509396,"2,279.00",AKARI CARE LTD.
Adult and Health Services,Head of Adults,Third Party Payments 4THIRD,470101,Purchase of Care,03/10/2018,3496906-2509397,"2,279.00",AKARI CARE LTD.
Adult and Health Services,Head of Adults,Third Party Payments 4THIRD,470101,Purchase of Care,03/10/2018,3496906-2509423,"2,279.00",AKARI CARE LTD.
Adult and Health Services,Head of Adults,Third Party Payments 4THIRD,470101,Purchase of Care,03/10/2018,3496906-2509424,"2,279.00",AKARI CARE LTD.
Adult and Health Services,Head of Adults,Third Party Payments 4THIRD,470101,Purchase of Care,03/10/2018,3496906-2509425,"2,279.00",AKARI CARE LTD.
Adult and Health Services,Head of Adults,Third Party Payments 4THIRD,470101,Purchase of Care,03/10/2018,3496907-2508256,"1,162.00",AKARI CARE LTD.
Adult and Health Services,Head of Adults,Third Party Payments 4THIRD,470101,Purchase of Care,03/10/2018,3496908-2507961,"2,279.00",AKARI CARE LTD.
Adult and Health Services,Head of Adults,Third Party Payments 4THIRD,470101,Purchase of Care,03/10/2018,3496908-2507968,"2,279.00",AKARI CARE LTD.
Adult and Health Services,Head of Adults,Third Party Payments 4THIRD,470101,Purchase of Care,03/10/2018,3496908-2507969,"2,279.00",AKARI CARE LTD.
Adult and Health Services,Head of Adults,Third Party Payments 4THIRD,470101,Purchase of Care,03/10/2018,3496908-2507970,813.92,AKARI CARE LTD.
Adult and Health Services,Head of Adults,Third Party Payments 4THIRD,470101,Purchase of Care,03/10/2018,3496908-2507971,813.92,AKARI CARE LTD.
Adult and Health Services,Head of Adults,Third Party Payments 4THIRD,470101,Purchase of Care,03/10/2018,3496908-2507972,569.75,AKARI CARE LTD.
Adult and Health Services,Head of Adults,Third Party Payments 4THIRD,470101,Purchase of Care,03/10/2018,3496908-2507974,"1,953.42",AKARI CARE LTD.
Adult and Health Services,Head of Adults,Third Party Payments 4THIRD,470101,Purchase of Care,03/10/2018,3496908-2507975,"2,279.00",AKARI CARE LTD.
Adult and Health Services,Head of Adults,Third Party Payments 4THIRD,470101,Purchase of Care,03/10/2018,3496908-2507978,"2,279.00",AKARI CARE LTD.
Adult and Health Services,Head of Adults,Third Party Payments 4THIRD,470101,Purchase of Care,03/10/2018,3496908-2507979,"2,279.00",AKARI CARE LTD.
Adult and Health Services,Head of Adults,Third Party Payments 4THIRD,470101,Purchase of Care,03/10/2018,3496908-2507981,"2,279.00",AKARI CARE LTD.
Adult and Health Services,Head of Adults,Third Party Payments 4THIRD,470101,Purchase of Care,03/10/2018,3496908-2507983,"2,279.00",AKARI CARE LTD.
Adult and Health Services,Head of Adults,Third Party Payments 4THIRD,470101,Purchase of Care,03/10/2018,3496908-2507985,813.92,AKARI CARE LTD.
Adult and Health Services,Head of Adults,Third Party Payments 4THIRD,470101,Purchase of Care,03/10/2018,3496908-2507986,"2,279.00",AKARI CARE LTD.
Adult and Health Services,Head of Adults,Third Party Payments 4THIRD,470101,Purchase of Care,03/10/2018,3496908-2507987,"2,279.00",AKARI CARE LTD.
Adult and Health Services,Head of Adults,Third Party Payments 4THIRD,470101,Purchase of Care,03/10/2018,3496908-2507988,"2,279.00",AKARI CARE LTD.
Adult and Health Services,Head of Adults,Third Party Payments 4THIRD,470101,Purchase of Care,03/10/2018,3496908-2507989,"1,302.28",AKARI CARE LTD.
Adult and Health Services,Head of Adults,Third Party Payments 4THIRD,470101,Purchase of Care,03/10/2018,3496908-2507992,"2,279.00",AKARI CARE LTD.
Adult and Health Services,Head of Adults,Third Party Payments 4THIRD,470101,Purchase of Care,03/10/2018,3496908-2507993,"2,279.00",AKARI CARE LTD.
Adult and Health Services,Head of Adults,Third Party Payments 4THIRD,470101,Purchase of Care,03/10/2018,3496908-2507998,"2,279.00",AKARI CARE LTD.
Adult and Health Services,Head of Adults,Third Party Payments 4THIRD,470101,Purchase of Care,03/10/2018,3496908-2508000,"2,279.00",AKARI CARE LTD.
Adult and Health Services,Head of Adults,Third Party Payments 4THIRD,470101,Purchase of Care,03/10/2018,3496908-2508001,"2,279.00",AKARI CARE LTD.
Adult and Health Services,Head of Adults,Third Party Payments 4THIRD,470101,Purchase of Care,03/10/2018,3496908-2508002,"2,279.00",AKARI CARE LTD.
Adult and Health Services,Head of Adults,Third Party Payments 4THIRD,470101,Purchase of Care,03/10/2018,3496908-2508003,"2,279.00",AKARI CARE LTD.
Adult and Health Services,Head of Adults,Third Party Payments 4THIRD,470101,Purchase of Care,03/10/2018,3496908-2508004,"1,139.48",AKARI CARE LTD.
Adult and Health Services,Head of Adults,Third Party Payments 4THIRD,470101,Purchase of Care,03/10/2018,3496908-2508005,"2,279.00",AKARI CARE LTD.
Adult and Health Services,Head of Adults,Third Party Payments 4THIRD,470101,Purchase of Care,03/10/2018,3496908-2508006,"2,279.00",AKARI CARE LTD.
Adult and Health Services,Head of Adults,Third Party Payments 4THIRD,470101,Purchase of Care,03/10/2018,3496908-2508007,"2,279.00",AKARI CARE LTD.
Adult and Health Services,Head of Adults,Third Party Payments 4THIRD,470101,Purchase of Care,03/10/2018,3496908-2508008,"2,279.00",AKARI CARE LTD.
Adult and Health Services,Head of Adults,Third Party Payments 4THIRD,471101,Purchase of Care,03/10/2018,3496906-2509380,"2,363.08",AKARI CARE LTD.
Adult and Health Services,Head of Adults,Third Party Payments 4THIRD,471101,Purchase of Care,03/10/2018,3496906-2509381,"2,363.08",AKARI CARE LTD.
Adult and Health Services,Head of Adults,Third Party Payments 4THIRD,471101,Purchase of Care,03/10/2018,3496906-2509386,759.56,AKARI CARE LTD.
Adult and Health Services,Head of Adults,Third Party Payments 4THIRD,471101,Purchase of Care,03/10/2018,3496906-2509387,"2,363.08",AKARI CARE LTD.
Adult and Health Services,Head of Adults,Third Party Payments 4THIRD,471101,Purchase of Care,03/10/2018,3496906-2509390,"2,363.08",AKARI CARE LTD.
Adult and Health Services,Head of Adults,Third Party Payments 4THIRD,471101,Purchase of Care,03/10/2018,3496906-2509402,"2,363.08",AKARI CARE LTD.
Adult and Health Services,Head of Adults,Third Party Payments 4THIRD,471101,Purchase of Care,03/10/2018,3496906-2509403,"2,363.08",AKARI CARE LTD.
Adult and Health Services,Head of Adults,Third Party Payments 4THIRD,471101,Purchase of Care,03/10/2018,3496906-2509404,"2,363.08",AKARI CARE LTD.
Adult and Health Services,Head of Adults,Third Party Payments 4THIRD,471101,Purchase of Care,03/10/2018,3496906-2509407,"2,363.08",AKARI CARE LTD.
Adult and Health Services,Head of Adults,Third Party Payments 4THIRD,471101,Purchase of Care,03/10/2018,3496906-2509408,"2,363.08",AKARI CARE LTD.
Adult and Health Services,Head of Adults,Third Party Payments 4THIRD,471101,Purchase of Care,03/10/2018,3496906-2509409,"2,363.08",AKARI CARE LTD.
Adult and Health Services,Head of Adults,Third Party Payments 4THIRD,471101,Purchase of Care,03/10/2018,3496906-2509410,"2,363.08",AKARI CARE LTD.
Adult and Health Services,Head of Adults,Third Party Payments 4THIRD,471101,Purchase of Care,03/10/2018,3496906-2509415,"2,363.08",AKARI CARE LTD.
Adult and Health Services,Head of Adults,Third Party Payments 4THIRD,471101,Purchase of Care,03/10/2018,3496906-2509416,"2,363.08",AKARI CARE LTD.
Adult and Health Services,Head of Adults,Third Party Payments 4THIRD,471101,Purchase of Care,03/10/2018,3496906-2509417,"2,363.08",AKARI CARE LTD.
Adult and Health Services,Head of Adults,Third Party Payments 4THIRD,471101,Purchase of Care,03/10/2018,3496906-2509418,"2,363.08",AKARI CARE LTD.
Adult and Health Services,Head of Adults,Third Party Payments 4THIRD,471101,Purchase of Care,03/10/2018,3496906-2509419,"2,363.08",AKARI CARE LTD.
Adult and Health Services,Head of Adults,Third Party Payments 4THIRD,471101,Purchase of Care,03/10/2018,3496906-2509420,"2,363.08",AKARI CARE LTD.
Adult and Health Services,Head of Adults,Third Party Payments 4THIRD,471101,Purchase of Care,03/10/2018,3496906-2509426,"2,363.08",AKARI CARE LTD.
Adult and Health Services,Head of Adults,Third Party Payments 4THIRD,471101,Purchase of Care,03/10/2018,3496906-2509427,"2,363.08",AKARI CARE LTD.
Adult and Health Services,Head of Adults,Third Party Payments 4THIRD,471101,Purchase of Care,03/10/2018,3496908-2507960,675.16,AKARI CARE LTD.
Adult and Health Services,Head of Adults,Third Party Payments 4THIRD,471101,Purchase of Care,03/10/2018,3496908-2507963,"2,363.08",AKARI CARE LTD.
Adult and Health Services,Head of Adults,Third Party Payments 4THIRD,471101,Purchase of Care,03/10/2018,3496908-2507964,"2,363.08",AKARI CARE LTD.
Adult and Health Services,Head of Adults,Third Party Payments 4THIRD,471101,Purchase of Care,03/10/2018,3496908-2507965,"1,687.91",AKARI CARE LTD.
Adult and Health Services,Head of Adults,Third Party Payments 4THIRD,471101,Purchase of Care,03/10/2018,3496908-2507966,"2,363.08",AKARI CARE LTD.
Adult and Health Services,Head of Adults,Third Party Payments 4THIRD,471101,Purchase of Care,03/10/2018,3496908-2507967,"2,363.08",AKARI CARE LTD.
Adult and Health Services,Head of Adults,Third Party Payments 4THIRD,471101,Purchase of Care,03/10/2018,3496908-2507976,"2,363.08",AKARI CARE LTD.
Adult and Health Services,Head of Adults,Third Party Payments 4THIRD,471101,Purchase of Care,03/10/2018,3496908-2507980,"2,363.08",AKARI CARE LTD.
Adult and Health Services,Head of Adults,Third Party Payments 4THIRD,471101,Purchase of Care,03/10/2018,3496908-2507984,"2,363.08",AKARI CARE LTD.
Adult and Health Services,Head of Adults,Third Party Payments 4THIRD,471101,Purchase of Care,03/10/2018,3496908-2507990,"2,363.08",AKARI CARE LTD.
Adult and Health Services,Head of Adults,Third Party Payments 4THIRD,471101,Purchase of Care,03/10/2018,3496908-2507991,"2,363.08",AKARI CARE LTD.
Adult and Health Services,Head of Adults,Third Party Payments 4THIRD,471101,Purchase of Care,03/10/2018,3496908-2507994,"2,363.08",AKARI CARE LTD.
Adult and Health Services,Head of Adults,Third Party Payments 4THIRD,471101,Purchase of Care,03/10/2018,3496908-2507995,"2,363.08",AKARI CARE LTD.
Adult and Health Services,Head of Adults,Third Party Payments 4THIRD,471101,Purchase of Care,03/10/2018,3496908-2507996,"2,363.08",AKARI CARE LTD.
Adult and Health Services,Head of Adults,Third Party Payments 4THIRD,471101,Purchase of Care,03/10/2018,3496908-2507997,"2,363.08",AKARI CARE LTD.
Adult and Health Services,Head of Adults,Third Party Payments 4THIRD,471101,Purchase of Care,03/10/2018,3496908-2507999,"1,181.52",AKARI CARE LTD.
Adult and Health Services,Head of Adults,Third Party Payments 4THIRD,471101,Purchase of Care,03/10/2018,3496908-2510770,"3,291.43",AKARI CARE LTD.
Regeneration and Local Services,Direct Services,Third Party Payments 4THIRD,430100,Rendered by Private Contractors,03/10/2018,3497229-45R/18/91579,"1,149.00",ALAN M RANSON FUNERAL SERVICE.
Resources,Legal & Democratic Services,Supplies and Services,308011,Furniture,03/10/2018,3497230-163325,710.00,ALBANY OFFICE EQUIPMENT (WHOLESALE) LTD.
Children and Young Peoples Services,Head of Education and Skills,Supplies and Services,384199,Miscellaneous Expenses,03/10/2018,3497230-163321,532.00,ALBANY OFFICE EQUIPMENT (WHOLESALE) LTD.
Adult and Health Services,Head of Adults,Third Party Payments 4THIRD,474101,Purchase of Care,03/10/2018,3496911-2510179,"3,152.00",ALDBOURNE NURSING HOME LTD.
Resources,Legal & Democratic Services,Supplies and Services,338057,Services,03/10/2018,3497231-0000031351,990.00,ALERE FORENSICS.
Adult and Health Services,Head of Adults,Third Party Payments 4THIRD,474101,Purchase of Care,03/10/2018,3496912-2507814,"1,355.10",ALLIANCE CARE (TRENDLEWOOD) LTD.
Adult and Health Services,Head of Adults,Third Party Payments 4THIRD,474101,Purchase of Care,03/10/2018,3496912-2507827,"2,371.44",ALLIANCE CARE (TRENDLEWOOD) LTD.
Adult and Health Services,Head of Adults,Third Party Payments 4THIRD,474101,Purchase of Care,03/10/2018,3496912-2507846,"2,371.44",ALLIANCE CARE (TRENDLEWOOD) LTD.
Adult and Health Services,Head of Adults,Third Party Payments 4THIRD,474101,Purchase of Care,03/10/2018,3496912-2507850,"2,371.44",ALLIANCE CARE (TRENDLEWOOD) LTD.
Adult and Health Services,Head of Adults,Third Party Payments 4THIRD,474101,Purchase of Care,03/10/2018,3496912-2507852,"2,371.44",ALLIANCE CARE (TRENDLEWOOD) LTD.
Adult and Health Services,Head of Adults,Third Party Payments 4THIRD,474101,Purchase of Care,03/10/2018,3496912-2507857,"2,371.44",ALLIANCE CARE (TRENDLEWOOD) LTD.
Adult and Health Services,Head of Adults,Third Party Payments 4THIRD,474101,Purchase of Care,03/10/2018,3496912-2507867,"2,371.44",ALLIANCE CARE (TRENDLEWOOD) LTD.
Adult and Health Services,Head of Adults,Third Party Payments 4THIRD,474101,Purchase of Care,03/10/2018,3496912-2510679,677.55,ALLIANCE CARE (TRENDLEWOOD) LTD.
Adult and Health Services,Head of Adults,Third Party Payments 4THIRD,474101,Purchase of Care,03/10/2018,3496912-2510681,"1,687.91",ALLIANCE CARE (TRENDLEWOOD) LTD.
Adult and Health Services,Head of Adults,Third Party Payments 4THIRD,470102,Purchase of Care,03/10/2018,3496912-2510658,"1,220.89",ALLIANCE CARE (TRENDLEWOOD) LTD.
Adult and Health Services,Head of Adults,Third Party Payments 4THIRD,470101,Purchase of Care,03/10/2018,3496912-2507806,"2,555.68",ALLIANCE CARE (TRENDLEWOOD) LTD.
Adult and Health Services,Head of Adults,Third Party Payments 4THIRD,470101,Purchase of Care,03/10/2018,3496912-2507807,"2,279.00",ALLIANCE CARE (TRENDLEWOOD) LTD.
Adult and Health Services,Head of Adults,Third Party Payments 4THIRD,470101,Purchase of Care,03/10/2018,3496912-2507810,"2,279.00",ALLIANCE CARE (TRENDLEWOOD) LTD.
Adult and Health Services,Head of Adults,Third Party Payments 4THIRD,470101,Purchase of Care,03/10/2018,3496912-2507817,813.92,ALLIANCE CARE (TRENDLEWOOD) LTD.
Adult and Health Services,Head of Adults,Third Party Payments 4THIRD,470101,Purchase of Care,03/10/2018,3496912-2507822,"2,279.00",ALLIANCE CARE (TRENDLEWOOD) LTD.
Adult and Health Services,Head of Adults,Third Party Payments 4THIRD,470101,Purchase of Care,03/10/2018,3496912-2507825,"2,279.00",ALLIANCE CARE (TRENDLEWOOD) LTD.
Adult and Health Services,Head of Adults,Third Party Payments 4THIRD,470101,Purchase of Care,03/10/2018,3496912-2507831,"2,279.00",ALLIANCE CARE (TRENDLEWOOD) LTD.
Adult and Health Services,Head of Adults,Third Party Payments 4THIRD,470101,Purchase of Care,03/10/2018,3496912-2507838,"2,279.00",ALLIANCE CARE (TRENDLEWOOD) LTD.
Adult and Health Services,Head of Adults,Third Party Payments 4THIRD,470101,Purchase of Care,03/10/2018,3496912-2507839,"2,279.00",ALLIANCE CARE (TRENDLEWOOD) LTD.
Adult and Health Services,Head of Adults,Third Party Payments 4THIRD,470101,Purchase of Care,03/10/2018,3496912-2507840,"2,279.00",ALLIANCE CARE (TRENDLEWOOD) LTD.
Adult and Health Services,Head of Adults,Third Party Payments 4THIRD,470101,Purchase of Care,03/10/2018,3496912-2507843,"2,279.00",ALLIANCE CARE (TRENDLEWOOD) LTD.
Adult and Health Services,Head of Adults,Third Party Payments 4THIRD,470101,Purchase of Care,03/10/2018,3496912-2507845,"2,279.00",ALLIANCE CARE (TRENDLEWOOD) LTD.
Adult and Health Services,Head of Adults,Third Party Payments 4THIRD,470101,Purchase of Care,03/10/2018,3496912-2507849,"2,279.00",ALLIANCE CARE (TRENDLEWOOD) LTD.
Adult and Health Services,Head of Adults,Third Party Payments 4THIRD,470101,Purchase of Care,03/10/2018,3496912-2507854,"1,139.52",ALLIANCE CARE (TRENDLEWOOD) LTD.
Adult and Health Services,Head of Adults,Third Party Payments 4THIRD,470101,Purchase of Care,03/10/2018,3496912-2507855,"2,279.00",ALLIANCE CARE (TRENDLEWOOD) LTD.
Adult and Health Services,Head of Adults,Third Party Payments 4THIRD,470101,Purchase of Care,03/10/2018,3496912-2507860,"2,279.00",ALLIANCE CARE (TRENDLEWOOD) LTD.
Adult and Health Services,Head of Adults,Third Party Payments 4THIRD,470101,Purchase of Care,03/10/2018,3496912-2507862,"2,555.68",ALLIANCE CARE (TRENDLEWOOD) LTD.
Adult and Health Services,Head of Adults,Third Party Payments 4THIRD,470101,Purchase of Care,03/10/2018,3496912-2507863,"2,279.00",ALLIANCE CARE (TRENDLEWOOD) LTD.
Adult and Health Services,Head of Adults,Third Party Payments 4THIRD,470101,Purchase of Care,03/10/2018,3496912-2507864,"2,279.00",ALLIANCE CARE (TRENDLEWOOD) LTD.
Adult and Health Services,Head of Adults,Third Party Payments 4THIRD,470101,Purchase of Care,03/10/2018,3496912-2507865,"2,279.00",ALLIANCE CARE (TRENDLEWOOD) LTD.
Adult and Health Services,Head of Adults,Third Party Payments 4THIRD,470101,Purchase of Care,03/10/2018,3496912-2507871,"2,279.00",ALLIANCE CARE (TRENDLEWOOD) LTD.
Adult and Health Services,Head of Adults,Third Party Payments 4THIRD,470101,Purchase of Care,03/10/2018,3496912-2507872,"2,555.68",ALLIANCE CARE (TRENDLEWOOD) LTD.
Adult and Health Services,Head of Adults,Third Party Payments 4THIRD,470101,Purchase of Care,03/10/2018,3496912-2510696,"1,139.50",ALLIANCE CARE (TRENDLEWOOD) LTD.
Adult and Health Services,Head of Adults,Third Party Payments 4THIRD,471101,Purchase of Care,03/10/2018,3496912-2507802,"2,363.08",ALLIANCE CARE (TRENDLEWOOD) LTD.
Adult and Health Services,Head of Adults,Third Party Payments 4THIRD,471101,Purchase of Care,03/10/2018,3496912-2507805,"2,363.08",ALLIANCE CARE (TRENDLEWOOD) LTD.
Adult and Health Services,Head of Adults,Third Party Payments 4THIRD,471101,Purchase of Care,03/10/2018,3496912-2507813,"2,363.08",ALLIANCE CARE (TRENDLEWOOD) LTD.
Adult and Health Services,Head of Adults,Third Party Payments 4THIRD,471101,Purchase of Care,03/10/2018,3496912-2507819,"2,363.08",ALLIANCE CARE (TRENDLEWOOD) LTD.
Adult and Health Services,Head of Adults,Third Party Payments 4THIRD,471101,Purchase of Care,03/10/2018,3496912-2507829,"2,363.08",ALLIANCE CARE (TRENDLEWOOD) LTD.
Adult and Health Services,Head of Adults,Third Party Payments 4THIRD,471101,Purchase of Care,03/10/2018,3496912-2507844,"1,181.56",ALLIANCE CARE (TRENDLEWOOD) LTD.
Adult and Health Services,Head of Adults,Third Party Payments 4THIRD,471101,Purchase of Care,03/10/2018,3496912-2507848,"2,363.08",ALLIANCE CARE (TRENDLEWOOD) LTD.
Adult and Health Services,Head of Adults,Third Party Payments 4THIRD,471101,Purchase of Care,03/10/2018,3496912-2507856,"2,363.08",ALLIANCE CARE (TRENDLEWOOD) LTD.
Adult and Health Services,Head of Adults,Third Party Payments 4THIRD,471101,Purchase of Care,03/10/2018,3496912-2507859,"2,363.08",ALLIANCE CARE (TRENDLEWOOD) LTD.
Adult and Health Services,Head of Adults,Third Party Payments 4THIRD,471101,Purchase of Care,03/10/2018,3496912-2507861,"2,363.08",ALLIANCE CARE (TRENDLEWOOD) LTD.
Adult and Health Services,Head of Adults,Third Party Payments 4THIRD,471101,Purchase of Care,03/10/2018,3496912-2507866,"2,363.08",ALLIANCE CARE (TRENDLEWOOD) LTD.
Adult and Health Services,Head of Adults,Third Party Payments 4THIRD,471101,Purchase of Care,03/10/2018,3496912-2507869,"2,363.08",ALLIANCE CARE (TRENDLEWOOD) LTD.
Adult and Health Services,Head of Adults,Third Party Payments 4THIRD,471101,Purchase of Care,03/10/2018,3496912-2507870,"2,363.08",ALLIANCE CARE (TRENDLEWOOD) LTD.
Adult and Health Services,Head of Adults,Third Party Payments 4THIRD,470101,Purchase of Care,03/10/2018,3496913-2509165,"1,118.00",ANCHOR CAREHOMES LTD.
Adult and Health Services,Head of Adults,Third Party Payments 4THIRD,470101,Purchase of Care,03/10/2018,3496913-2509166,"2,236.00",ANCHOR CAREHOMES LTD.
Adult and Health Services,Head of Adults,Third Party Payments 4THIRD,470101,Purchase of Care,03/10/2018,3496913-2509167,"2,236.00",ANCHOR CAREHOMES LTD.
Adult and Health Services,Head of Adults,Third Party Payments 4THIRD,470101,Purchase of Care,03/10/2018,3496914-2510271,"2,324.00",ANCHOR TRUST.
Adult and Health Services,Head of Adults,Third Party Payments 4THIRD,470101,Purchase of Care,03/10/2018,3496915-2507339,"2,100.00",ANCHOR TRUST.
Adult and Health Services,Head of Adults,Third Party Payments 4THIRD,470101,Purchase of Care,03/10/2018,3496915-2507340,"2,100.00",ANCHOR TRUST.
Adult and Health Services,Head of Adults,Third Party Payments 4THIRD,470101,Purchase of Care,03/10/2018,3496915-2510791,750.00,ANCHOR TRUST.
Children and Young Peoples Services,Head of Childrens Social Care,Supplies and Services,338044,Services,03/10/2018,310904-1011,"6,003.20",ANDREW BECKWITH INDEPENDENT LTD.
Adult and Health Services,Head of Adults,Third Party Payments 4THIRD,471101,Purchase of Care,03/10/2018,3496916-2507587,"1,943.48",ANDREW PASS.
Regeneration and Local Services,Direct Services,Transport,210057,Repair and Maintenance of Vehicles,03/10/2018,310905-34589,"1,395.00",AQUASEAL RUBBER LTD.
Adult and Health Services,Head of Adults,Third Party Payments 4THIRD,474101,Purchase of Care,03/10/2018,3496917-2508885,"2,324.00",ARMSTRONG HOUSE.
Adult and Health Services,Head of Adults,Third Party Payments 4THIRD,470101,Purchase of Care,03/10/2018,3496918-2507548,"2,100.00",ASCOT CARE NORTH EAST LTD.
Adult and Health Services,Head of Adults,Third Party Payments 4THIRD,470101,Purchase of Care,03/10/2018,3496918-2507549,"2,100.00",ASCOT CARE NORTH EAST LTD.
Adult and Health Services,Head of Adults,Third Party Payments 4THIRD,470101,Purchase of Care,03/10/2018,3496919-2506865,"2,279.00",ASCOT CARE NORTHEAST LTD T/A SPRINGFIELD LODGE CARE HOME.
Adult and Health Services,Head of Adults,Third Party Payments 4THIRD,470101,Purchase of Care,03/10/2018,3496919-2506866,"2,279.00",ASCOT CARE NORTHEAST LTD T/A SPRINGFIELD LODGE CARE HOME.
Adult and Health Services,Head of Adults,Third Party Payments 4THIRD,470101,Purchase of Care,03/10/2018,3496919-2506867,"2,279.00",ASCOT CARE NORTHEAST LTD T/A SPRINGFIELD LODGE CARE HOME.
Adult and Health Services,Head of Adults,Third Party Payments 4THIRD,470101,Purchase of Care,03/10/2018,3496919-2506870,"1,122.42",ASCOT CARE NORTHEAST LTD T/A SPRINGFIELD LODGE CARE HOME.
Adult and Health Services,Head of Adults,Third Party Payments 4THIRD,470101,Purchase of Care,03/10/2018,3496919-2506872,"1,378.04",ASCOT CARE NORTHEAST LTD T/A SPRINGFIELD LODGE CARE HOME.
Adult and Health Services,Head of Adults,Third Party Payments 4THIRD,470101,Purchase of Care,03/10/2018,3496919-2506873,"1,655.60",ASCOT CARE NORTHEAST LTD T/A SPRINGFIELD LODGE CARE HOME.
Adult and Health Services,Head of Adults,Third Party Payments 4THIRD,470101,Purchase of Care,03/10/2018,3496919-2506874,"1,738.60",ASCOT CARE NORTHEAST LTD T/A SPRINGFIELD LODGE CARE HOME.
Adult and Health Services,Head of Adults,Third Party Payments 4THIRD,470101,Purchase of Care,03/10/2018,3496919-2506875,"2,279.00",ASCOT CARE NORTHEAST LTD T/A SPRINGFIELD LODGE CARE HOME.
Adult and Health Services,Head of Adults,Third Party Payments 4THIRD,470101,Purchase of Care,03/10/2018,3496919-2506876,"1,092.36",ASCOT CARE NORTHEAST LTD T/A SPRINGFIELD LODGE CARE HOME.
Adult and Health Services,Head of Adults,Third Party Payments 4THIRD,470101,Purchase of Care,03/10/2018,3496919-2506877,"2,279.00",ASCOT CARE NORTHEAST LTD T/A SPRINGFIELD LODGE CARE HOME.
Adult and Health Services,Head of Adults,Third Party Payments 4THIRD,470101,Purchase of Care,03/10/2018,3496919-2506878,"2,279.00",ASCOT CARE NORTHEAST LTD T/A SPRINGFIELD LODGE CARE HOME.
Adult and Health Services,Head of Adults,Third Party Payments 4THIRD,470101,Purchase of Care,03/10/2018,3496919-2506879,"1,277.24",ASCOT CARE NORTHEAST LTD T/A SPRINGFIELD LODGE CARE HOME.
Adult and Health Services,Head of Adults,Third Party Payments 4THIRD,470101,Purchase of Care,03/10/2018,3496919-2506880,"1,419.80",ASCOT CARE NORTHEAST LTD T/A SPRINGFIELD LODGE CARE HOME.
Adult and Health Services,Head of Adults,Third Party Payments 4THIRD,470101,Purchase of Care,03/10/2018,3496919-2506881,"2,279.00",ASCOT CARE NORTHEAST LTD T/A SPRINGFIELD LODGE CARE HOME.
Adult and Health Services,Head of Adults,Third Party Payments 4THIRD,470101,Purchase of Care,03/10/2018,3496919-2506882,"1,688.60",ASCOT CARE NORTHEAST LTD T/A SPRINGFIELD LODGE CARE HOME.
Adult and Health Services,Head of Adults,Third Party Payments 4THIRD,470101,Purchase of Care,03/10/2018,3496919-2506883,"1,726.60",ASCOT CARE NORTHEAST LTD T/A SPRINGFIELD LODGE CARE HOME.
Adult and Health Services,Head of Adults,Third Party Payments 4THIRD,470101,Purchase of Care,03/10/2018,3496919-2506884,"1,708.20",ASCOT CARE NORTHEAST LTD T/A SPRINGFIELD LODGE CARE HOME.
Adult and Health Services,Head of Adults,Third Party Payments 4THIRD,470101,Purchase of Care,03/10/2018,3496919-2506885,"1,709.08",ASCOT CARE NORTHEAST LTD T/A SPRINGFIELD LODGE CARE HOME.
Adult and Health Services,Head of Adults,Third Party Payments 4THIRD,470101,Purchase of Care,03/10/2018,3496919-2506886,"1,688.96",ASCOT CARE NORTHEAST LTD T/A SPRINGFIELD LODGE CARE HOME.
Adult and Health Services,Head of Adults,Third Party Payments 4THIRD,470101,Purchase of Care,03/10/2018,3496919-2506888,"1,726.60",ASCOT CARE NORTHEAST LTD T/A SPRINGFIELD LODGE CARE HOME.
Adult and Health Services,Head of Adults,Third Party Payments 4THIRD,470101,Purchase of Care,03/10/2018,3496919-2506889,"1,726.60",ASCOT CARE NORTHEAST LTD T/A SPRINGFIELD LODGE CARE HOME.
Adult and Health Services,Head of Adults,Third Party Payments 4THIRD,470101,Purchase of Care,03/10/2018,3496919-2506890,"2,279.00",ASCOT CARE NORTHEAST LTD T/A SPRINGFIELD LODGE CARE HOME.
Adult and Health Services,Head of Adults,Third Party Payments 4THIRD,470101,Purchase of Care,03/10/2018,3496919-2506892,"1,428.16",ASCOT CARE NORTHEAST LTD T/A SPRINGFIELD LODGE CARE HOME.
Adult and Health Services,Head of Adults,Third Party Payments 4THIRD,470101,Purchase of Care,03/10/2018,3496919-2506893,"2,279.00",ASCOT CARE NORTHEAST LTD T/A SPRINGFIELD LODGE CARE HOME.
Adult and Health Services,Head of Adults,Third Party Payments 4THIRD,471101,Purchase of Care,03/10/2018,3496919-2506864,"1,012.74",ASCOT CARE NORTHEAST LTD T/A SPRINGFIELD LODGE CARE HOME.
Adult and Health Services,Head of Adults,Third Party Payments 4THIRD,471101,Purchase of Care,03/10/2018,3496919-2506868,"2,363.08",ASCOT CARE NORTHEAST LTD T/A SPRINGFIELD LODGE CARE HOME.
Adult and Health Services,Head of Adults,Third Party Payments 4THIRD,471101,Purchase of Care,03/10/2018,3496919-2506869,"1,810.68",ASCOT CARE NORTHEAST LTD T/A SPRINGFIELD LODGE CARE HOME.
Adult and Health Services,Head of Adults,Third Party Payments 4THIRD,471101,Purchase of Care,03/10/2018,3496919-2506871,"2,363.08",ASCOT CARE NORTHEAST LTD T/A SPRINGFIELD LODGE CARE HOME.
Adult and Health Services,Head of Adults,Third Party Payments 4THIRD,471101,Purchase of Care,03/10/2018,3496919-2506887,"1,296.48",ASCOT CARE NORTHEAST LTD T/A SPRINGFIELD LODGE CARE HOME.
Adult and Health Services,Head of Adults,Third Party Payments 4THIRD,471101,Purchase of Care,03/10/2018,3496919-2506891,"1,943.04",ASCOT CARE NORTHEAST LTD T/A SPRINGFIELD LODGE CARE HOME.
Adult and Health Services,Head of Adults,Third Party Payments 4THIRD,478101,Purchase of Care,03/10/2018,3496180-1836876H,"4,140.00",ASHDOWN CARE HOMES LTD T/A ASHDOWN CARE.
Adult and Health Services,Head of Adults,Third Party Payments 4THIRD,474101,Purchase of Care,03/10/2018,3496920-2509730,"2,700.00",ASHFIELD NURSING HOME LTD.
Regeneration and Local Services,Culture & Sport,Supplies and Services,312013,Newspapers books and periodicals E312,03/10/2018,3497242-5839930,550.97,ASKEWS & HOLTS LIBRARY SERVICES LTD.
Regeneration and Local Services,Culture & Sport,Supplies and Services,312013,Newspapers books and periodicals E312,03/10/2018,3497242-5843061,573.19,ASKEWS & HOLTS LIBRARY SERVICES LTD.
Regeneration and Local Services,Culture & Sport,Supplies and Services,312013,Newspapers books and periodicals E312,03/10/2018,3497242-5846195,605.36,ASKEWS & HOLTS LIBRARY SERVICES LTD.
Adult and Health Services,Head of Adults,Third Party Payments 4THIRD,470101,Purchase of Care,03/10/2018,3496921-2508877,"1,700.00",ASPIRE CARE GROUP.
Adult and Health Services,Head of Adults,Third Party Payments 4THIRD,470101,Purchase of Care,03/10/2018,3496921-2508878,687.52,ASPIRE CARE GROUP.
Adult and Health Services,Head of Adults,Third Party Payments 4THIRD,470101,Purchase of Care,03/10/2018,3496921-2508879,"1,785.00",ASPIRE CARE GROUP.
Adult and Health Services,Head of Adults,Third Party Payments 4THIRD,470101,Purchase of Care,03/10/2018,3496921-2508880,"2,695.00",ASPIRE CARE GROUP.
Adult and Health Services,Head of Adults,Third Party Payments 4THIRD,470101,Purchase of Care,03/10/2018,3496921-2508881,"3,570.00",ASPIRE CARE GROUP.
Adult and Health Services,Head of Adults,Third Party Payments 4THIRD,470101,Purchase of Care,03/10/2018,3496921-2508882,"1,785.00",ASPIRE CARE GROUP.
Adult and Health Services,Head of Adults,Third Party Payments 4THIRD,470101,Purchase of Care,03/10/2018,3496921-2508883,668.64,ASPIRE CARE GROUP.
Adult and Health Services,Head of Adults,Third Party Payments 4THIRD,470101,Purchase of Care,03/10/2018,3496921-2508884,"2,003.84",ASPIRE CARE GROUP.
Adult and Health Services,Head of Adults,Third Party Payments 4THIRD,470101,Purchase of Care,03/10/2018,3496922-2507534,"2,003.84",ASPIRE CARE GROUP.
Adult and Health Services,Head of Adults,Third Party Payments 4THIRD,470101,Purchase of Care,03/10/2018,3496922-2507535,"2,003.84",ASPIRE CARE GROUP.
Adult and Health Services,Head of Adults,Third Party Payments 4THIRD,470101,Purchase of Care,03/10/2018,3496922-2507536,"2,003.84",ASPIRE CARE GROUP.
Adult and Health Services,Head of Adults,Third Party Payments 4THIRD,470101,Purchase of Care,03/10/2018,3496923-2509781,"1,001.92",ASPIRE CARE GROUP.
Adult and Health Services,Head of Adults,Third Party Payments 4THIRD,470101,Purchase of Care,03/10/2018,3496923-2509782,"2,003.84",ASPIRE CARE GROUP.
Adult and Health Services,Head of Adults,Third Party Payments 4THIRD,470101,Purchase of Care,03/10/2018,3496923-2509783,"2,003.84",ASPIRE CARE GROUP.
Adult and Health Services,Head of Adults,Third Party Payments 4THIRD,470101,Purchase of Care,03/10/2018,3496923-2509784,"1,594.84",ASPIRE CARE GROUP.
Adult and Health Services,Head of Adults,Third Party Payments 4THIRD,470101,Purchase of Care,03/10/2018,3496923-2509785,"1,324.88",ASPIRE CARE GROUP.
Adult and Health Services,Head of Adults,Third Party Payments 4THIRD,470101,Purchase of Care,03/10/2018,3496923-2509786,"1,452.64",ASPIRE CARE GROUP.
Adult and Health Services,Head of Adults,Third Party Payments 4THIRD,474101,Purchase of Care,03/10/2018,3496924-2400220,"2,400.00",ASTORIA HEALTHCARE LTD.
Adult and Health Services,Head of Adults,Third Party Payments 4THIRD,474101,Purchase of Care,03/10/2018,3496924-2411668,"2,400.00",ASTORIA HEALTHCARE LTD.
Adult and Health Services,Head of Adults,Third Party Payments 4THIRD,474101,Purchase of Care,03/10/2018,3496924-2416664,"2,400.00",ASTORIA HEALTHCARE LTD.
Adult and Health Services,Head of Adults,Third Party Payments 4THIRD,474101,Purchase of Care,03/10/2018,3496924-2421450,"2,400.00",ASTORIA HEALTHCARE LTD.
Adult and Health Services,Head of Adults,Third Party Payments 4THIRD,474101,Purchase of Care,03/10/2018,3496924-2426065,"2,400.00",ASTORIA HEALTHCARE LTD.
Adult and Health Services,Head of Adults,Third Party Payments 4THIRD,474101,Purchase of Care,03/10/2018,3496924-2431001,"2,400.00",ASTORIA HEALTHCARE LTD.
Adult and Health Services,Head of Adults,Third Party Payments 4THIRD,474101,Purchase of Care,03/10/2018,3496924-2435964,"2,400.00",ASTORIA HEALTHCARE LTD.
Adult and Health Services,Head of Adults,Third Party Payments 4THIRD,474101,Purchase of Care,03/10/2018,3496924-2441338,"2,400.00",ASTORIA HEALTHCARE LTD.
Adult and Health Services,Head of Adults,Third Party Payments 4THIRD,474101,Purchase of Care,03/10/2018,3496924-2446276,"2,400.00",ASTORIA HEALTHCARE LTD.
Adult and Health Services,Head of Adults,Third Party Payments 4THIRD,474101,Purchase of Care,03/10/2018,3496924-2452477,"2,400.00",ASTORIA HEALTHCARE LTD.
Adult and Health Services,Head of Adults,Third Party Payments 4THIRD,474101,Purchase of Care,03/10/2018,3496924-2473505,"2,400.00",ASTORIA HEALTHCARE LTD.
Adult and Health Services,Head of Adults,Third Party Payments 4THIRD,474101,Purchase of Care,03/10/2018,3496924-2491561,"2,400.00",ASTORIA HEALTHCARE LTD.
Adult and Health Services,Head of Adults,Third Party Payments 4THIRD,474101,Purchase of Care,03/10/2018,3496924-2505435,"2,400.00",ASTORIA HEALTHCARE LTD.
Adult and Health Services,Head of Adults,Third Party Payments 4THIRD,474101,Purchase of Care,03/10/2018,3496924-2510273,"2,400.00",ASTORIA HEALTHCARE LTD.
Adult and Health Services,Head of Adults,Third Party Payments 4THIRD,474101,Purchase of Care,03/10/2018,3496925-2509725,"2,324.00",ATLAS CARE HOMES LTD.
Adult and Health Services,Head of Adults,Third Party Payments 4THIRD,474101,Purchase of Care,03/10/2018,3496925-2509726,"1,210.00",ATLAS CARE HOMES LTD.
Adult and Health Services,Head of Adults,Third Party Payments 4THIRD,470101,Purchase of Care,03/10/2018,3496926-2509157,"3,264.00",AUTISM CARE UK (4) LTD.
Adult and Health Services,Head of Adults,Third Party Payments 4THIRD,470101,Purchase of Care,03/10/2018,3496926-2509158,"2,003.84",AUTISM CARE UK (4) LTD.
Adult and Health Services,Head of Adults,Third Party Payments 4THIRD,470101,Purchase of Care,03/10/2018,3496926-2509159,"9,047.44",AUTISM CARE UK (4) LTD.
Adult and Health Services,Head of Adults,Third Party Payments 4THIRD,470101,Purchase of Care,03/10/2018,3496926-2509160,"4,329.68",AUTISM CARE UK (4) LTD.
Adult and Health Services,Head of Adults,Third Party Payments 4THIRD,470101,Purchase of Care,03/10/2018,3496926-2509161,"1,742.44",AUTISM CARE UK (4) LTD.
Adult and Health Services,Head of Adults,Third Party Payments 4THIRD,470101,Purchase of Care,03/10/2018,3496926-2509162,568.96,AUTISM CARE UK (4) LTD.
Adult and Health Services,Head of Adults,Third Party Payments 4THIRD,470101,Purchase of Care,03/10/2018,3496926-2509163,"3,091.20",AUTISM CARE UK (4) LTD.
Adult and Health Services,Head of Adults,Third Party Payments 4THIRD,478101,Purchase of Care,03/10/2018,3496185-1827322H,"6,561.96",AUTISM CARE UK (4) LTD.
Adult and Health Services,Head of Adults,Third Party Payments 4THIRD,478101,Purchase of Care,03/10/2018,3496185-1827698H,"3,948.80",AUTISM CARE UK (4) LTD.
Adult and Health Services,Head of Adults,Third Party Payments 4THIRD,478101,Purchase of Care,03/10/2018,3496185-1828524H,"3,047.68",AUTISM CARE UK (4) LTD.
Adult and Health Services,Head of Adults,Third Party Payments 4THIRD,478101,Purchase of Care,03/10/2018,3496185-1828727H,"4,699.76",AUTISM CARE UK (4) LTD.
Adult and Health Services,Head of Adults,Third Party Payments 4THIRD,478101,Purchase of Care,03/10/2018,3496185-1828783H,"3,948.80",AUTISM CARE UK (4) LTD.
Adult and Health Services,Head of Adults,Third Party Payments 4THIRD,478101,Purchase of Care,03/10/2018,3496185-1828922H,"2,505.08",AUTISM CARE UK (4) LTD.
Adult and Health Services,Head of Adults,Third Party Payments 4THIRD,478101,Purchase of Care,03/10/2018,3496185-1829014H,"3,948.80",AUTISM CARE UK (4) LTD.
Adult and Health Services,Head of Adults,Third Party Payments 4THIRD,478101,Purchase of Care,03/10/2018,3496185-1829026H,"3,948.80",AUTISM CARE UK (4) LTD.
Adult and Health Services,Head of Adults,Third Party Payments 4THIRD,478101,Purchase of Care,03/10/2018,3496185-1829208H,"2,505.08",AUTISM CARE UK (4) LTD.
Adult and Health Services,Head of Adults,Third Party Payments 4THIRD,478101,Purchase of Care,03/10/2018,3496185-1829719H,"7,232.04",AUTISM CARE UK (4) LTD.
Adult and Health Services,Head of Adults,Third Party Payments 4THIRD,478101,Purchase of Care,03/10/2018,3496185-1834586H,"6,561.96",AUTISM CARE UK (4) LTD.
Adult and Health Services,Head of Adults,Third Party Payments 4THIRD,478101,Purchase of Care,03/10/2018,3496185-1834960H,"3,948.80",AUTISM CARE UK (4) LTD.
Adult and Health Services,Head of Adults,Third Party Payments 4THIRD,478101,Purchase of Care,03/10/2018,3496185-1835783H,"3,047.68",AUTISM CARE UK (4) LTD.
Adult and Health Services,Head of Adults,Third Party Payments 4THIRD,478101,Purchase of Care,03/10/2018,3496185-1835987H,"4,699.76",AUTISM CARE UK (4) LTD.
Adult and Health Services,Head of Adults,Third Party Payments 4THIRD,478101,Purchase of Care,03/10/2018,3496185-1836042H,"3,948.80",AUTISM CARE UK (4) LTD.
Adult and Health Services,Head of Adults,Third Party Payments 4THIRD,478101,Purchase of Care,03/10/2018,3496185-1836178H,"2,505.08",AUTISM CARE UK (4) LTD.
Adult and Health Services,Head of Adults,Third Party Payments 4THIRD,478101,Purchase of Care,03/10/2018,3496185-1836274H,"3,948.80",AUTISM CARE UK (4) LTD.
Adult and Health Services,Head of Adults,Third Party Payments 4THIRD,478101,Purchase of Care,03/10/2018,3496185-1836288H,"3,948.80",AUTISM CARE UK (4) LTD.
Adult and Health Services,Head of Adults,Third Party Payments 4THIRD,478101,Purchase of Care,03/10/2018,3496185-1836461H,"2,505.08",AUTISM CARE UK (4) LTD.
Regeneration and Local Services,Culture & Sport,Supplies and Services,384199,Miscellaneous Expenses,03/10/2018,3497244-1055,"1,200.00",BACK CHAT BRASS.
Adult and Health Services,Head of Adults,Third Party Payments 4THIRD,474999,Purchase of Care,03/10/2018,3496934-2510365,"1,615.49",BARCHESTER HEALTHCARE HOMES LTD.
Adult and Health Services,Head of Adults,Third Party Payments 4THIRD,474101,Purchase of Care,03/10/2018,3496929-2509428,"1,976.00",BARCHESTER HEALTHCARE HOMES LTD.
Adult and Health Services,Head of Adults,Third Party Payments 4THIRD,474101,Purchase of Care,03/10/2018,3496930-2509982,"2,480.00",BARCHESTER HEALTHCARE HOMES LTD.
Adult and Health Services,Head of Adults,Third Party Payments 4THIRD,474101,Purchase of Care,03/10/2018,3496931-2491365,"2,940.57",BARCHESTER HEALTHCARE HOMES LTD.
Adult and Health Services,Head of Adults,Third Party Payments 4THIRD,474101,Purchase of Care,03/10/2018,3496931-2491377,"2,950.00",BARCHESTER HEALTHCARE HOMES LTD.
Adult and Health Services,Head of Adults,Third Party Payments 4THIRD,474101,Purchase of Care,03/10/2018,3496931-2491401,"2,950.00",BARCHESTER HEALTHCARE HOMES LTD.
Adult and Health Services,Head of Adults,Third Party Payments 4THIRD,474101,Purchase of Care,03/10/2018,3496931-2491461,"2,990.00",BARCHESTER HEALTHCARE HOMES LTD.
Adult and Health Services,Head of Adults,Third Party Payments 4THIRD,474101,Purchase of Care,03/10/2018,3496931-2491702,"2,700.00",BARCHESTER HEALTHCARE HOMES LTD.
Adult and Health Services,Head of Adults,Third Party Payments 4THIRD,474101,Purchase of Care,03/10/2018,3496931-2491703,"2,478.00",BARCHESTER HEALTHCARE HOMES LTD.
Adult and Health Services,Head of Adults,Third Party Payments 4THIRD,474101,Purchase of Care,03/10/2018,3496931-2508415,992.00,BARCHESTER HEALTHCARE HOMES LTD.
Adult and Health Services,Head of Adults,Third Party Payments 4THIRD,474101,Purchase of Care,03/10/2018,3496931-2508418,"2,950.00",BARCHESTER HEALTHCARE HOMES LTD.
Adult and Health Services,Head of Adults,Third Party Payments 4THIRD,474101,Purchase of Care,03/10/2018,3496931-2508419,"2,990.00",BARCHESTER HEALTHCARE HOMES LTD.
Adult and Health Services,Head of Adults,Third Party Payments 4THIRD,474101,Purchase of Care,03/10/2018,3496931-2508420,"2,700.00",BARCHESTER HEALTHCARE HOMES LTD.
Adult and Health Services,Head of Adults,Third Party Payments 4THIRD,474101,Purchase of Care,03/10/2018,3496931-2508421,"2,478.00",BARCHESTER HEALTHCARE HOMES LTD.
Adult and Health Services,Head of Adults,Third Party Payments 4THIRD,474101,Purchase of Care,03/10/2018,3496931-2510584,"2,950.00",BARCHESTER HEALTHCARE HOMES LTD.
Adult and Health Services,Head of Adults,Third Party Payments 4THIRD,474101,Purchase of Care,03/10/2018,3496934-2508518,"2,720.00",BARCHESTER HEALTHCARE HOMES LTD.
Adult and Health Services,Head of Adults,Third Party Payments 4THIRD,474101,Purchase of Care,03/10/2018,3496934-2508521,"2,584.00",BARCHESTER HEALTHCARE HOMES LTD.
Adult and Health Services,Head of Adults,Third Party Payments 4THIRD,474101,Purchase of Care,03/10/2018,3496934-2508522,"1,890.00",BARCHESTER HEALTHCARE HOMES LTD.
Adult and Health Services,Head of Adults,Third Party Payments 4THIRD,474101,Purchase of Care,03/10/2018,3496934-2508523,"1,980.00",BARCHESTER HEALTHCARE HOMES LTD.
Adult and Health Services,Head of Adults,Third Party Payments 4THIRD,474101,Purchase of Care,03/10/2018,3496934-2508524,"1,204.52",BARCHESTER HEALTHCARE HOMES LTD.
Adult and Health Services,Head of Adults,Third Party Payments 4THIRD,474101,Purchase of Care,03/10/2018,3496934-2508525,"2,584.00",BARCHESTER HEALTHCARE HOMES LTD.
Adult and Health Services,Head of Adults,Third Party Payments 4THIRD,474101,Purchase of Care,03/10/2018,3496934-2508526,"6,964.00",BARCHESTER HEALTHCARE HOMES LTD.
Adult and Health Services,Head of Adults,Third Party Payments 4THIRD,474101,Purchase of Care,03/10/2018,3496934-2510363,"14,300.00",BARCHESTER HEALTHCARE HOMES LTD.
Adult and Health Services,Head of Adults,Third Party Payments 4THIRD,474101,Purchase of Care,03/10/2018,3496934-2510364,588.00,BARCHESTER HEALTHCARE HOMES LTD.
Adult and Health Services,Head of Adults,Third Party Payments 4THIRD,470101,Purchase of Care,03/10/2018,3496928-2508367,"2,324.00",BARCHESTER HEALTHCARE HOMES LTD.
Adult and Health Services,Head of Adults,Third Party Payments 4THIRD,470101,Purchase of Care,03/10/2018,3496928-2508368,"2,324.00",BARCHESTER HEALTHCARE HOMES LTD.
Adult and Health Services,Head of Adults,Third Party Payments 4THIRD,470101,Purchase of Care,03/10/2018,3496928-2508369,"2,324.00",BARCHESTER HEALTHCARE HOMES LTD.
Adult and Health Services,Head of Adults,Third Party Payments 4THIRD,470101,Purchase of Care,03/10/2018,3496928-2508370,"2,324.00",BARCHESTER HEALTHCARE HOMES LTD.
Adult and Health Services,Head of Adults,Third Party Payments 4THIRD,470101,Purchase of Care,03/10/2018,3496932-2488862,"2,327.00",BARCHESTER HEALTHCARE HOMES LTD.
Adult and Health Services,Head of Adults,Third Party Payments 4THIRD,470101,Purchase of Care,03/10/2018,3496932-2503434,"2,156.00",BARCHESTER HEALTHCARE HOMES LTD.
Adult and Health Services,Head of Adults,Third Party Payments 4THIRD,470101,Purchase of Care,03/10/2018,3496932-2508266,"2,156.00",BARCHESTER HEALTHCARE HOMES LTD.
Adult and Health Services,Head of Adults,Third Party Payments 4THIRD,470101,Purchase of Care,03/10/2018,3496935-2508489,"2,112.00",BARCHESTER HEALTHCARE HOMES LTD.
Adult and Health Services,Head of Adults,Third Party Payments 4THIRD,470101,Purchase of Care,03/10/2018,3496935-2508491,"1,056.00",BARCHESTER HEALTHCARE HOMES LTD.
Adult and Health Services,Head of Adults,Third Party Payments 4THIRD,471101,Purchase of Care,03/10/2018,3496927-2509978,"1,237.84",BARCHESTER HEALTHCARE HOMES LTD.
Adult and Health Services,Head of Adults,Third Party Payments 4THIRD,471101,Purchase of Care,03/10/2018,3496928-2508365,"2,420.00",BARCHESTER HEALTHCARE HOMES LTD.
Adult and Health Services,Head of Adults,Third Party Payments 4THIRD,471101,Purchase of Care,03/10/2018,3496928-2508366,605.00,BARCHESTER HEALTHCARE HOMES LTD.
Adult and Health Services,Head of Adults,Third Party Payments 4THIRD,471101,Purchase of Care,03/10/2018,3496928-2508371,"2,420.00",BARCHESTER HEALTHCARE HOMES LTD.
Adult and Health Services,Head of Adults,Third Party Payments 4THIRD,471101,Purchase of Care,03/10/2018,3496933-2509925,"2,102.80",BARCHESTER HEALTHCARE HOMES LTD.
Adult and Health Services,Head of Adults,Third Party Payments 4THIRD,471101,Purchase of Care,03/10/2018,3496935-2508490,"2,192.00",BARCHESTER HEALTHCARE HOMES LTD.
Children and Young Peoples Services,Head of Childrens Social Care,Third Party Payments 4THIRD,425040,Rendered by Voluntary Organisations,03/10/2018,3496187-1838556H,"3,280.20",BARNARDOS BELIEVE IN CHILDREN.
Children and Young Peoples Services,Head of Childrens Social Care,Third Party Payments 4THIRD,425040,Rendered by Voluntary Organisations,03/10/2018,3496187-1838678H,"3,920.00",BARNARDOS BELIEVE IN CHILDREN.
Children and Young Peoples Services,Head of Childrens Social Care,Third Party Payments 4THIRD,425040,Rendered by Voluntary Organisations,03/10/2018,3496187-1838796H,"2,920.12",BARNARDOS BELIEVE IN CHILDREN.
Children and Young Peoples Services,Head of Childrens Social Care,Third Party Payments 4THIRD,425040,Rendered by Voluntary Organisations,03/10/2018,3496187-1838843H,"3,280.20",BARNARDOS BELIEVE IN CHILDREN.
Children and Young Peoples Services,Head of Childrens Social Care,Third Party Payments 4THIRD,425040,Rendered by Voluntary Organisations,03/10/2018,3496187-1839057H,"3,280.20",BARNARDOS BELIEVE IN CHILDREN.
Children and Young Peoples Services,Head of Childrens Social Care,Third Party Payments 4THIRD,425040,Rendered by Voluntary Organisations,03/10/2018,3496187-1839411H,"2,920.12",BARNARDOS BELIEVE IN CHILDREN.
Children and Young Peoples Services,Head of Childrens Social Care,Third Party Payments 4THIRD,425040,Rendered by Voluntary Organisations,03/10/2018,3496187-1840068H,"3,039.96",BARNARDOS BELIEVE IN CHILDREN.
Children and Young Peoples Services,Head of Childrens Social Care,Third Party Payments 4THIRD,425040,Rendered by Voluntary Organisations,03/10/2018,3496187-1840808H,"2,920.12",BARNARDOS BELIEVE IN CHILDREN.
Regeneration and Local Services,Transport and Contracted Services,Third Party Payments 4THIRD,440999,Other third party payments E440,03/10/2018,3497247-60115,"6,514.32",BAYDALE CONTROL SYSTEMS LTD.
Adult and Health Services,Head of Adults,Third Party Payments 4THIRD,470101,Purchase of Care,03/10/2018,3496936-2509246,"1,540.62",BEAMISH RESIDENTIAL CARE HOME LTD.
Adult and Health Services,Head of Adults,Third Party Payments 4THIRD,470101,Purchase of Care,03/10/2018,3496936-2509249,"2,156.88",BEAMISH RESIDENTIAL CARE HOME LTD.
Adult and Health Services,Head of Adults,Third Party Payments 4THIRD,470101,Purchase of Care,03/10/2018,3496936-2509250,"2,156.88",BEAMISH RESIDENTIAL CARE HOME LTD.
Adult and Health Services,Head of Adults,Third Party Payments 4THIRD,470101,Purchase of Care,03/10/2018,3496936-2509253,"1,583.08",BEAMISH RESIDENTIAL CARE HOME LTD.
Adult and Health Services,Head of Adults,Third Party Payments 4THIRD,470101,Purchase of Care,03/10/2018,3496936-2509254,"1,078.44",BEAMISH RESIDENTIAL CARE HOME LTD.
Adult and Health Services,Head of Adults,Third Party Payments 4THIRD,470101,Purchase of Care,03/10/2018,3496936-2509255,"2,156.88",BEAMISH RESIDENTIAL CARE HOME LTD.
Adult and Health Services,Head of Adults,Third Party Payments 4THIRD,470101,Purchase of Care,03/10/2018,3496936-2509256,"2,156.88",BEAMISH RESIDENTIAL CARE HOME LTD.
Adult and Health Services,Head of Adults,Third Party Payments 4THIRD,470101,Purchase of Care,03/10/2018,3496936-2509257,"2,156.88",BEAMISH RESIDENTIAL CARE HOME LTD.
Adult and Health Services,Head of Adults,Third Party Payments 4THIRD,470101,Purchase of Care,03/10/2018,3496936-2509258,528.00,BEAMISH RESIDENTIAL CARE HOME LTD.
Adult and Health Services,Head of Adults,Third Party Payments 4THIRD,470101,Purchase of Care,03/10/2018,3496936-2509259,"1,604.36",BEAMISH RESIDENTIAL CARE HOME LTD.
Adult and Health Services,Head of Adults,Third Party Payments 4THIRD,470101,Purchase of Care,03/10/2018,3496936-2509260,"2,156.88",BEAMISH RESIDENTIAL CARE HOME LTD.
Adult and Health Services,Head of Adults,Third Party Payments 4THIRD,471101,Purchase of Care,03/10/2018,3496936-2509245,"2,242.24",BEAMISH RESIDENTIAL CARE HOME LTD.
Adult and Health Services,Head of Adults,Third Party Payments 4THIRD,471101,Purchase of Care,03/10/2018,3496936-2509247,"1,499.52",BEAMISH RESIDENTIAL CARE HOME LTD.
Adult and Health Services,Head of Adults,Third Party Payments 4THIRD,471101,Purchase of Care,03/10/2018,3496936-2509248,"1,487.84",BEAMISH RESIDENTIAL CARE HOME LTD.
Adult and Health Services,Head of Adults,Third Party Payments 4THIRD,471101,Purchase of Care,03/10/2018,3496936-2509251,"1,689.84",BEAMISH RESIDENTIAL CARE HOME LTD.
Adult and Health Services,Head of Adults,Third Party Payments 4THIRD,471101,Purchase of Care,03/10/2018,3496936-2509252,"2,242.24",BEAMISH RESIDENTIAL CARE HOME LTD.
Adult and Health Services,Head of Adults,Third Party Payments 4THIRD,470101,Purchase of Care,03/10/2018,3496937-2510311,"1,001.92",BENTON CARE SERVICES LTD.
Adult and Health Services,Head of Adults,Third Party Payments 4THIRD,470101,Purchase of Care,03/10/2018,3496937-2510312,"3,120.20",BENTON CARE SERVICES LTD.
Adult and Health Services,Head of Adults,Third Party Payments 4THIRD,470101,Purchase of Care,03/10/2018,3496937-2510313,"3,120.20",BENTON CARE SERVICES LTD.
Adult and Health Services,Head of Adults,Third Party Payments 4THIRD,470101,Purchase of Care,03/10/2018,3496937-2510314,"2,003.84",BENTON CARE SERVICES LTD.
Adult and Health Services,Head of Adults,Third Party Payments 4THIRD,470101,Purchase of Care,03/10/2018,3496937-2510315,"3,120.20",BENTON CARE SERVICES LTD.
Adult and Health Services,Head of Adults,Third Party Payments 4THIRD,470101,Purchase of Care,03/10/2018,3496937-2510316,"3,120.20",BENTON CARE SERVICES LTD.
Adult and Health Services,Head of Adults,Third Party Payments 4THIRD,470101,Purchase of Care,03/10/2018,3496937-2510317,"3,120.20",BENTON CARE SERVICES LTD.
Adult and Health Services,Head of Adults,Third Party Payments 4THIRD,470101,Purchase of Care,03/10/2018,3496937-2510318,"3,120.20",BENTON CARE SERVICES LTD.
Adult and Health Services,Public Health,Premises,145009,Cleaning and Domestic Supplies,03/10/2018,3497253-0000030347,"1,257.21",BETTAKLEEN LTD.
Adult and Health Services,Public Health,Premises,145009,Cleaning and Domestic Supplies,03/10/2018,3497253-0000030349,"1,016.29",BETTAKLEEN LTD.
Adult and Health Services,Head of Adults,Supplies and Services,304516,Equipment and Materials,03/10/2018,3497254-INV0181,908.50,BILL SCOTT TAXIS LTD.
Regeneration and Local Services,Technical Services,Supplies and Services,304221,Equipment and Materials,03/10/2018,3497255-BMPR/205/LW,"1,500.00",BISHOP MIDDLEHAM PLANT & RECYCLING LTD.
Adult and Health Services,Head of Adults,Third Party Payments 4THIRD,472101,Purchase of Care,03/10/2018,3496197-1702989H,609.00,BLUE RIBBON COMMUNITY CARE.
Adult and Health Services,Head of Adults,Third Party Payments 4THIRD,472101,Purchase of Care,03/10/2018,3496197-1737945H,609.00,BLUE RIBBON COMMUNITY CARE.
Adult and Health Services,Head of Adults,Third Party Payments 4THIRD,472101,Purchase of Care,03/10/2018,3496197-1772533H,609.00,BLUE RIBBON COMMUNITY CARE.
Adult and Health Services,Head of Adults,Third Party Payments 4THIRD,474101,Purchase of Care,03/10/2018,3496940-2507609,"1,185.72",BONDCARE WILLINGTON LTD.
Adult and Health Services,Head of Adults,Third Party Payments 4THIRD,474101,Purchase of Care,03/10/2018,3496940-2507612,"2,371.44",BONDCARE WILLINGTON LTD.
Adult and Health Services,Head of Adults,Third Party Payments 4THIRD,474101,Purchase of Care,03/10/2018,3496940-2507622,"1,185.72",BONDCARE WILLINGTON LTD.
Adult and Health Services,Head of Adults,Third Party Payments 4THIRD,474101,Purchase of Care,03/10/2018,3496940-2507624,"2,371.44",BONDCARE WILLINGTON LTD.
Adult and Health Services,Head of Adults,Third Party Payments 4THIRD,474101,Purchase of Care,03/10/2018,3496940-2507625,"2,209.20",BONDCARE WILLINGTON LTD.
Adult and Health Services,Head of Adults,Third Party Payments 4THIRD,474101,Purchase of Care,03/10/2018,3496940-2507627,"2,371.44",BONDCARE WILLINGTON LTD.
Adult and Health Services,Head of Adults,Third Party Payments 4THIRD,474101,Purchase of Care,03/10/2018,3496940-2507631,"1,185.72",BONDCARE WILLINGTON LTD.
Adult and Health Services,Head of Adults,Third Party Payments 4THIRD,474101,Purchase of Care,03/10/2018,3496940-2507633,"2,371.44",BONDCARE WILLINGTON LTD.
Adult and Health Services,Head of Adults,Third Party Payments 4THIRD,474101,Purchase of Care,03/10/2018,3496940-2507635,"2,371.44",BONDCARE WILLINGTON LTD.
Adult and Health Services,Head of Adults,Third Party Payments 4THIRD,474101,Purchase of Care,03/10/2018,3496940-2507640,"1,185.72",BONDCARE WILLINGTON LTD.
Adult and Health Services,Head of Adults,Third Party Payments 4THIRD,474101,Purchase of Care,03/10/2018,3496940-2507641,920.52,BONDCARE WILLINGTON LTD.
Adult and Health Services,Head of Adults,Third Party Payments 4THIRD,474101,Purchase of Care,03/10/2018,3496940-2507643,"2,371.44",BONDCARE WILLINGTON LTD.
Adult and Health Services,Head of Adults,Third Party Payments 4THIRD,474101,Purchase of Care,03/10/2018,3496940-2507651,"2,371.44",BONDCARE WILLINGTON LTD.
Adult and Health Services,Head of Adults,Third Party Payments 4THIRD,474101,Purchase of Care,03/10/2018,3496940-2507653,"2,371.44",BONDCARE WILLINGTON LTD.
Adult and Health Services,Head of Adults,Third Party Payments 4THIRD,474101,Purchase of Care,03/10/2018,3496940-2507663,"2,371.44",BONDCARE WILLINGTON LTD.
Adult and Health Services,Head of Adults,Third Party Payments 4THIRD,474101,Purchase of Care,03/10/2018,3496940-2507668,"1,185.72",BONDCARE WILLINGTON LTD.
Adult and Health Services,Head of Adults,Third Party Payments 4THIRD,474101,Purchase of Care,03/10/2018,3496940-2510405,"1,185.72",BONDCARE WILLINGTON LTD.
Adult and Health Services,Head of Adults,Third Party Payments 4THIRD,474101,Purchase of Care,03/10/2018,3496940-2510406,"14,997.69",BONDCARE WILLINGTON LTD.
Adult and Health Services,Head of Adults,Third Party Payments 4THIRD,474101,Purchase of Care,03/10/2018,3496940-2510565,"1,185.72",BONDCARE WILLINGTON LTD.
Adult and Health Services,Head of Adults,Third Party Payments 4THIRD,474101,Purchase of Care,03/10/2018,3496940-2510612,"1,185.72",BONDCARE WILLINGTON LTD.
Adult and Health Services,Head of Adults,Third Party Payments 4THIRD,474101,Purchase of Care,03/10/2018,3496941-2506042,"2,575.28",BONDCARE WILLINGTON LTD.
Adult and Health Services,Head of Adults,Third Party Payments 4THIRD,474101,Purchase of Care,03/10/2018,3496941-2506047,"2,575.28",BONDCARE WILLINGTON LTD.
Adult and Health Services,Head of Adults,Third Party Payments 4THIRD,474101,Purchase of Care,03/10/2018,3496941-2506051,"2,371.44",BONDCARE WILLINGTON LTD.
Adult and Health Services,Head of Adults,Third Party Payments 4THIRD,474101,Purchase of Care,03/10/2018,3496941-2506055,"2,371.44",BONDCARE WILLINGTON LTD.
Adult and Health Services,Head of Adults,Third Party Payments 4THIRD,474101,Purchase of Care,03/10/2018,3496941-2506063,"2,381.52",BONDCARE WILLINGTON LTD.
Adult and Health Services,Head of Adults,Third Party Payments 4THIRD,474101,Purchase of Care,03/10/2018,3496941-2506067,"2,371.44",BONDCARE WILLINGTON LTD.
Adult and Health Services,Head of Adults,Third Party Payments 4THIRD,474101,Purchase of Care,03/10/2018,3496941-2506069,"2,371.44",BONDCARE WILLINGTON LTD.
Adult and Health Services,Head of Adults,Third Party Payments 4THIRD,474101,Purchase of Care,03/10/2018,3496941-2506073,"2,371.44",BONDCARE WILLINGTON LTD.
Adult and Health Services,Head of Adults,Third Party Payments 4THIRD,470102,Purchase of Care,03/10/2018,3496941-2510447,"1,465.07",BONDCARE WILLINGTON LTD.
Adult and Health Services,Head of Adults,Third Party Payments 4THIRD,470101,Purchase of Care,03/10/2018,3496939-2508994,"2,052.00",BONDCARE WILLINGTON LTD.
Adult and Health Services,Head of Adults,Third Party Payments 4THIRD,470101,Purchase of Care,03/10/2018,3496940-2507607,"2,350.84",BONDCARE WILLINGTON LTD.
Adult and Health Services,Head of Adults,Third Party Payments 4THIRD,470101,Purchase of Care,03/10/2018,3496940-2507608,526.00,BONDCARE WILLINGTON LTD.
Adult and Health Services,Head of Adults,Third Party Payments 4THIRD,470101,Purchase of Care,03/10/2018,3496940-2507611,"3,087.24",BONDCARE WILLINGTON LTD.
Adult and Health Services,Head of Adults,Third Party Payments 4THIRD,470101,Purchase of Care,03/10/2018,3496940-2507616,"1,175.44",BONDCARE WILLINGTON LTD.
Adult and Health Services,Head of Adults,Third Party Payments 4THIRD,470101,Purchase of Care,03/10/2018,3496940-2507617,"4,418.40",BONDCARE WILLINGTON LTD.
Adult and Health Services,Head of Adults,Third Party Payments 4THIRD,470101,Purchase of Care,03/10/2018,3496940-2507618,"2,350.84",BONDCARE WILLINGTON LTD.
Adult and Health Services,Head of Adults,Third Party Payments 4THIRD,470101,Purchase of Care,03/10/2018,3496940-2507619,"2,350.84",BONDCARE WILLINGTON LTD.
Adult and Health Services,Head of Adults,Third Party Payments 4THIRD,470101,Purchase of Care,03/10/2018,3496940-2507620,"2,350.84",BONDCARE WILLINGTON LTD.
Adult and Health Services,Head of Adults,Third Party Payments 4THIRD,470101,Purchase of Care,03/10/2018,3496940-2507621,526.00,BONDCARE WILLINGTON LTD.
Adult and Health Services,Head of Adults,Third Party Payments 4THIRD,470101,Purchase of Care,03/10/2018,3496940-2507638,"2,350.84",BONDCARE WILLINGTON LTD.
Adult and Health Services,Head of Adults,Third Party Payments 4THIRD,470101,Purchase of Care,03/10/2018,3496940-2507639,"2,350.84",BONDCARE WILLINGTON LTD.
Adult and Health Services,Head of Adults,Third Party Payments 4THIRD,470101,Purchase of Care,03/10/2018,3496940-2507645,"2,350.84",BONDCARE WILLINGTON LTD.
Adult and Health Services,Head of Adults,Third Party Payments 4THIRD,470101,Purchase of Care,03/10/2018,3496940-2507648,"2,350.84",BONDCARE WILLINGTON LTD.
Adult and Health Services,Head of Adults,Third Party Payments 4THIRD,470101,Purchase of Care,03/10/2018,3496940-2507649,"2,350.84",BONDCARE WILLINGTON LTD.
Adult and Health Services,Head of Adults,Third Party Payments 4THIRD,470101,Purchase of Care,03/10/2018,3496940-2507650,"1,104.60",BONDCARE WILLINGTON LTD.
Adult and Health Services,Head of Adults,Third Party Payments 4THIRD,470101,Purchase of Care,03/10/2018,3496940-2507655,"2,350.84",BONDCARE WILLINGTON LTD.
Adult and Health Services,Head of Adults,Third Party Payments 4THIRD,470101,Purchase of Care,03/10/2018,3496940-2507657,"2,350.84",BONDCARE WILLINGTON LTD.
Adult and Health Services,Head of Adults,Third Party Payments 4THIRD,470101,Purchase of Care,03/10/2018,3496940-2507658,"2,350.84",BONDCARE WILLINGTON LTD.
Adult and Health Services,Head of Adults,Third Party Payments 4THIRD,470101,Purchase of Care,03/10/2018,3496940-2507659,736.40,BONDCARE WILLINGTON LTD.
Adult and Health Services,Head of Adults,Third Party Payments 4THIRD,470101,Purchase of Care,03/10/2018,3496940-2507660,"2,350.84",BONDCARE WILLINGTON LTD.
Adult and Health Services,Head of Adults,Third Party Payments 4THIRD,470101,Purchase of Care,03/10/2018,3496940-2507661,"2,350.84",BONDCARE WILLINGTON LTD.
Adult and Health Services,Head of Adults,Third Party Payments 4THIRD,470101,Purchase of Care,03/10/2018,3496940-2507662,"2,350.84",BONDCARE WILLINGTON LTD.
Adult and Health Services,Head of Adults,Third Party Payments 4THIRD,470101,Purchase of Care,03/10/2018,3496940-2507665,"2,350.84",BONDCARE WILLINGTON LTD.
Adult and Health Services,Head of Adults,Third Party Payments 4THIRD,470101,Purchase of Care,03/10/2018,3496940-2507666,"2,350.84",BONDCARE WILLINGTON LTD.
Adult and Health Services,Head of Adults,Third Party Payments 4THIRD,470101,Purchase of Care,03/10/2018,3496940-2507667,"2,350.84",BONDCARE WILLINGTON LTD.
Adult and Health Services,Head of Adults,Third Party Payments 4THIRD,470101,Purchase of Care,03/10/2018,3496940-2510802,"1,212.00",BONDCARE WILLINGTON LTD.
Adult and Health Services,Head of Adults,Third Party Payments 4THIRD,470101,Purchase of Care,03/10/2018,3496941-2506038,"2,279.00",BONDCARE WILLINGTON LTD.
Adult and Health Services,Head of Adults,Third Party Payments 4THIRD,470101,Purchase of Care,03/10/2018,3496941-2506039,"2,279.00",BONDCARE WILLINGTON LTD.
Adult and Health Services,Head of Adults,Third Party Payments 4THIRD,470101,Purchase of Care,03/10/2018,3496941-2506041,"2,279.00",BONDCARE WILLINGTON LTD.
Adult and Health Services,Head of Adults,Third Party Payments 4THIRD,470101,Purchase of Care,03/10/2018,3496941-2506045,"2,279.00",BONDCARE WILLINGTON LTD.
Adult and Health Services,Head of Adults,Third Party Payments 4THIRD,470101,Purchase of Care,03/10/2018,3496941-2506049,"2,279.00",BONDCARE WILLINGTON LTD.
Adult and Health Services,Head of Adults,Third Party Payments 4THIRD,470101,Purchase of Care,03/10/2018,3496941-2506050,"2,350.84",BONDCARE WILLINGTON LTD.
Adult and Health Services,Head of Adults,Third Party Payments 4THIRD,470101,Purchase of Care,03/10/2018,3496941-2506053,"2,279.00",BONDCARE WILLINGTON LTD.
Adult and Health Services,Head of Adults,Third Party Payments 4THIRD,470101,Purchase of Care,03/10/2018,3496941-2506054,"2,279.00",BONDCARE WILLINGTON LTD.
Adult and Health Services,Head of Adults,Third Party Payments 4THIRD,470101,Purchase of Care,03/10/2018,3496941-2506057,"1,175.44",BONDCARE WILLINGTON LTD.
Adult and Health Services,Head of Adults,Third Party Payments 4THIRD,470101,Purchase of Care,03/10/2018,3496941-2506058,"2,808.84",BONDCARE WILLINGTON LTD.
Adult and Health Services,Head of Adults,Third Party Payments 4THIRD,470101,Purchase of Care,03/10/2018,3496941-2506059,"2,279.00",BONDCARE WILLINGTON LTD.
Adult and Health Services,Head of Adults,Third Party Payments 4THIRD,470101,Purchase of Care,03/10/2018,3496941-2506060,"2,350.84",BONDCARE WILLINGTON LTD.
Adult and Health Services,Head of Adults,Third Party Payments 4THIRD,470101,Purchase of Care,03/10/2018,3496941-2506061,"2,555.68",BONDCARE WILLINGTON LTD.
Adult and Health Services,Head of Adults,Third Party Payments 4THIRD,470101,Purchase of Care,03/10/2018,3496941-2506062,"2,279.00",BONDCARE WILLINGTON LTD.
Adult and Health Services,Head of Adults,Third Party Payments 4THIRD,470101,Purchase of Care,03/10/2018,3496941-2506065,"2,279.00",BONDCARE WILLINGTON LTD.
Adult and Health Services,Head of Adults,Third Party Payments 4THIRD,470101,Purchase of Care,03/10/2018,3496941-2506066,"2,350.84",BONDCARE WILLINGTON LTD.
Adult and Health Services,Head of Adults,Third Party Payments 4THIRD,470101,Purchase of Care,03/10/2018,3496941-2506071,"2,279.00",BONDCARE WILLINGTON LTD.
Adult and Health Services,Head of Adults,Third Party Payments 4THIRD,470101,Purchase of Care,03/10/2018,3496941-2506072,"2,350.84",BONDCARE WILLINGTON LTD.
Adult and Health Services,Head of Adults,Third Party Payments 4THIRD,470101,Purchase of Care,03/10/2018,3496941-2506075,"2,350.84",BONDCARE WILLINGTON LTD.
Adult and Health Services,Head of Adults,Third Party Payments 4THIRD,470101,Purchase of Care,03/10/2018,3496941-2506076,"2,350.84",BONDCARE WILLINGTON LTD.
Adult and Health Services,Head of Adults,Third Party Payments 4THIRD,470101,Purchase of Care,03/10/2018,3496941-2506077,"2,350.84",BONDCARE WILLINGTON LTD.
Adult and Health Services,Head of Adults,Third Party Payments 4THIRD,470101,Purchase of Care,03/10/2018,3496941-2510485,"1,790.64",BONDCARE WILLINGTON LTD.
Adult and Health Services,Head of Adults,Third Party Payments 4THIRD,470101,Purchase of Care,03/10/2018,3496941-2510715,"1,139.50",BONDCARE WILLINGTON LTD.
Adult and Health Services,Head of Adults,Third Party Payments 4THIRD,470101,Purchase of Care,03/10/2018,3496941-2510803,"1,264.65",BONDCARE WILLINGTON LTD.
Adult and Health Services,Head of Adults,Third Party Payments 4THIRD,470101,Purchase of Care,03/10/2018,3496942-2507776,"2,350.84",BONDCARE WILLINGTON LTD.
Adult and Health Services,Head of Adults,Third Party Payments 4THIRD,470101,Purchase of Care,03/10/2018,3496942-2507781,"1,175.44",BONDCARE WILLINGTON LTD.
Adult and Health Services,Head of Adults,Third Party Payments 4THIRD,470101,Purchase of Care,03/10/2018,3496942-2507782,"3,563.68",BONDCARE WILLINGTON LTD.
Adult and Health Services,Head of Adults,Third Party Payments 4THIRD,470101,Purchase of Care,03/10/2018,3496942-2507784,"2,350.84",BONDCARE WILLINGTON LTD.
Adult and Health Services,Head of Adults,Third Party Payments 4THIRD,470101,Purchase of Care,03/10/2018,3496942-2507789,"2,350.84",BONDCARE WILLINGTON LTD.
Adult and Health Services,Head of Adults,Third Party Payments 4THIRD,470101,Purchase of Care,03/10/2018,3496942-2507790,"2,350.84",BONDCARE WILLINGTON LTD.
Adult and Health Services,Head of Adults,Third Party Payments 4THIRD,470101,Purchase of Care,03/10/2018,3496942-2507793,"2,350.84",BONDCARE WILLINGTON LTD.
Adult and Health Services,Head of Adults,Third Party Payments 4THIRD,470101,Purchase of Care,03/10/2018,3496942-2507795,"2,350.84",BONDCARE WILLINGTON LTD.
Adult and Health Services,Head of Adults,Third Party Payments 4THIRD,471101,Purchase of Care,03/10/2018,3496940-2507637,"2,363.08",BONDCARE WILLINGTON LTD.
Adult and Health Services,Head of Adults,Third Party Payments 4THIRD,471101,Purchase of Care,03/10/2018,3496940-2507656,"2,363.08",BONDCARE WILLINGTON LTD.
Adult and Health Services,Head of Adults,Third Party Payments 4THIRD,471101,Purchase of Care,03/10/2018,3496942-2507771,"2,363.08",BONDCARE WILLINGTON LTD.
Adult and Health Services,Head of Adults,Third Party Payments 4THIRD,471101,Purchase of Care,03/10/2018,3496942-2507772,"2,363.08",BONDCARE WILLINGTON LTD.
Adult and Health Services,Head of Adults,Third Party Payments 4THIRD,471101,Purchase of Care,03/10/2018,3496942-2507773,843.95,BONDCARE WILLINGTON LTD.
Adult and Health Services,Head of Adults,Third Party Payments 4THIRD,471101,Purchase of Care,03/10/2018,3496942-2507774,"2,363.08",BONDCARE WILLINGTON LTD.
Adult and Health Services,Head of Adults,Third Party Payments 4THIRD,471101,Purchase of Care,03/10/2018,3496942-2507775,"2,363.08",BONDCARE WILLINGTON LTD.
Adult and Health Services,Head of Adults,Third Party Payments 4THIRD,471101,Purchase of Care,03/10/2018,3496942-2507777,"1,181.54",BONDCARE WILLINGTON LTD.
Adult and Health Services,Head of Adults,Third Party Payments 4THIRD,471101,Purchase of Care,03/10/2018,3496942-2507778,"2,363.08",BONDCARE WILLINGTON LTD.
Adult and Health Services,Head of Adults,Third Party Payments 4THIRD,471101,Purchase of Care,03/10/2018,3496942-2507779,"2,363.08",BONDCARE WILLINGTON LTD.
Adult and Health Services,Head of Adults,Third Party Payments 4THIRD,471101,Purchase of Care,03/10/2018,3496942-2507780,"2,363.08",BONDCARE WILLINGTON LTD.
Adult and Health Services,Head of Adults,Third Party Payments 4THIRD,471101,Purchase of Care,03/10/2018,3496942-2507783,"2,363.08",BONDCARE WILLINGTON LTD.
Adult and Health Services,Head of Adults,Third Party Payments 4THIRD,471101,Purchase of Care,03/10/2018,3496942-2507785,"2,363.08",BONDCARE WILLINGTON LTD.
Adult and Health Services,Head of Adults,Third Party Payments 4THIRD,471101,Purchase of Care,03/10/2018,3496942-2507786,"2,363.08",BONDCARE WILLINGTON LTD.
Adult and Health Services,Head of Adults,Third Party Payments 4THIRD,471101,Purchase of Care,03/10/2018,3496942-2507787,"2,363.08",BONDCARE WILLINGTON LTD.
Adult and Health Services,Head of Adults,Third Party Payments 4THIRD,471101,Purchase of Care,03/10/2018,3496942-2507788,"1,181.56",BONDCARE WILLINGTON LTD.
Adult and Health Services,Head of Adults,Third Party Payments 4THIRD,471101,Purchase of Care,03/10/2018,3496942-2507791,"2,363.08",BONDCARE WILLINGTON LTD.
Adult and Health Services,Head of Adults,Third Party Payments 4THIRD,471101,Purchase of Care,03/10/2018,3496942-2507792,"2,363.08",BONDCARE WILLINGTON LTD.
Adult and Health Services,Head of Adults,Third Party Payments 4THIRD,471101,Purchase of Care,03/10/2018,3496942-2507794,"2,363.08",BONDCARE WILLINGTON LTD.
Adult and Health Services,Head of Adults,Third Party Payments 4THIRD,471101,Purchase of Care,03/10/2018,3496942-2507796,"2,363.08",BONDCARE WILLINGTON LTD.
Adult and Health Services,Head of Adults,Third Party Payments 4THIRD,471101,Purchase of Care,03/10/2018,3496942-2507797,"2,363.08",BONDCARE WILLINGTON LTD.
Adult and Health Services,Head of Adults,Third Party Payments 4THIRD,471101,Purchase of Care,03/10/2018,3496942-2507798,"2,363.08",BONDCARE WILLINGTON LTD.
Adult and Health Services,Head of Adults,Third Party Payments 4THIRD,471101,Purchase of Care,03/10/2018,3496942-2507799,"2,363.08",BONDCARE WILLINGTON LTD.
Adult and Health Services,Head of Adults,Third Party Payments 4THIRD,471101,Purchase of Care,03/10/2018,3496942-2507800,"2,363.08",BONDCARE WILLINGTON LTD.
Children and Young Peoples Services,Head of Education and Skills,Transport,230008,Contract Hire,03/10/2018,310906-DC01,"1,944.00",BOWES TRAVEL.
Adult and Health Services,Head of Adults,Third Party Payments 4THIRD,470101,Purchase of Care,03/10/2018,3496943-2510283,"1,576.24",BRIGHTERKIND T/A AVERY HOUSE HEALTHCARE LTD.
Adult and Health Services,Head of Adults,Third Party Payments 4THIRD,470101,Purchase of Care,03/10/2018,3496944-2506652,"5,344.05",BROOMHOUSE CARE LTD.
Adult and Health Services,Head of Adults,Third Party Payments 4THIRD,470101,Purchase of Care,03/10/2018,3496944-2506653,"2,279.00",BROOMHOUSE CARE LTD.
Adult and Health Services,Head of Adults,Third Party Payments 4THIRD,470101,Purchase of Care,03/10/2018,3496944-2506655,"2,279.00",BROOMHOUSE CARE LTD.
Adult and Health Services,Head of Adults,Third Party Payments 4THIRD,470101,Purchase of Care,03/10/2018,3496944-2506657,"2,279.00",BROOMHOUSE CARE LTD.
Adult and Health Services,Head of Adults,Third Party Payments 4THIRD,470101,Purchase of Care,03/10/2018,3496944-2506659,"2,279.00",BROOMHOUSE CARE LTD.
Adult and Health Services,Head of Adults,Third Party Payments 4THIRD,470101,Purchase of Care,03/10/2018,3496944-2506661,"2,279.00",BROOMHOUSE CARE LTD.
Adult and Health Services,Head of Adults,Third Party Payments 4THIRD,470101,Purchase of Care,03/10/2018,3496944-2506664,"2,279.00",BROOMHOUSE CARE LTD.
Adult and Health Services,Head of Adults,Third Party Payments 4THIRD,470101,Purchase of Care,03/10/2018,3496944-2506665,"2,279.00",BROOMHOUSE CARE LTD.
Adult and Health Services,Head of Adults,Third Party Payments 4THIRD,471101,Purchase of Care,03/10/2018,3496944-2506646,"2,363.08",BROOMHOUSE CARE LTD.
Adult and Health Services,Head of Adults,Third Party Payments 4THIRD,471101,Purchase of Care,03/10/2018,3496944-2506647,"2,025.49",BROOMHOUSE CARE LTD.
Adult and Health Services,Head of Adults,Third Party Payments 4THIRD,471101,Purchase of Care,03/10/2018,3496944-2506648,"2,363.08",BROOMHOUSE CARE LTD.
Adult and Health Services,Head of Adults,Third Party Payments 4THIRD,471101,Purchase of Care,03/10/2018,3496944-2506649,"2,363.08",BROOMHOUSE CARE LTD.
Adult and Health Services,Head of Adults,Third Party Payments 4THIRD,471101,Purchase of Care,03/10/2018,3496944-2506650,"2,363.08",BROOMHOUSE CARE LTD.
Adult and Health Services,Head of Adults,Third Party Payments 4THIRD,471101,Purchase of Care,03/10/2018,3496944-2506651,"1,181.52",BROOMHOUSE CARE LTD.
Adult and Health Services,Head of Adults,Third Party Payments 4THIRD,471101,Purchase of Care,03/10/2018,3496944-2506654,"2,363.08",BROOMHOUSE CARE LTD.
Adult and Health Services,Head of Adults,Third Party Payments 4THIRD,471101,Purchase of Care,03/10/2018,3496944-2506656,"2,363.08",BROOMHOUSE CARE LTD.
Adult and Health Services,Head of Adults,Third Party Payments 4THIRD,471101,Purchase of Care,03/10/2018,3496944-2506658,"2,363.08",BROOMHOUSE CARE LTD.
Adult and Health Services,Head of Adults,Third Party Payments 4THIRD,471101,Purchase of Care,03/10/2018,3496944-2506660,"2,363.08",BROOMHOUSE CARE LTD.
Adult and Health Services,Head of Adults,Third Party Payments 4THIRD,471101,Purchase of Care,03/10/2018,3496944-2506662,"2,363.08",BROOMHOUSE CARE LTD.
Adult and Health Services,Head of Adults,Third Party Payments 4THIRD,471101,Purchase of Care,03/10/2018,3496944-2506663,"2,363.08",BROOMHOUSE CARE LTD.
Adult and Health Services,Head of Adults,Third Party Payments 4THIRD,471101,Purchase of Care,03/10/2018,3496944-2506666,"2,363.08",BROOMHOUSE CARE LTD.
Adult and Health Services,Head of Adults,Third Party Payments 4THIRD,471101,Purchase of Care,03/10/2018,3496944-2506667,"2,363.08",BROOMHOUSE CARE LTD.
Adult and Health Services,Head of Adults,Third Party Payments 4THIRD,471101,Purchase of Care,03/10/2018,3496944-2506668,"2,363.08",BROOMHOUSE CARE LTD.
Adult and Health Services,Head of Adults,Third Party Payments 4THIRD,471101,Purchase of Care,03/10/2018,3496944-2506669,"1,513.36",BROOMHOUSE CARE LTD.
Adult and Health Services,Head of Adults,Third Party Payments 4THIRD,470101,Purchase of Care,03/10/2018,3496945-2510274,"1,006.00",BURLINGTON CARE (YORKSHIRE) LTD.
Adult and Health Services,Head of Adults,Third Party Payments 4THIRD,470101,Purchase of Care,03/10/2018,3496946-2509534,"8,707.80",BURLINGTON CARE (YORKSHIRE) LTD.
Regeneration and Local Services,Economic Development and Housing,Third Party Payments 4THIRD,460305,Contract Payments,03/10/2018,3497269-12911,"39,087.50",BUSINESS & ENTERPRISE COMMERCIAL LTD T/A BE GROUP.
Children and Young Peoples Services,Head of Education and Skills,Transport,230008,Contract Hire,03/10/2018,310907-N010/12,"1,260.00",C STEWART.
Regeneration and Local Services,Transport and Contracted Services,Third Party Payments 4THIRD,430109,Rendered by Private Contractors,03/10/2018,3497270-111541,"1,991.00",CA TRAFFIC LTD.
Adult and Health Services,Head of Adults,Third Party Payments 4THIRD,474101,Purchase of Care,03/10/2018,3496954-2506036,"1,996.00",CARE UK COMMUNITY PARTNERSHIPS LTD.
Adult and Health Services,Head of Adults,Third Party Payments 4THIRD,474101,Purchase of Care,03/10/2018,3496955-2508786,"1,185.72",CARE UK COMMUNITY PARTNERSHIPS LTD.
Adult and Health Services,Head of Adults,Third Party Payments 4THIRD,474101,Purchase of Care,03/10/2018,3496955-2508793,"2,371.44",CARE UK COMMUNITY PARTNERSHIPS LTD.
Adult and Health Services,Head of Adults,Third Party Payments 4THIRD,474101,Purchase of Care,03/10/2018,3496955-2508798,"1,185.72",CARE UK COMMUNITY PARTNERSHIPS LTD.
Adult and Health Services,Head of Adults,Third Party Payments 4THIRD,474101,Purchase of Care,03/10/2018,3496955-2508815,"2,371.44",CARE UK COMMUNITY PARTNERSHIPS LTD.
Adult and Health Services,Head of Adults,Third Party Payments 4THIRD,474101,Purchase of Care,03/10/2018,3496955-2508817,"2,371.44",CARE UK COMMUNITY PARTNERSHIPS LTD.
Adult and Health Services,Head of Adults,Third Party Payments 4THIRD,474101,Purchase of Care,03/10/2018,3496955-2508821,"2,371.44",CARE UK COMMUNITY PARTNERSHIPS LTD.
Adult and Health Services,Head of Adults,Third Party Payments 4THIRD,474101,Purchase of Care,03/10/2018,3496955-2508826,"2,371.44",CARE UK COMMUNITY PARTNERSHIPS LTD.
Adult and Health Services,Head of Adults,Third Party Payments 4THIRD,474101,Purchase of Care,03/10/2018,3496955-2508831,"2,371.44",CARE UK COMMUNITY PARTNERSHIPS LTD.
Adult and Health Services,Head of Adults,Third Party Payments 4THIRD,474101,Purchase of Care,03/10/2018,3496955-2510555,"1,185.72",CARE UK COMMUNITY PARTNERSHIPS LTD.
Adult and Health Services,Head of Adults,Third Party Payments 4THIRD,470101,Purchase of Care,03/10/2018,3496948-2508628,"2,279.00",CARE UK COMMUNITY PARTNERSHIPS LTD.
Adult and Health Services,Head of Adults,Third Party Payments 4THIRD,470101,Purchase of Care,03/10/2018,3496948-2508630,"2,279.00",CARE UK COMMUNITY PARTNERSHIPS LTD.
Adult and Health Services,Head of Adults,Third Party Payments 4THIRD,470101,Purchase of Care,03/10/2018,3496948-2508633,"2,279.00",CARE UK COMMUNITY PARTNERSHIPS LTD.
Adult and Health Services,Head of Adults,Third Party Payments 4THIRD,470101,Purchase of Care,03/10/2018,3496948-2508635,"2,279.00",CARE UK COMMUNITY PARTNERSHIPS LTD.
Adult and Health Services,Head of Adults,Third Party Payments 4THIRD,470101,Purchase of Care,03/10/2018,3496948-2508638,"2,279.00",CARE UK COMMUNITY PARTNERSHIPS LTD.
Adult and Health Services,Head of Adults,Third Party Payments 4THIRD,470101,Purchase of Care,03/10/2018,3496948-2508639,"1,139.48",CARE UK COMMUNITY PARTNERSHIPS LTD.
Adult and Health Services,Head of Adults,Third Party Payments 4THIRD,470101,Purchase of Care,03/10/2018,3496948-2508643,"2,279.00",CARE UK COMMUNITY PARTNERSHIPS LTD.
Adult and Health Services,Head of Adults,Third Party Payments 4THIRD,470101,Purchase of Care,03/10/2018,3496948-2508646,"2,279.00",CARE UK COMMUNITY PARTNERSHIPS LTD.
Adult and Health Services,Head of Adults,Third Party Payments 4THIRD,470101,Purchase of Care,03/10/2018,3496948-2508647,"2,279.00",CARE UK COMMUNITY PARTNERSHIPS LTD.
Adult and Health Services,Head of Adults,Third Party Payments 4THIRD,470101,Purchase of Care,03/10/2018,3496948-2508651,"2,279.00",CARE UK COMMUNITY PARTNERSHIPS LTD.
Adult and Health Services,Head of Adults,Third Party Payments 4THIRD,470101,Purchase of Care,03/10/2018,3496948-2508652,"1,627.85",CARE UK COMMUNITY PARTNERSHIPS LTD.
Adult and Health Services,Head of Adults,Third Party Payments 4THIRD,470101,Purchase of Care,03/10/2018,3496948-2508653,"2,279.00",CARE UK COMMUNITY PARTNERSHIPS LTD.
Adult and Health Services,Head of Adults,Third Party Payments 4THIRD,470101,Purchase of Care,03/10/2018,3496948-2510776,"1,872.03",CARE UK COMMUNITY PARTNERSHIPS LTD.
Adult and Health Services,Head of Adults,Third Party Payments 4THIRD,470101,Purchase of Care,03/10/2018,3496949-2508841,"2,052.00",CARE UK COMMUNITY PARTNERSHIPS LTD.
Adult and Health Services,Head of Adults,Third Party Payments 4THIRD,470101,Purchase of Care,03/10/2018,3496951-2508658,"1,677.00",CARE UK COMMUNITY PARTNERSHIPS LTD.
Adult and Health Services,Head of Adults,Third Party Payments 4THIRD,470101,Purchase of Care,03/10/2018,3496952-2508659,"2,221.96",CARE UK COMMUNITY PARTNERSHIPS LTD.
Adult and Health Services,Head of Adults,Third Party Payments 4THIRD,470101,Purchase of Care,03/10/2018,3496953-2507341,"2,279.00",CARE UK COMMUNITY PARTNERSHIPS LTD.
Adult and Health Services,Head of Adults,Third Party Payments 4THIRD,470101,Purchase of Care,03/10/2018,3496953-2507342,"2,279.00",CARE UK COMMUNITY PARTNERSHIPS LTD.
Adult and Health Services,Head of Adults,Third Party Payments 4THIRD,470101,Purchase of Care,03/10/2018,3496953-2507343,"2,279.00",CARE UK COMMUNITY PARTNERSHIPS LTD.
Adult and Health Services,Head of Adults,Third Party Payments 4THIRD,470101,Purchase of Care,03/10/2018,3496953-2507344,"2,279.00",CARE UK COMMUNITY PARTNERSHIPS LTD.
Adult and Health Services,Head of Adults,Third Party Payments 4THIRD,470101,Purchase of Care,03/10/2018,3496953-2507345,"2,279.00",CARE UK COMMUNITY PARTNERSHIPS LTD.
Adult and Health Services,Head of Adults,Third Party Payments 4THIRD,470101,Purchase of Care,03/10/2018,3496953-2507346,"1,465.07",CARE UK COMMUNITY PARTNERSHIPS LTD.
Adult and Health Services,Head of Adults,Third Party Payments 4THIRD,470101,Purchase of Care,03/10/2018,3496953-2507347,"2,279.00",CARE UK COMMUNITY PARTNERSHIPS LTD.
Adult and Health Services,Head of Adults,Third Party Payments 4THIRD,470101,Purchase of Care,03/10/2018,3496953-2507348,"2,279.00",CARE UK COMMUNITY PARTNERSHIPS LTD.
Adult and Health Services,Head of Adults,Third Party Payments 4THIRD,470101,Purchase of Care,03/10/2018,3496953-2507349,"2,279.00",CARE UK COMMUNITY PARTNERSHIPS LTD.
Adult and Health Services,Head of Adults,Third Party Payments 4THIRD,470101,Purchase of Care,03/10/2018,3496953-2507350,569.75,CARE UK COMMUNITY PARTNERSHIPS LTD.
Adult and Health Services,Head of Adults,Third Party Payments 4THIRD,470101,Purchase of Care,03/10/2018,3496953-2507351,"2,279.00",CARE UK COMMUNITY PARTNERSHIPS LTD.
Adult and Health Services,Head of Adults,Third Party Payments 4THIRD,470101,Purchase of Care,03/10/2018,3496953-2507352,"2,279.00",CARE UK COMMUNITY PARTNERSHIPS LTD.
Adult and Health Services,Head of Adults,Third Party Payments 4THIRD,470101,Purchase of Care,03/10/2018,3496953-2507353,"2,279.00",CARE UK COMMUNITY PARTNERSHIPS LTD.
Adult and Health Services,Head of Adults,Third Party Payments 4THIRD,470101,Purchase of Care,03/10/2018,3496953-2507354,"2,279.00",CARE UK COMMUNITY PARTNERSHIPS LTD.
Adult and Health Services,Head of Adults,Third Party Payments 4THIRD,470101,Purchase of Care,03/10/2018,3496953-2507355,"2,279.00",CARE UK COMMUNITY PARTNERSHIPS LTD.
Adult and Health Services,Head of Adults,Third Party Payments 4THIRD,470101,Purchase of Care,03/10/2018,3496953-2507356,"1,058.10",CARE UK COMMUNITY PARTNERSHIPS LTD.
Adult and Health Services,Head of Adults,Third Party Payments 4THIRD,470101,Purchase of Care,03/10/2018,3496953-2507357,"2,279.00",CARE UK COMMUNITY PARTNERSHIPS LTD.
Adult and Health Services,Head of Adults,Third Party Payments 4THIRD,470101,Purchase of Care,03/10/2018,3496953-2507358,"2,279.00",CARE UK COMMUNITY PARTNERSHIPS LTD.
Adult and Health Services,Head of Adults,Third Party Payments 4THIRD,470101,Purchase of Care,03/10/2018,3496953-2507359,"2,399.00",CARE UK COMMUNITY PARTNERSHIPS LTD.
Adult and Health Services,Head of Adults,Third Party Payments 4THIRD,470101,Purchase of Care,03/10/2018,3496955-2508789,"2,279.00",CARE UK COMMUNITY PARTNERSHIPS LTD.
Adult and Health Services,Head of Adults,Third Party Payments 4THIRD,470101,Purchase of Care,03/10/2018,3496955-2508790,"2,279.00",CARE UK COMMUNITY PARTNERSHIPS LTD.
Adult and Health Services,Head of Adults,Third Party Payments 4THIRD,470101,Purchase of Care,03/10/2018,3496955-2508791,"1,953.42",CARE UK COMMUNITY PARTNERSHIPS LTD.
Adult and Health Services,Head of Adults,Third Party Payments 4THIRD,470101,Purchase of Care,03/10/2018,3496955-2508801,"2,279.00",CARE UK COMMUNITY PARTNERSHIPS LTD.
Adult and Health Services,Head of Adults,Third Party Payments 4THIRD,470101,Purchase of Care,03/10/2018,3496955-2508802,"2,279.00",CARE UK COMMUNITY PARTNERSHIPS LTD.
Adult and Health Services,Head of Adults,Third Party Payments 4THIRD,470101,Purchase of Care,03/10/2018,3496955-2508805,"1,465.07",CARE UK COMMUNITY PARTNERSHIPS LTD.
Adult and Health Services,Head of Adults,Third Party Payments 4THIRD,470101,Purchase of Care,03/10/2018,3496955-2508806,"2,279.00",CARE UK COMMUNITY PARTNERSHIPS LTD.
Adult and Health Services,Head of Adults,Third Party Payments 4THIRD,470101,Purchase of Care,03/10/2018,3496955-2508807,"2,279.00",CARE UK COMMUNITY PARTNERSHIPS LTD.
Adult and Health Services,Head of Adults,Third Party Payments 4THIRD,470101,Purchase of Care,03/10/2018,3496955-2508808,"2,279.00",CARE UK COMMUNITY PARTNERSHIPS LTD.
Adult and Health Services,Head of Adults,Third Party Payments 4THIRD,470101,Purchase of Care,03/10/2018,3496955-2508810,"2,279.00",CARE UK COMMUNITY PARTNERSHIPS LTD.
Adult and Health Services,Head of Adults,Third Party Payments 4THIRD,470101,Purchase of Care,03/10/2018,3496955-2508811,"2,279.00",CARE UK COMMUNITY PARTNERSHIPS LTD.
Adult and Health Services,Head of Adults,Third Party Payments 4THIRD,470101,Purchase of Care,03/10/2018,3496955-2508813,"2,279.00",CARE UK COMMUNITY PARTNERSHIPS LTD.
Adult and Health Services,Head of Adults,Third Party Payments 4THIRD,470101,Purchase of Care,03/10/2018,3496955-2508814,"2,555.68",CARE UK COMMUNITY PARTNERSHIPS LTD.
Adult and Health Services,Head of Adults,Third Party Payments 4THIRD,470101,Purchase of Care,03/10/2018,3496955-2508825,"2,279.00",CARE UK COMMUNITY PARTNERSHIPS LTD.
Adult and Health Services,Head of Adults,Third Party Payments 4THIRD,470101,Purchase of Care,03/10/2018,3496955-2508833,"2,279.00",CARE UK COMMUNITY PARTNERSHIPS LTD.
Adult and Health Services,Head of Adults,Third Party Payments 4THIRD,470101,Purchase of Care,03/10/2018,3496955-2508836,"2,279.00",CARE UK COMMUNITY PARTNERSHIPS LTD.
Adult and Health Services,Head of Adults,Third Party Payments 4THIRD,470101,Purchase of Care,03/10/2018,3496955-2508837,"2,279.00",CARE UK COMMUNITY PARTNERSHIPS LTD.
Adult and Health Services,Head of Adults,Third Party Payments 4THIRD,470101,Purchase of Care,03/10/2018,3496955-2508838,"2,279.00",CARE UK COMMUNITY PARTNERSHIPS LTD.
Adult and Health Services,Head of Adults,Third Party Payments 4THIRD,470101,Purchase of Care,03/10/2018,3496955-2508839,"2,279.00",CARE UK COMMUNITY PARTNERSHIPS LTD.
Adult and Health Services,Head of Adults,Third Party Payments 4THIRD,470101,Purchase of Care,03/10/2018,3496955-2508840,"2,279.00",CARE UK COMMUNITY PARTNERSHIPS LTD.
Adult and Health Services,Head of Adults,Third Party Payments 4THIRD,470101,Purchase of Care,03/10/2018,3496955-2510449,651.14,CARE UK COMMUNITY PARTNERSHIPS LTD.
Adult and Health Services,Head of Adults,Third Party Payments 4THIRD,470101,Purchase of Care,03/10/2018,3496955-2510461,"2,116.21",CARE UK COMMUNITY PARTNERSHIPS LTD.
Adult and Health Services,Head of Adults,Third Party Payments 4THIRD,471101,Purchase of Care,03/10/2018,3496948-2508629,"2,363.08",CARE UK COMMUNITY PARTNERSHIPS LTD.
Adult and Health Services,Head of Adults,Third Party Payments 4THIRD,471101,Purchase of Care,03/10/2018,3496948-2508631,"2,363.08",CARE UK COMMUNITY PARTNERSHIPS LTD.
Adult and Health Services,Head of Adults,Third Party Payments 4THIRD,471101,Purchase of Care,03/10/2018,3496948-2508632,"2,363.08",CARE UK COMMUNITY PARTNERSHIPS LTD.
Adult and Health Services,Head of Adults,Third Party Payments 4THIRD,471101,Purchase of Care,03/10/2018,3496948-2508634,"2,363.08",CARE UK COMMUNITY PARTNERSHIPS LTD.
Adult and Health Services,Head of Adults,Third Party Payments 4THIRD,471101,Purchase of Care,03/10/2018,3496948-2508636,"2,363.08",CARE UK COMMUNITY PARTNERSHIPS LTD.
Adult and Health Services,Head of Adults,Third Party Payments 4THIRD,471101,Purchase of Care,03/10/2018,3496948-2508637,"2,363.08",CARE UK COMMUNITY PARTNERSHIPS LTD.
Adult and Health Services,Head of Adults,Third Party Payments 4THIRD,471101,Purchase of Care,03/10/2018,3496948-2508640,"2,363.08",CARE UK COMMUNITY PARTNERSHIPS LTD.
Adult and Health Services,Head of Adults,Third Party Payments 4THIRD,471101,Purchase of Care,03/10/2018,3496948-2508641,"2,363.08",CARE UK COMMUNITY PARTNERSHIPS LTD.
Adult and Health Services,Head of Adults,Third Party Payments 4THIRD,471101,Purchase of Care,03/10/2018,3496948-2508642,"2,363.08",CARE UK COMMUNITY PARTNERSHIPS LTD.
Adult and Health Services,Head of Adults,Third Party Payments 4THIRD,471101,Purchase of Care,03/10/2018,3496948-2508644,"2,363.08",CARE UK COMMUNITY PARTNERSHIPS LTD.
Adult and Health Services,Head of Adults,Third Party Payments 4THIRD,471101,Purchase of Care,03/10/2018,3496948-2508645,"2,363.08",CARE UK COMMUNITY PARTNERSHIPS LTD.
Adult and Health Services,Head of Adults,Third Party Payments 4THIRD,471101,Purchase of Care,03/10/2018,3496948-2508648,"2,363.08",CARE UK COMMUNITY PARTNERSHIPS LTD.
Adult and Health Services,Head of Adults,Third Party Payments 4THIRD,471101,Purchase of Care,03/10/2018,3496948-2508649,"2,363.08",CARE UK COMMUNITY PARTNERSHIPS LTD.
Adult and Health Services,Head of Adults,Third Party Payments 4THIRD,471101,Purchase of Care,03/10/2018,3496948-2508650,"2,363.08",CARE UK COMMUNITY PARTNERSHIPS LTD.
Adult and Health Services,Head of Adults,Third Party Payments 4THIRD,471101,Purchase of Care,03/10/2018,3496948-2508654,"2,363.08",CARE UK COMMUNITY PARTNERSHIPS LTD.
Adult and Health Services,Head of Adults,Third Party Payments 4THIRD,471101,Purchase of Care,03/10/2018,3496948-2508655,"2,363.08",CARE UK COMMUNITY PARTNERSHIPS LTD.
Adult and Health Services,Head of Adults,Third Party Payments 4THIRD,471101,Purchase of Care,03/10/2018,3496950-2509979,"3,140.35",CARE UK COMMUNITY PARTNERSHIPS LTD.
Adult and Health Services,Head of Adults,Third Party Payments 4THIRD,471101,Purchase of Care,03/10/2018,3496950-2509980,"2,420.00",CARE UK COMMUNITY PARTNERSHIPS LTD.
Adult and Health Services,Head of Adults,Third Party Payments 4THIRD,471101,Purchase of Care,03/10/2018,3496952-2508660,"2,221.96",CARE UK COMMUNITY PARTNERSHIPS LTD.
Adult and Health Services,Head of Adults,Third Party Payments 4THIRD,471101,Purchase of Care,03/10/2018,3496952-2508661,"2,297.64",CARE UK COMMUNITY PARTNERSHIPS LTD.
Adult and Health Services,Head of Adults,Third Party Payments 4THIRD,471101,Purchase of Care,03/10/2018,3496954-2506035,"2,076.00",CARE UK COMMUNITY PARTNERSHIPS LTD.
Adult and Health Services,Head of Adults,Third Party Payments 4THIRD,471101,Purchase of Care,03/10/2018,3496955-2508785,"2,363.08",CARE UK COMMUNITY PARTNERSHIPS LTD.
Adult and Health Services,Head of Adults,Third Party Payments 4THIRD,471101,Purchase of Care,03/10/2018,3496955-2508792,"1,181.52",CARE UK COMMUNITY PARTNERSHIPS LTD.
Adult and Health Services,Head of Adults,Third Party Payments 4THIRD,471101,Purchase of Care,03/10/2018,3496955-2508795,"2,363.08",CARE UK COMMUNITY PARTNERSHIPS LTD.
Adult and Health Services,Head of Adults,Third Party Payments 4THIRD,471101,Purchase of Care,03/10/2018,3496955-2508796,"2,363.08",CARE UK COMMUNITY PARTNERSHIPS LTD.
Adult and Health Services,Head of Adults,Third Party Payments 4THIRD,471101,Purchase of Care,03/10/2018,3496955-2508800,"2,363.08",CARE UK COMMUNITY PARTNERSHIPS LTD.
Adult and Health Services,Head of Adults,Third Party Payments 4THIRD,471101,Purchase of Care,03/10/2018,3496955-2508804,"2,363.08",CARE UK COMMUNITY PARTNERSHIPS LTD.
Adult and Health Services,Head of Adults,Third Party Payments 4THIRD,471101,Purchase of Care,03/10/2018,3496955-2508809,"2,363.08",CARE UK COMMUNITY PARTNERSHIPS LTD.
Adult and Health Services,Head of Adults,Third Party Payments 4THIRD,471101,Purchase of Care,03/10/2018,3496955-2508819,"2,363.08",CARE UK COMMUNITY PARTNERSHIPS LTD.
Adult and Health Services,Head of Adults,Third Party Payments 4THIRD,471101,Purchase of Care,03/10/2018,3496955-2508820,"2,363.08",CARE UK COMMUNITY PARTNERSHIPS LTD.
Adult and Health Services,Head of Adults,Third Party Payments 4THIRD,471101,Purchase of Care,03/10/2018,3496955-2508823,"2,363.08",CARE UK COMMUNITY PARTNERSHIPS LTD.
Adult and Health Services,Head of Adults,Third Party Payments 4THIRD,471101,Purchase of Care,03/10/2018,3496955-2508824,"2,363.08",CARE UK COMMUNITY PARTNERSHIPS LTD.
Adult and Health Services,Head of Adults,Third Party Payments 4THIRD,471101,Purchase of Care,03/10/2018,3496955-2508828,"2,363.08",CARE UK COMMUNITY PARTNERSHIPS LTD.
Adult and Health Services,Head of Adults,Third Party Payments 4THIRD,472101,Purchase of Care,03/10/2018,3496211-1836930H,"1,150.20",CARE VISIONS AT HOME LTD.
Adult and Health Services,Head of Adults,Third Party Payments 4THIRD,474101,Purchase of Care,03/10/2018,3496958-2509975,"4,103.40",CARELINE LIFESTYLES (UK) LTD.
Adult and Health Services,Head of Adults,Third Party Payments 4THIRD,474101,Purchase of Care,03/10/2018,3496958-2509976,"2,415.00",CARELINE LIFESTYLES (UK) LTD.
Adult and Health Services,Head of Adults,Third Party Payments 4THIRD,474101,Purchase of Care,03/10/2018,3496959-2509731,"2,808.00",CARELINE LIFESTYLES (UK) LTD.
Adult and Health Services,Head of Adults,Third Party Payments 4THIRD,470101,Purchase of Care,03/10/2018,3496956-2508973,"2,719.52",CARELINE LIFESTYLES (UK) LTD.
Adult and Health Services,Head of Adults,Third Party Payments 4THIRD,470101,Purchase of Care,03/10/2018,3496956-2508974,"2,016.00",CARELINE LIFESTYLES (UK) LTD.
Adult and Health Services,Head of Adults,Third Party Payments 4THIRD,470101,Purchase of Care,03/10/2018,3496957-2508657,"2,461.68",CARELINE LIFESTYLES (UK) LTD.
Adult and Health Services,Head of Adults,Third Party Payments 4THIRD,470101,Purchase of Care,03/10/2018,3496958-2509977,740.88,CARELINE LIFESTYLES (UK) LTD.
Adult and Health Services,Head of Adults,Third Party Payments 4THIRD,474101,Purchase of Care,03/10/2018,3496960-2510303,"3,242.00",CARELINE LIFESTYLES T/A DE BRUCE COURT.
Adult and Health Services,Head of Adults,Third Party Payments 4THIRD,474101,Purchase of Care,03/10/2018,3496960-2510304,"3,088.00",CARELINE LIFESTYLES T/A DE BRUCE COURT.
Adult and Health Services,Head of Adults,Third Party Payments 4THIRD,474101,Purchase of Care,03/10/2018,3496960-2510305,"1,481.76",CARELINE LIFESTYLES T/A DE BRUCE COURT.
Adult and Health Services,Head of Adults,Third Party Payments 4THIRD,474101,Purchase of Care,03/10/2018,3496960-2510419,"2,188.36",CARELINE LIFESTYLES T/A DE BRUCE COURT.
Adult and Health Services,Head of Adults,Third Party Payments 4THIRD,474101,Purchase of Care,03/10/2018,3496961-2506894,"2,011.16",CAREWELL (HEALTH CARE) LTD.
Adult and Health Services,Head of Adults,Third Party Payments 4THIRD,474101,Purchase of Care,03/10/2018,3496961-2506903,"2,215.08",CAREWELL (HEALTH CARE) LTD.
Adult and Health Services,Head of Adults,Third Party Payments 4THIRD,474101,Purchase of Care,03/10/2018,3496961-2506916,"2,011.16",CAREWELL (HEALTH CARE) LTD.
Adult and Health Services,Head of Adults,Third Party Payments 4THIRD,474101,Purchase of Care,03/10/2018,3496961-2506919,"2,011.16",CAREWELL (HEALTH CARE) LTD.
Adult and Health Services,Head of Adults,Third Party Payments 4THIRD,470102,Purchase of Care,03/10/2018,3496961-2506902,895.32,CAREWELL (HEALTH CARE) LTD.
Adult and Health Services,Head of Adults,Third Party Payments 4THIRD,470101,Purchase of Care,03/10/2018,3496961-2506896,"1,919.00",CAREWELL (HEALTH CARE) LTD.
Adult and Health Services,Head of Adults,Third Party Payments 4THIRD,470101,Purchase of Care,03/10/2018,3496961-2506897,"1,919.00",CAREWELL (HEALTH CARE) LTD.
Adult and Health Services,Head of Adults,Third Party Payments 4THIRD,470101,Purchase of Care,03/10/2018,3496961-2506905,"1,919.00",CAREWELL (HEALTH CARE) LTD.
Adult and Health Services,Head of Adults,Third Party Payments 4THIRD,470101,Purchase of Care,03/10/2018,3496961-2506906,"1,919.00",CAREWELL (HEALTH CARE) LTD.
Adult and Health Services,Head of Adults,Third Party Payments 4THIRD,470101,Purchase of Care,03/10/2018,3496961-2506909,"1,919.00",CAREWELL (HEALTH CARE) LTD.
Adult and Health Services,Head of Adults,Third Party Payments 4THIRD,470101,Purchase of Care,03/10/2018,3496961-2506912,"1,919.00",CAREWELL (HEALTH CARE) LTD.
Adult and Health Services,Head of Adults,Third Party Payments 4THIRD,470101,Purchase of Care,03/10/2018,3496961-2506913,"1,919.00",CAREWELL (HEALTH CARE) LTD.
Adult and Health Services,Head of Adults,Third Party Payments 4THIRD,470101,Purchase of Care,03/10/2018,3496961-2506914,"1,919.00",CAREWELL (HEALTH CARE) LTD.
Adult and Health Services,Head of Adults,Third Party Payments 4THIRD,470101,Purchase of Care,03/10/2018,3496961-2506915,"1,919.00",CAREWELL (HEALTH CARE) LTD.
Adult and Health Services,Head of Adults,Third Party Payments 4THIRD,470101,Purchase of Care,03/10/2018,3496961-2506918,"1,919.00",CAREWELL (HEALTH CARE) LTD.
Adult and Health Services,Head of Adults,Third Party Payments 4THIRD,470101,Purchase of Care,03/10/2018,3496961-2506922,"1,919.00",CAREWELL (HEALTH CARE) LTD.
Adult and Health Services,Head of Adults,Third Party Payments 4THIRD,470101,Purchase of Care,03/10/2018,3496961-2506923,"1,919.00",CAREWELL (HEALTH CARE) LTD.
Adult and Health Services,Head of Adults,Third Party Payments 4THIRD,470101,Purchase of Care,03/10/2018,3496961-2506924,"1,919.00",CAREWELL (HEALTH CARE) LTD.
Adult and Health Services,Head of Adults,Third Party Payments 4THIRD,470101,Purchase of Care,03/10/2018,3496962-2510284,"2,144.80",CARING HOMES HEALTHCARE GROUP LTD T/A MOUNT PLEASANT RESIDENTIAL HOME.
Adult and Health Services,Head of Adults,Third Party Payments 4THIRD,471101,Purchase of Care,03/10/2018,3496963-2421369,"1,909.84",CARING HOMES HEALTHCARE GROUP LTD.
Adult and Health Services,Head of Adults,Third Party Payments 4THIRD,471101,Purchase of Care,03/10/2018,3496963-2505343,"2,039.52",CARING HOMES HEALTHCARE GROUP LTD.
Adult and Health Services,Head of Adults,Third Party Payments 4THIRD,471101,Purchase of Care,03/10/2018,3496963-2510178,"2,039.52",CARING HOMES HEALTHCARE GROUP LTD.
Adult and Health Services,Head of Adults,Third Party Payments 4THIRD,472101,Purchase of Care,03/10/2018,3496223-1836428H,795.20,CASTLE CARE TEESDALE LTD.
Adult and Health Services,Head of Adults,Third Party Payments 4THIRD,472101,Purchase of Care,03/10/2018,3496223-1836435H,"1,675.50",CASTLE CARE TEESDALE LTD.
Adult and Health Services,Head of Adults,Third Party Payments 4THIRD,472101,Purchase of Care,03/10/2018,3496223-1836452H,585.89,CASTLE CARE TEESDALE LTD.
Adult and Health Services,Head of Adults,Third Party Payments 4THIRD,472101,Purchase of Care,03/10/2018,3496223-1836478H,733.68,CASTLE CARE TEESDALE LTD.
Adult and Health Services,Head of Adults,Third Party Payments 4THIRD,472101,Purchase of Care,03/10/2018,3496223-1836484H,880.40,CASTLE CARE TEESDALE LTD.
Adult and Health Services,Head of Adults,Third Party Payments 4THIRD,472101,Purchase of Care,03/10/2018,3496223-1836933H,"1,980.90",CASTLE CARE TEESDALE LTD.
Adult and Health Services,Head of Adults,Third Party Payments 4THIRD,472101,Purchase of Care,03/10/2018,3496223-1837192H,596.40,CASTLE CARE TEESDALE LTD.
Adult and Health Services,Head of Adults,Third Party Payments 4THIRD,472101,Purchase of Care,03/10/2018,3496223-1837296H,"1,590.40",CASTLE CARE TEESDALE LTD.
Adult and Health Services,Head of Adults,Third Party Payments 4THIRD,472101,Purchase of Care,03/10/2018,3496223-1837449H,752.60,CASTLE CARE TEESDALE LTD.
Adult and Health Services,Head of Adults,Third Party Payments 4THIRD,472101,Purchase of Care,03/10/2018,3496223-1837487H,596.40,CASTLE CARE TEESDALE LTD.
Adult and Health Services,Head of Adults,Third Party Payments 4THIRD,472101,Purchase of Care,03/10/2018,3496223-1837949H,511.20,CASTLE CARE TEESDALE LTD.
Adult and Health Services,Head of Adults,Third Party Payments 4THIRD,472101,Purchase of Care,03/10/2018,3496223-1838058H,662.68,CASTLE CARE TEESDALE LTD.
Adult and Health Services,Head of Adults,Third Party Payments 4THIRD,472101,Purchase of Care,03/10/2018,3496223-1839105H,509.60,CASTLE CARE TEESDALE LTD.
Adult and Health Services,Head of Adults,Third Party Payments 4THIRD,472101,Purchase of Care,03/10/2018,3496223-1839782H,"1,903.52",CASTLE CARE TEESDALE LTD.
Adult and Health Services,Head of Adults,Third Party Payments 4THIRD,472101,Purchase of Care,03/10/2018,3496223-1840408H,"1,189.60",CASTLE CARE TEESDALE LTD.
Adult and Health Services,Head of Adults,Third Party Payments 4THIRD,472101,Purchase of Care,03/10/2018,3496223-1840664H,596.40,CASTLE CARE TEESDALE LTD.
Adult and Health Services,Head of Adults,Third Party Payments 4THIRD,472101,Purchase of Care,03/10/2018,3496223-1841009H,"1,391.60",CASTLE CARE TEESDALE LTD.
Adult and Health Services,Head of Adults,Third Party Payments 4THIRD,472101,Purchase of Care,03/10/2018,3496223-1841043H,"1,093.40",CASTLE CARE TEESDALE LTD.
Adult and Health Services,Head of Adults,Third Party Payments 4THIRD,472101,Purchase of Care,03/10/2018,3496223-1841460H,854.38,CASTLE CARE TEESDALE LTD.
Children and Young Peoples Services,"Head of Early Help, Inclusion and Vulnerable Children",Supplies and Services,304083,Equipment and Materials,03/10/2018,3497276-2075,637.68,CATERTECH (NORTH EAST) LTD.
Regeneration and Local Services,Direct Services,Third Party Payments 4THIRD,430100,Rendered by Private Contractors,03/10/2018,3497277-4762,"1,446.34",CATHEDRAL LOCK & SAFE SERVICES LTD.
Regeneration and Local Services,Technical Services,Supplies and Services,304221,Equipment and Materials,03/10/2018,3497280-3010834934,666.40,CEMEX UK MATERIALS LTD.
Children and Young Peoples Services,Head of Childrens Social Care,Third Party Payments 4THIRD,425040,Rendered by Voluntary Organisations,03/10/2018,3496233-1838805H,"2,920.12",CHILDRENS FAMILY TRUST.
Children and Young Peoples Services,Head of Childrens Social Care,Third Party Payments 4THIRD,425040,Rendered by Voluntary Organisations,03/10/2018,3496233-1839130H,"2,920.12",CHILDRENS FAMILY TRUST.
Children and Young Peoples Services,Head of Childrens Social Care,Third Party Payments 4THIRD,425040,Rendered by Voluntary Organisations,03/10/2018,3496233-1839438H,"2,920.12",CHILDRENS FAMILY TRUST.
Children and Young Peoples Services,Head of Childrens Social Care,Third Party Payments 4THIRD,425040,Rendered by Voluntary Organisations,03/10/2018,3496233-1839510H,"2,800.00",CHILDRENS FAMILY TRUST.
Children and Young Peoples Services,Head of Childrens Social Care,Third Party Payments 4THIRD,425040,Rendered by Voluntary Organisations,03/10/2018,3496233-1839600H,"2,800.00",CHILDRENS FAMILY TRUST.
Adult and Health Services,Head of Adults,Third Party Payments 4THIRD,478101,Purchase of Care,03/10/2018,3496239-1835218H,"4,034.52",CHOICES COMMUNITY CARE SERVICES LTD.
Adult and Health Services,Head of Adults,Third Party Payments 4THIRD,478101,Purchase of Care,03/10/2018,3496239-1836483H,"1,683.03",CHOICES COMMUNITY CARE SERVICES LTD.
Adult and Health Services,Head of Adults,Third Party Payments 4THIRD,478101,Purchase of Care,03/10/2018,3496239-1836514H,"4,061.44",CHOICES COMMUNITY CARE SERVICES LTD.
Adult and Health Services,Head of Adults,Third Party Payments 4THIRD,478101,Purchase of Care,03/10/2018,3496239-1836964H,"3,068.88",CHOICES COMMUNITY CARE SERVICES LTD.
Children and Young Peoples Services,Head of Education and Skills,Supplies and Services,384199,Miscellaneous Expenses,03/10/2018,310909-05/08/2018,868.80,CHRIS PICKUP.
Regeneration and Local Services,Direct Services,Third Party Payments 4THIRD,430100,Rendered by Private Contractors,03/10/2018,3497288-5547,"1,292.00",CITY FABRICATIONS LTD.
Children and Young Peoples Services,Head of Education and Skills,Transport,230008,Contract Hire,03/10/2018,3497289-INV-021,"1,260.00",CLARE LYNSEY STEWART T/A K&C TAXIS.
Adult and Health Services,Head of Adults,Third Party Payments 4THIRD,474101,Purchase of Care,03/10/2018,3496964-2509429,"1,092.00",CLEVELAND ALZHEIMER`S RESIDENTIAL CENTRE LTD.
Regeneration and Local Services,Technical Services,Stock A926,926004,Stock,03/10/2018,3497291-400012033,"11,191.80",CLEVELAND POTASH LTD T/A ICL FERTILIZERS.
Children and Young Peoples Services,Head of Childrens Social Care,Supplies and Services,364359,Grants to Voluntary Organisations,03/10/2018,3497292-CAS-09-2018-047,714.00,CLEVER CLOGS DAY NURSERY (DURHAM) LTD.
Adult and Health Services,Public Health,Third Party Payments 4THIRD,460802,Contract Payments,03/10/2018,3497294-3980030447,"368,605.00",CO DURHAM & DARLINGTON NHS FOUNDATION TRUST.
Adult and Health Services,Public Health,Third Party Payments 4THIRD,460803,Contract Payments,03/10/2018,3497294-3980030449,"24,906.00",CO DURHAM & DARLINGTON NHS FOUNDATION TRUST.
Adult and Health Services,Head of Adults,Third Party Payments 4THIRD,470101,Purchase of Care,03/10/2018,3496965-2504707,"9,104.36",COLEG ELIDYR CAMPHILL COMMUNITIES.
Adult and Health Services,Head of Adults,Third Party Payments 4THIRD,470101,Purchase of Care,03/10/2018,3496965-2509535,"9,104.36",COLEG ELIDYR CAMPHILL COMMUNITIES.
Adult and Health Services,Head of Adults,Third Party Payments 4THIRD,440062,Other third party payments E440,03/10/2018,3496255-1837672H,"1,306.40",COMFORT CALL LTD.
Adult and Health Services,Head of Adults,Third Party Payments 4THIRD,472101,Purchase of Care,03/10/2018,3496255-1834558H,734.84,COMFORT CALL LTD.
Adult and Health Services,Head of Adults,Third Party Payments 4THIRD,472101,Purchase of Care,03/10/2018,3496255-1834590H,795.20,COMFORT CALL LTD.
Adult and Health Services,Head of Adults,Third Party Payments 4THIRD,472101,Purchase of Care,03/10/2018,3496255-1834617H,"2,618.72",COMFORT CALL LTD.
Adult and Health Services,Head of Adults,Third Party Payments 4THIRD,472101,Purchase of Care,03/10/2018,3496255-1834659H,"2,328.80",COMFORT CALL LTD.
Adult and Health Services,Head of Adults,Third Party Payments 4THIRD,472101,Purchase of Care,03/10/2018,3496255-1834687H,639.00,COMFORT CALL LTD.
Adult and Health Services,Head of Adults,Third Party Payments 4THIRD,472101,Purchase of Care,03/10/2018,3496255-1834706H,558.52,COMFORT CALL LTD.
Adult and Health Services,Head of Adults,Third Party Payments 4THIRD,472101,Purchase of Care,03/10/2018,3496255-1835135H,"1,157.30",COMFORT CALL LTD.
Adult and Health Services,Head of Adults,Third Party Payments 4THIRD,472101,Purchase of Care,03/10/2018,3496255-1835156H,"1,738.33",COMFORT CALL LTD.
Adult and Health Services,Head of Adults,Third Party Payments 4THIRD,472101,Purchase of Care,03/10/2018,3496255-1835591H,"1,525.08",COMFORT CALL LTD.
Adult and Health Services,Head of Adults,Third Party Payments 4THIRD,472101,Purchase of Care,03/10/2018,3496255-1836533H,912.35,COMFORT CALL LTD.
Adult and Health Services,Head of Adults,Third Party Payments 4THIRD,472101,Purchase of Care,03/10/2018,3496255-1836547H,648.48,COMFORT CALL LTD.
Adult and Health Services,Head of Adults,Third Party Payments 4THIRD,472101,Purchase of Care,03/10/2018,3496255-1836549H,624.80,COMFORT CALL LTD.
Adult and Health Services,Head of Adults,Third Party Payments 4THIRD,472101,Purchase of Care,03/10/2018,3496255-1836562H,"1,628.28",COMFORT CALL LTD.
Adult and Health Services,Head of Adults,Third Party Payments 4THIRD,472101,Purchase of Care,03/10/2018,3496255-1836585H,723.01,COMFORT CALL LTD.
Adult and Health Services,Head of Adults,Third Party Payments 4THIRD,472101,Purchase of Care,03/10/2018,3496255-1836597H,728.92,COMFORT CALL LTD.
Adult and Health Services,Head of Adults,Third Party Payments 4THIRD,472101,Purchase of Care,03/10/2018,3496255-1836604H,511.20,COMFORT CALL LTD.
Adult and Health Services,Head of Adults,Third Party Payments 4THIRD,472101,Purchase of Care,03/10/2018,3496255-1836621H,724.20,COMFORT CALL LTD.
Adult and Health Services,Head of Adults,Third Party Payments 4THIRD,472101,Purchase of Care,03/10/2018,3496255-1836637H,624.79,COMFORT CALL LTD.
Adult and Health Services,Head of Adults,Third Party Payments 4THIRD,472101,Purchase of Care,03/10/2018,3496255-1836666H,"1,325.32",COMFORT CALL LTD.
Adult and Health Services,Head of Adults,Third Party Payments 4THIRD,472101,Purchase of Care,03/10/2018,3496255-1836670H,949.04,COMFORT CALL LTD.
Adult and Health Services,Head of Adults,Third Party Payments 4THIRD,472101,Purchase of Care,03/10/2018,3496255-1836688H,630.72,COMFORT CALL LTD.
Adult and Health Services,Head of Adults,Third Party Payments 4THIRD,472101,Purchase of Care,03/10/2018,3496255-1836730H,506.47,COMFORT CALL LTD.
Adult and Health Services,Head of Adults,Third Party Payments 4THIRD,472101,Purchase of Care,03/10/2018,3496255-1836731H,567.99,COMFORT CALL LTD.
Adult and Health Services,Head of Adults,Third Party Payments 4THIRD,472101,Purchase of Care,03/10/2018,3496255-1836803H,"1,136.00",COMFORT CALL LTD.
Adult and Health Services,Head of Adults,Third Party Payments 4THIRD,472101,Purchase of Care,03/10/2018,3496255-1836859H,591.68,COMFORT CALL LTD.
Adult and Health Services,Head of Adults,Third Party Payments 4THIRD,472101,Purchase of Care,03/10/2018,3496255-1836924H,"1,627.09",COMFORT CALL LTD.
Adult and Health Services,Head of Adults,Third Party Payments 4THIRD,472101,Purchase of Care,03/10/2018,3496255-1836932H,873.30,COMFORT CALL LTD.
Adult and Health Services,Head of Adults,Third Party Payments 4THIRD,472101,Purchase of Care,03/10/2018,3496255-1836953H,"1,121.80",COMFORT CALL LTD.
Adult and Health Services,Head of Adults,Third Party Payments 4THIRD,472101,Purchase of Care,03/10/2018,3496255-1836984H,773.90,COMFORT CALL LTD.
Adult and Health Services,Head of Adults,Third Party Payments 4THIRD,472101,Purchase of Care,03/10/2018,3496255-1837035H,663.85,COMFORT CALL LTD.
Adult and Health Services,Head of Adults,Third Party Payments 4THIRD,472101,Purchase of Care,03/10/2018,3496255-1837057H,695.80,COMFORT CALL LTD.
Adult and Health Services,Head of Adults,Third Party Payments 4THIRD,472101,Purchase of Care,03/10/2018,3496255-1837133H,"1,050.80",COMFORT CALL LTD.
Adult and Health Services,Head of Adults,Third Party Payments 4THIRD,472101,Purchase of Care,03/10/2018,3496255-1837142H,"1,583.30",COMFORT CALL LTD.
Adult and Health Services,Head of Adults,Third Party Payments 4THIRD,472101,Purchase of Care,03/10/2018,3496255-1837224H,629.52,COMFORT CALL LTD.
Adult and Health Services,Head of Adults,Third Party Payments 4THIRD,472101,Purchase of Care,03/10/2018,3496255-1837325H,880.40,COMFORT CALL LTD.
Adult and Health Services,Head of Adults,Third Party Payments 4THIRD,472101,Purchase of Care,03/10/2018,3496255-1837339H,861.47,COMFORT CALL LTD.
Adult and Health Services,Head of Adults,Third Party Payments 4THIRD,472101,Purchase of Care,03/10/2018,3496255-1837612H,530.12,COMFORT CALL LTD.
Adult and Health Services,Head of Adults,Third Party Payments 4THIRD,472101,Purchase of Care,03/10/2018,3496255-1837618H,738.40,COMFORT CALL LTD.
Adult and Health Services,Head of Adults,Third Party Payments 4THIRD,472101,Purchase of Care,03/10/2018,3496255-1837675H,"1,036.59",COMFORT CALL LTD.
Adult and Health Services,Head of Adults,Third Party Payments 4THIRD,472101,Purchase of Care,03/10/2018,3496255-1837683H,568.00,COMFORT CALL LTD.
Adult and Health Services,Head of Adults,Third Party Payments 4THIRD,472101,Purchase of Care,03/10/2018,3496255-1837814H,"1,192.80",COMFORT CALL LTD.
Adult and Health Services,Head of Adults,Third Party Payments 4THIRD,472101,Purchase of Care,03/10/2018,3496255-1837874H,525.40,COMFORT CALL LTD.
Adult and Health Services,Head of Adults,Third Party Payments 4THIRD,472101,Purchase of Care,03/10/2018,3496255-1837907H,"1,725.35",COMFORT CALL LTD.
Adult and Health Services,Head of Adults,Third Party Payments 4THIRD,472101,Purchase of Care,03/10/2018,3496255-1837997H,693.44,COMFORT CALL LTD.
Adult and Health Services,Head of Adults,Third Party Payments 4THIRD,472101,Purchase of Care,03/10/2018,3496255-1838039H,"1,349.00",COMFORT CALL LTD.
Adult and Health Services,Head of Adults,Third Party Payments 4THIRD,472101,Purchase of Care,03/10/2018,3496255-1838089H,653.20,COMFORT CALL LTD.
Adult and Health Services,Head of Adults,Third Party Payments 4THIRD,472101,Purchase of Care,03/10/2018,3496255-1838100H,"1,057.90",COMFORT CALL LTD.
Adult and Health Services,Head of Adults,Third Party Payments 4THIRD,472101,Purchase of Care,03/10/2018,3496255-1838129H,662.68,COMFORT CALL LTD.
Adult and Health Services,Head of Adults,Third Party Payments 4THIRD,472101,Purchase of Care,03/10/2018,3496255-1838177H,"1,365.56",COMFORT CALL LTD.
Adult and Health Services,Head of Adults,Third Party Payments 4THIRD,472101,Purchase of Care,03/10/2018,3496255-1838357H,823.60,COMFORT CALL LTD.
Adult and Health Services,Head of Adults,Third Party Payments 4THIRD,472101,Purchase of Care,03/10/2018,3496255-1838386H,"1,195.17",COMFORT CALL LTD.
Adult and Health Services,Head of Adults,Third Party Payments 4THIRD,472101,Purchase of Care,03/10/2018,3496255-1838568H,692.25,COMFORT CALL LTD.
Adult and Health Services,Head of Adults,Third Party Payments 4THIRD,472101,Purchase of Care,03/10/2018,3496255-1838573H,589.30,COMFORT CALL LTD.
Adult and Health Services,Head of Adults,Third Party Payments 4THIRD,472101,Purchase of Care,03/10/2018,3496255-1838597H,"1,708.74",COMFORT CALL LTD.
Adult and Health Services,Head of Adults,Third Party Payments 4THIRD,472101,Purchase of Care,03/10/2018,3496255-1838641H,667.39,COMFORT CALL LTD.
Adult and Health Services,Head of Adults,Third Party Payments 4THIRD,472101,Purchase of Care,03/10/2018,3496255-1838786H,766.80,COMFORT CALL LTD.
Adult and Health Services,Head of Adults,Third Party Payments 4THIRD,472101,Purchase of Care,03/10/2018,3496255-1838852H,750.22,COMFORT CALL LTD.
Adult and Health Services,Head of Adults,Third Party Payments 4THIRD,472101,Purchase of Care,03/10/2018,3496255-1838898H,731.30,COMFORT CALL LTD.
Adult and Health Services,Head of Adults,Third Party Payments 4THIRD,472101,Purchase of Care,03/10/2018,3496255-1838900H,514.75,COMFORT CALL LTD.
Adult and Health Services,Head of Adults,Third Party Payments 4THIRD,472101,Purchase of Care,03/10/2018,3496255-1838943H,"1,391.60",COMFORT CALL LTD.
Adult and Health Services,Head of Adults,Third Party Payments 4THIRD,472101,Purchase of Care,03/10/2018,3496255-1838958H,837.80,COMFORT CALL LTD.
Adult and Health Services,Head of Adults,Third Party Payments 4THIRD,472101,Purchase of Care,03/10/2018,3496255-1839038H,521.85,COMFORT CALL LTD.
Adult and Health Services,Head of Adults,Third Party Payments 4THIRD,472101,Purchase of Care,03/10/2018,3496255-1839078H,667.40,COMFORT CALL LTD.
Adult and Health Services,Head of Adults,Third Party Payments 4THIRD,472101,Purchase of Care,03/10/2018,3496255-1839113H,"1,590.40",COMFORT CALL LTD.
Adult and Health Services,Head of Adults,Third Party Payments 4THIRD,472101,Purchase of Care,03/10/2018,3496255-1839128H,558.53,COMFORT CALL LTD.
Adult and Health Services,Head of Adults,Third Party Payments 4THIRD,472101,Purchase of Care,03/10/2018,3496255-1839140H,508.83,COMFORT CALL LTD.
Adult and Health Services,Head of Adults,Third Party Payments 4THIRD,472101,Purchase of Care,03/10/2018,3496255-1839298H,557.35,COMFORT CALL LTD.
Adult and Health Services,Head of Adults,Third Party Payments 4THIRD,472101,Purchase of Care,03/10/2018,3496255-1839325H,930.10,COMFORT CALL LTD.
Adult and Health Services,Head of Adults,Third Party Payments 4THIRD,472101,Purchase of Care,03/10/2018,3496255-1839349H,719.48,COMFORT CALL LTD.
Adult and Health Services,Head of Adults,Third Party Payments 4THIRD,472101,Purchase of Care,03/10/2018,3496255-1839362H,539.60,COMFORT CALL LTD.
Adult and Health Services,Head of Adults,Third Party Payments 4THIRD,472101,Purchase of Care,03/10/2018,3496255-1839370H,558.52,COMFORT CALL LTD.
Adult and Health Services,Head of Adults,Third Party Payments 4THIRD,472101,Purchase of Care,03/10/2018,3496255-1839398H,"2,264.90",COMFORT CALL LTD.
Adult and Health Services,Head of Adults,Third Party Payments 4THIRD,472101,Purchase of Care,03/10/2018,3496255-1839413H,553.80,COMFORT CALL LTD.
Adult and Health Services,Head of Adults,Third Party Payments 4THIRD,472101,Purchase of Care,03/10/2018,3496255-1839487H,558.52,COMFORT CALL LTD.
Adult and Health Services,Head of Adults,Third Party Payments 4THIRD,472101,Purchase of Care,03/10/2018,3496255-1839497H,717.10,COMFORT CALL LTD.
Adult and Health Services,Head of Adults,Third Party Payments 4THIRD,472101,Purchase of Care,03/10/2018,3496255-1839517H,511.20,COMFORT CALL LTD.
Adult and Health Services,Head of Adults,Third Party Payments 4THIRD,472101,Purchase of Care,03/10/2018,3496255-1839541H,"1,322.96",COMFORT CALL LTD.
Adult and Health Services,Head of Adults,Third Party Payments 4THIRD,472101,Purchase of Care,03/10/2018,3496255-1839546H,514.75,COMFORT CALL LTD.
Adult and Health Services,Head of Adults,Third Party Payments 4THIRD,472101,Purchase of Care,03/10/2018,3496255-1839563H,621.01,COMFORT CALL LTD.
Adult and Health Services,Head of Adults,Third Party Payments 4THIRD,472101,Purchase of Care,03/10/2018,3496255-1839584H,728.92,COMFORT CALL LTD.
Adult and Health Services,Head of Adults,Third Party Payments 4THIRD,472101,Purchase of Care,03/10/2018,3496255-1839593H,500.08,COMFORT CALL LTD.
Adult and Health Services,Head of Adults,Third Party Payments 4THIRD,472101,Purchase of Care,03/10/2018,3496255-1839603H,539.60,COMFORT CALL LTD.
Adult and Health Services,Head of Adults,Third Party Payments 4THIRD,472101,Purchase of Care,03/10/2018,3496255-1839624H,662.68,COMFORT CALL LTD.
Adult and Health Services,Head of Adults,Third Party Payments 4THIRD,472101,Purchase of Care,03/10/2018,3496255-1839632H,712.37,COMFORT CALL LTD.
Adult and Health Services,Head of Adults,Third Party Payments 4THIRD,472101,Purchase of Care,03/10/2018,3496255-1839891H,523.02,COMFORT CALL LTD.
Adult and Health Services,Head of Adults,Third Party Payments 4THIRD,472101,Purchase of Care,03/10/2018,3496255-1839902H,919.45,COMFORT CALL LTD.
Adult and Health Services,Head of Adults,Third Party Payments 4THIRD,472101,Purchase of Care,03/10/2018,3496255-1839956H,880.40,COMFORT CALL LTD.
Adult and Health Services,Head of Adults,Third Party Payments 4THIRD,472101,Purchase of Care,03/10/2018,3496255-1839970H,"1,475.62",COMFORT CALL LTD.
Adult and Health Services,Head of Adults,Third Party Payments 4THIRD,472101,Purchase of Care,03/10/2018,3496255-1840135H,662.68,COMFORT CALL LTD.
Adult and Health Services,Head of Adults,Third Party Payments 4THIRD,472101,Purchase of Care,03/10/2018,3496255-1840228H,546.70,COMFORT CALL LTD.
Adult and Health Services,Head of Adults,Third Party Payments 4THIRD,472101,Purchase of Care,03/10/2018,3496255-1840331H,"2,067.27",COMFORT CALL LTD.
Adult and Health Services,Head of Adults,Third Party Payments 4THIRD,472101,Purchase of Care,03/10/2018,3496255-1840596H,776.27,COMFORT CALL LTD.
Adult and Health Services,Head of Adults,Third Party Payments 4THIRD,472101,Purchase of Care,03/10/2018,3496255-1840742H,576.99,COMFORT CALL LTD.
Adult and Health Services,Head of Adults,Third Party Payments 4THIRD,472101,Purchase of Care,03/10/2018,3496255-1840825H,560.90,COMFORT CALL LTD.
Adult and Health Services,Head of Adults,Third Party Payments 4THIRD,472101,Purchase of Care,03/10/2018,3496255-1840828H,795.20,COMFORT CALL LTD.
Adult and Health Services,Head of Adults,Third Party Payments 4THIRD,472101,Purchase of Care,03/10/2018,3496255-1840836H,674.50,COMFORT CALL LTD.
Adult and Health Services,Head of Adults,Third Party Payments 4THIRD,472101,Purchase of Care,03/10/2018,3496255-1840886H,721.82,COMFORT CALL LTD.
Adult and Health Services,Head of Adults,Third Party Payments 4THIRD,472101,Purchase of Care,03/10/2018,3496255-1840989H,840.18,COMFORT CALL LTD.
Adult and Health Services,Head of Adults,Third Party Payments 4THIRD,472101,Purchase of Care,03/10/2018,3496255-1841076H,732.47,COMFORT CALL LTD.
Adult and Health Services,Head of Adults,Third Party Payments 4THIRD,472101,Purchase of Care,03/10/2018,3496255-1841107H,"1,185.70",COMFORT CALL LTD.
Adult and Health Services,Head of Adults,Third Party Payments 4THIRD,472101,Purchase of Care,03/10/2018,3496255-1841199H,553.80,COMFORT CALL LTD.
Adult and Health Services,Head of Adults,Third Party Payments 4THIRD,472101,Purchase of Care,03/10/2018,3496255-1841208H,"1,576.20",COMFORT CALL LTD.
Adult and Health Services,Head of Adults,Third Party Payments 4THIRD,472101,Purchase of Care,03/10/2018,3496255-1841262H,589.30,COMFORT CALL LTD.
Adult and Health Services,Head of Adults,Third Party Payments 4THIRD,472101,Purchase of Care,03/10/2018,3496255-1841381H,681.60,COMFORT CALL LTD.
Adult and Health Services,Head of Adults,Third Party Payments 4THIRD,472101,Purchase of Care,03/10/2018,3496255-1841396H,681.60,COMFORT CALL LTD.
Adult and Health Services,Head of Adults,Third Party Payments 4THIRD,472101,Purchase of Care,03/10/2018,3496256-1835392H,852.00,COMMUNITY CARE NORTH EAST.
Adult and Health Services,Head of Adults,Third Party Payments 4THIRD,472101,Purchase of Care,03/10/2018,3496256-1837844H,795.20,COMMUNITY CARE NORTH EAST.
Adult and Health Services,Head of Adults,Third Party Payments 4THIRD,472101,Purchase of Care,03/10/2018,3496256-1838503H,"1,604.60",COMMUNITY CARE NORTH EAST.
Adult and Health Services,Head of Adults,Third Party Payments 4THIRD,472101,Purchase of Care,03/10/2018,3496256-1839556H,"1,320.60",COMMUNITY CARE NORTH EAST.
Adult and Health Services,Head of Adults,Third Party Payments 4THIRD,472101,Purchase of Care,03/10/2018,3496256-1841073H,"1,325.32",COMMUNITY CARE NORTH EAST.
Adult and Health Services,Head of Adults,Third Party Payments 4THIRD,478101,Purchase of Care,03/10/2018,3496257-1835108H,"5,286.56",COMMUNITY INTEGRATED CARE LTD.
